Workbook

Sheet Information
A5: Générer des codes Ecomaison | B5: Generating Ecomaison codes
B6: Version 9.4 - 26 june 2023 - Valid for products marketed from 1st July 2022
B7: Addition of small producer codes for companies making less than €500,000 in turnover/year on their furniture marketing and Decorative textile items
B9: Who is this tool for?
B10: This tool is intended for marketers in furniture, furnishing and fit-out items and components.
B12: What is its purpose?
B13: The Ecomaison product codes are changing in 2022 with the addition of the decorative-textile items ! This file will enable you to generate product codes, required when making your declaration of the eco-fee for items traded to Eco-mobilier as of 2023. These product codes make it possible to classify furniture, furnishing and fit-out items and components according to their characteristics (those required under the regulations by ADEME [the French Environment and Energy Management Agency], and those required for invoicing the eco-fee).
B15: How is a product code composed?
B16: To understand how this 11-digit product code is composed, click on the “Understanding the coding”
B18: How do you generate a product code?
B19: To generate a product code, click on the “Product code generator” tab
B20: Please note: To be sure of entering the correct codes when submitting your declaration, use the “Product code generator” tab and the copy-paste function, selecting “Paste special absolute value”.
B22: What is a code "small producer" ?
B23: The codes "small producers" only concern companies putting on the market 1 000 piece of furniture or less per year, for an yearly total of 15 tons.
B24: These codes correspond to batches of 10 "typical" products. Each decade started must be declared.
B25: These codes are to be declared each year or trimester, analogously than other product codes.
B28: Declaring eco-fees
B30: Consult all the information you need to make your declaration of the eco-fee
B36: 0

Sheet Understanding the coding
A1: Nomenclature of 11-digit product codes
A2: 0 | B2: How an Ecomaison code is composed :
B9: Category code | E9: Product type code | H9: Material code | K9: Characteristic code | N9: 11th-digit
B11: 01 | C11: Living_room_lounge_dining_room_furniture | E11: 003 | F11: Height-adjustable 1-person swivel chair | H11: 00 | I11: Unknown | K11: 000 | L11: Unspecified | N11: 0 | O11: Unspecified
B12: 02 | C12: Occasional_furniture | E12: 010 | F12: Slatted frame | H12: 01 | I12: > 50% wood, wood panels, and wood derivatives | K12: 005 | L12: Set of 2
B13: 03 | C13: Bedroom_furniture | E13: 013 | F13: Electric or mechanically adjustable bed base | H13: 02 | I13: > 50% metal | K13: 006 | L13: Set of 4
B14: 04 | C14: Bedding_for_domestic_market | E14: 017 | F14: Storage units (excluding shelves) | H14: 03 | I14: Bamboo/rattan | K14: 008 | L14: Width <= 205 cm
B15: 14 | C15: Bedding_for_trade_market | E15: 018 | F15: Bedroom furniture or furnishing items (bed frame, headboard, etc.) (N.B.: excludes mattresses and bed bases) | H15: 04 | I15: > 50% biosourced materials or non-synthetic textiles | K15: 009 | L15: Width > 205 cm
B16: 05 | C16: Office_furniture | E16: 019 | F16: Desks, tables, etc. | H16: 05 | I16: Plastics | K16: 010 | L16: Width <= 120 cm
B17: 06 | C17: Kitchen_furniture | E17: 020 | F17: Shelves, panels | H17: 06 | I17: Textiles, leathers, furs | K17: 011 | L17: Width > 120 cm and ≤ 140 cm
B18: 07 | C18: Bathroom_furniture | E18: 021 | F18: Worktops | H18: 07 | I18: Glass and mirrors | K18: 012 | L18: Width > 140 cm
B19: 08 | C19: Garden_furniture | E19: 022 | F19: Hardware (drawer handles, drawer railings, etc.) | H19: 08 | I19: Inert, minerals | K19: 013 | L19: Double/twin (unit made up of two separate components) ≤ 120 cm)
B20: 09 | C20: Seats | E20: 023 | F20: Inflatable mattress | H20: 09 | I20: Foam | K20: 014 | L20: Width <= 205 cm with 1 pillow
B21: 10 | C21: Technical_furniture | E21: 024 | F21: Storage bed | H21: 10 | I21: Latex | K21: 015 | L21: Width > 205 cm with 2 pillows
B22: 11 | C22: Padded_seating_bedding_items | E22: 025 | F22: Bed legs | H22: 11 | I22: Springs | K22: 020 | L22: Must not exceed 0.5 kg
B23: 12 | C23: Decorative textile items | E23: 028 | F23: Padded mattress topper, non-bedding type | H23: 12 | I23: Other | K23: 021 | L23: Between 0.5 kg and < 1 kg
E24: 029 | F24: Duvet/Quilt | H24: 13 | I24: Natural stuffing (down, wool, etc.) | K24: 022 | L24: Between 1 kg and < 2 kg
E25: 030 | F25: Sleeping bag | H25: 14 | I25: Synthetic stuffing (foam, polyester, etc.) | K25: 023 | L25: Between 2 kg and < 5 kg
E26: 031 | F26: Pillow/Bolster | H26: 15 | I26: Composites and compact | K26: 024 | L26: Between 5 kg and < 10 kg
E27: 032 | F27: Cushion, seat cushion | H27: 16 | I27: Artificial stone | K27: 025 | L27: Between 10 kg and < 20 kg
E28: 033 | F28: Other padded seating and bedding items | H28: 17 | I28: Cement, concrete | K28: 026 | L28: Between 20 kg and < 30 kg
E29: 034 | F29: Furniture for pets | H29: 18 | I29: Ceramic | K29: 027 | L29: Between 30 kg and < 40 kg
E30: 035 | F30: Furnishing fabrics | H30: 19 | I30: Paper, cardboard | K30: 028 | L30: Between 40 kg and < 60 kg
E31: 036 | F31: Protective cover | H31: 20 | I31: Min. 75% certified solid wood | K31: 029 | L31: Between 60 kg and < 100 kg
E32: 040 | F32: 1-person seat without structure | H32: 21 | I32: Min. 75% uncertified solid wood | K32: 030 | L32: Between 100 kg and < 150 kg
E33: 041 | F33: 2-person seat without structure | H33: 22 | I33: Min. 75% metal | K33: 031 | L33: Between 150 kg and < 200 kg
E34: 042 | F34: Seat without structure for more than 2 people | H34: 23 | I34: Min. 75% mix of certified solid wood and metal | K34: 032 | L34: Between 200 kg and < 250 kg
E35: 043 | F35: 1-person non-convertible seat | H35: 24 | I35: Particleboard and/or wood and/or metal, more than 75% | K35: 033 | L35: Between 250 kg and < 300 kg
E36: 044 | F36: 2-person non-convertible seat | H36: 25 | I36: Particleboard, more than 75% | K36: 034 | L36: Between 300 kg and < 400 kg
E37: 045 | F37: Non-convertible seat for more than 2 people | H37: 26 | I37: Plywood panel, more than 75% | K37: 035 | L37: Between 400 kg and < 500 kg
E38: 046 | F38: 1-person convertible seat | H38: 27 | I38: OSB panel, more than 75% | K38: 036 | L38: Between 500 kg and < 600 kg
E39: 047 | F39: 2-person convertible seat | H39: 28 | I39: > 90% metal | K39: 037 | L39: Between 600 kg and < 700 kg
E40: 048 | F40: Convertible seat for more than 2 people | H40: 53 | I40: > 90% solid wood or related products | K40: 038 | L40: Between 700 kg and < 800 kg
E41: 049 | F41: 1-person electric/adjustable seat | H41: 55 | I41: > 90% biosourced materials or non-synthetic textiles | K41: 039 | L41: Between 800 kg and < 900 kg
E42: 050 | F42: 2-person electric/adjustable seat | H42: 65 | I42: > 90% synthetic fibres or materials | K42: 040 | L42: Between 900 kg and < 1,000 kg
E43: 051 | F43: Electric/adjustable seat for more than 2 people | H43: 67 | I43: > 50% synthetic fibres or materials | K43: 041 | L43: Between 1,000 kg and < 1,100 kg
E44: 052 | F44: Other accessory, seat part, hammock stand | K44: 042 | L44: Between 1,100 kg and < 1,200 kg
E45: 053 | F45: Inflatable seat | K45: 043 | L45: Between 1,200 kg and < 1,300 kg
E46: 060 | F46: Mattress thickness ≤ 10 cm | K46: 044 | L46: Between 1,300 kg and < 1,400 kg
E47: 061 | F47: Mattress thickness > 10 cm | K47: 045 | L47: Between 1,400 kg and < 1,500 kg
E48: 062 | F48: Bed base (excluding relaxation bed base and storage bed) | K48: 046 | L48: Between 1,500 kg and < 1,600 kg
E49: 038 | F49: Shelves (cut to size) | K49: 047 | L49: Between 1,600 kg and < 1,700 kg
E50: 039 | F50: Panels (cut to size) | K50: 048 | L50: Between 1,700 kg and < 1,800 kg
E51: 070 | F51: Decorative rugs | K51: 049 | L51: Between 1,800 kg and < 1,900 kg
E52: 071 | F52: Functional mats / doormats / outdoors mat | K52: 050 | L52: Between 1,900 kg and < 2,000 kg
E53: 072 | F53: Interior textile blinds / curtains / net curtains | K53: 051 | L53: Over 2,000 kg
E54: 073 | F54: Removable carpets | K54: 052 | L54: Between 2 kg and < 3 kg
E55: 074 | F55: Other small decorative items (macramé, decorative garlands, etc.) | K55: 053 | L55: Between 3 kg and < 5 kg
E56: 075 | F56: Accessories for decorative textile items (rods, etc.) | K56: 054 | L56: Between 5 kg and < 7 kg
E57: 076 | F57: Decorative wall frames | K57: 055 | L57: Between 7 kg and < 10 kg
K58: 056 | L58: Between 10 kg and < 15 kg
K59: 057 | L59: Between 15 kg and < 20 kg
K60: 058 | L60: Between 20 kg and < 25 kg
K61: 059 | L61: Between 25 kg and < 30 kg
K62: 060 | L62: Between 40 kg and < 50 kg
K63: 061 | L63: Between 50 kg and < 60 kg
K64: 062 | L64: Between 60 kg and < 70 kg
K65: 063 | L65: Between 70 kg and < 80 kg
K66: 064 | L66: Between 80 kg and < 90 kg
K67: 065 | L67: Between 90 kg and < 100 kg
K68: 066 | L68: Between 100 kg and < 120 kg
K69: 067 | L69: Between 120 kg and < 150 kg
K70: 068 | L70: Between 300 kg and < 350 kg
K71: 069 | L71: Between 350 kg and < 400 kg
K72: 070 | L72: Between 400 kg and < 450 kg
K73: 071 | L73: Between 450 kg and < 500 kg
K74: 072 | L74: Between 500 kg and < 550 kg
K75: 073 | L75: Between 550 kg and < 600 kg
K76: 074 | L76: Between 600 kg and < 650 kg
K77: 075 | L77: Between 650 kg and < 700 kg
K78: 076 | L78: Between 700 kg and < 750 kg
K79: 077 | L79: Between 750 kg and < 800 kg
K80: 078 | L80: Between 800 kg and < 850 kg
K81: 079 | L81: Between 850 kg and < 900 kg
K82: 080 | L82: Between 900 kg and < 950 kg
K83: 081 | L83: Between 950 kg and < 1,000 kg
K84: 082 | L84: Over 1,000 kg
K85: 091 | L85: Strictly < 1 kg
K86: 092 | L86: ≥ 1 kg and < 3 kg
K87: 093 | L87: > 3 kg
K88: 901 | L88: from 0 to 60cm length, width above 25cm
K89: 902 | L89: from 60 to 120cm length, width above 25cm
K90: 903 | L90: over 120cm length, width above 25cm
K91: 904 | L91: Unit cut
K92: 905 | L92: Linear Meter (fabric)
K93: 906 | L93: more than 120cm in length, width above 25cm
K94: 907 | L94: Die-cut unit
K95: 908 | L95: Linear meter (fabric)
K96: 909 | L96: sqm

Sheet Product code generator
A1: Product code generator | H1: MASQUER | I1: MASQUER | J1: MASQUER | K1: MASQUER | L1: MASQUER_F | M1: MASQUER_F | N1: MASQUER_F
A2: Select the elements in the brown boxes
A4: 1 - Choose a category: | G4: Code: | H4: =LEFT(A4,1)+0 -> 1
G6: =IF(D6="","",VLOOKUP(D6,Masked_lists!$J$3:$K$15,2,FALSE)) ->  | I6: =IF(D6="","",IF(OR(D6="",LEFT(D6,6)="Articl",LEFT(D6,6)="Seats"),"Empty",IF(LEFT(D6,6)="Beddin","Bedding","WeightRange"))) -> 
A8: =IF(OR(I6="Vide",I6="Bedding"),"","2 - Do you know the product's weight range?") -> 2 - Do you know the product's weight range? | H8: =IF(A8="",H4,LEFT(A8,1)+0) -> 2
C9: I know the weight range | D9: I know the weight range
C10: I know the weight range | D10: I know the weight range | L10: =IF(OR(D10="I don't know the weight range",D10=""),"PACKAGE","CLASSIC") -> CLASSIC
A12: =IF(OR(I6="Empty",L10="CLASSIC"),"","3 - Choose a main function") ->  | H12: =IF(A12="",H8,LEFT(A12,1)+0) -> 2
L14: =MATCH(D6,#REF!,) ->  | M14: =COUNTIF(#REF!,D6) ->  | N14: =IF(L10="CLASSIC","Empty","F_function_list") -> Empty
A16: =H4+1&" - Choose a product type : " -> 2 - Choose a product type : | H16: =LEFT(A16,1)+0 -> 2
E18: _ | G18: =IF(D18="","",IF(L10="CLASSIC",LEFT(D18,3),VLOOKUP(N24,#REF!,2,FALSE))) ->  | I18: =CONCATENATE(E18,G18,) -> _ | J18: _ | K18: =CONCATENATE(J18,I18) -> __ | L18: =MATCH(N18,#REF!,0) ->  | M18: =COUNTIF(#REF!,'Product code generator'!N18) ->  | N18: =D6&"&"&D14 -> &
A20: =H16+1&IF(OR(G6="09",G6="04",G6="14")," - Indicate the presence of padding : "," - Choose a majority material by weight or indicate the presence of padding ") -> 3 - Choose a majority material by weight or indicate the presence of padding | H20: =LEFT(A20,1)+0 -> 3
I22: =VLOOKUP(D22,Masked_lists!$AI$2:$AJ$3,2,FALSE) ->  | J22: =IF(AND(I22="Abs",I6="Bedding"),"Abs_Lit",IF(AND(I22="Pre",I6="Bedding"),"Pre_Bed","")) -> 
A24: =IFERROR(IF(I22="No","Indicate the major material :","indicate the padding :"),"") ->  | G24: =IF(D24="","",VLOOKUP(D24,Masked_lists!$F$3:$G$35,2,FALSE)) ->  | L24: =MATCH(N24,#REF!,) ->  | M24: =COUNTIF(#REF!,'Product code generator'!N24) ->  | N24: =N18&"&"&D18 -> &&
D25: =IF(AND(OR(G6="01",G6="02",G6="03",G6="05",G6="06",G6="07",G6="08",G6="10",G6="11"),OR(G24="20",G24="21",G24="22",G24="23",G24="24",G24="25")),"Please note! The presence of PVC or an inert material such as glass or stone in a piece of furniture does not qualify for this code! Please code wood as 01-wood, panels and metal as 02-metal.","") -> 
A26: =H20+1&IF(L10="CLASSIQUE"," - Choose the characteristic (size, number of places or weight) according to the type of product: ",IF(N27="à l'unité"," - Choose the product size"," - Choose the "&N27&" of the product : ")) -> 4 - Choose the dimension of the product : | H26: =LEFT(A26,1)+0 -> 4
M27: Type dim : | N27: =IF(ISERROR(L28),"dimension",OFFSET(#REF!,'Product code generator'!L28,0)) -> dimension
G28: =IF(D28="","",IF(L10="CLASSIC",VLOOKUP(D28,Masked_lists!$B$3:$C$86,2,FALSE),VLOOKUP(N28,#REF!,2,FALSE))) ->  | I28: =D6&"&"&SUBSTITUTE(MID(D18,7,100000),#REF!,"")&"&"&D24&"&"&D28 ->  | J28: =MATCH(LEFT(I28,255),#REF!,0) ->  | K28: =COUNTIF(#REF!,LEFT('Product code generator'!$I$28,255)) ->  | L28: =MATCH(N28,#REF!,0) ->  | M28: =COUNTIF(#REF!,N28) ->  | N28: =N24&"&"&D24&"&"&D28 -> &&&&
A30: Resulting in product code:
D32: =IF(OR(D28="",D24="",D18="",D6=""),"",CONCATENATE(G6,G18,G24,G28,0)) -> 
D33: =IFERROR(VLOOKUP('Product code generator'!$D$32,Tableau13[[Product code]:[Eco part Code]],2,FALSE),"") -> 
A35: Eco-fee for 2020 and beyond (€/article on the market): | G35: and its associated eco-fee code:
A37: you can configure this | B37: VAT rate | D37: =IFERROR(VLOOKUP('Product code generator'!$D$32,Tableau13[[#All],[Product code]:[Eco-fee ex VAT]],3,FALSE),"") ->  | E37: =IF(COUNTIF(G28,"*909*"),"/ m²","/ Article") -> / Article | G37: =IFERROR(VLOOKUP('Product code generator'!$D$32,Tableau13[[Product code]:[Eco-fee inc VAT]],4,FALSE),"") -> 
B38: 0.2 | D38: =IF(D37="","",IF(B38=20%,VLOOKUP('Product code generator'!$D$32,Tableau13[[Product code]:[Eco-fee inc VAT]],5,FALSE),D37*(1+$B$38))) ->  | E38: =IF(COUNTIF(G28,"*909*"),"/ m²","/ Article") -> / Article
A44: NB :
A45: Remember to click on “RESET” before generating a new code. the eco-fee amount including VAT is given by way of information only; the applicable pricing scale is the excluding VAT scale.

Sheet Masked_lists (hidden)
A1: Caracteristic code | E1: Material code | I1: Category code | M1: Product type code | R1: Material code | T1: Dimension code | V1: Customs codes | X1: Eco-participation code / Scale 2016 | AC1: VAT rates | AE1: WeightRange | AG1: Bedding | AI1: Padding | AL1: Pre
X2: 000 | Y2: Enter | Z2: Enter | AC2: 0.2 | AE2: I know the weight range | AG2: I know the dimensions | AI2: Presence of padding | AJ2: Pre | AL2: Unknown
A3: 000 | B3: Unspecified | C3: =A3 -> 000 | E3: 00 | F3: Unknown | G3: 00 | I3: 01 | J3: Living_room_lounge_dining_room_furniture | K3: =I3 -> 01 | M3: 010 | N3: =_xlfn.XLOOKUP(M3,'[1]Understanding the coding'!$E$11:$E$58,'[1]Understanding the coding'!$F$11:$F$58,) -> Slatted frame | O3: - | P3: =CONCATENATE(M3,O3,N3) -> 010 - Slatted frame | R3: _003 | S3: =IFERROR(VLOOKUP(RIGHT(R3,3),$M$3:$N$48,2,FALSE),"") -> Height-adjustable 1-person swivel chair | T3: __003 | U3: =IFERROR(VLOOKUP(RIGHT(T3,3),$M$3:$N$48,2,FALSE),"") -> Height-adjustable 1-person swivel chair | V3: 44.09 | W3: Wood (including strips and friezes for parquet flooring, not assembled) profiled (tongued, grooved, rebated, chamfered, V-jointed, moulded, rounded or similar) along one or more edges, faces or ends, whether or not planed, sanded or end-jointed | X3: 001 | Y3: 0.01 | Z3: 0.01 | AC3: 0.1 | AE3: I don't know the weight range | AI3: No padding | AJ3: No | AL3: Natural stuffing (down, wool, etc.)
A4: 005 | B4: Set of 2 | C4: =A4 -> 005 | E4: 01 | F4: > 50% wood, wood panels, and wood derivatives | G4: 01 | I4: 02 | J4: Occasional_furniture | K4: =I4 -> 02 | M4: 013 | N4: =_xlfn.XLOOKUP(M4,'[1]Understanding the coding'!$E$11:$E$58,'[1]Understanding the coding'!$F$11:$F$58,) -> Electric or mechanically adjustable bed base | O4: - | P4: =CONCATENATE(M4,O4,N4) -> 013 - Electric or mechanically adjustable bed base | R4: =F$3 -> Unknown | T4: =B$14 -> Must not exceed 0.5 kg | V4: 44.10 | W4: Particle board, oriented strand board (OSB) and similar board (e.g. waferboard), of wood or other ligneous materials, whether or not agglomerated with resins or other organic binding agents. | X4: 002 | Y4: 0.04 | Z4: 0.05 | AC4: 0.085 | AL4: Synthetic stuffing (foam, polyester, etc.)
A5: 006 | B5: Set of 4 | C5: 006 | E5: 02 | F5: > 50% metal | G5: 02 | I5: 03 | J5: Bedroom_furniture | K5: 03 | M5: 017 | N5: =_xlfn.XLOOKUP(M5,'[1]Understanding the coding'!$E$11:$E$58,'[1]Understanding the coding'!$F$11:$F$58,) -> Storage units (excluding shelves) | O5: - | P5: =CONCATENATE(M5,O5,N5) -> 017 - Storage units (excluding shelves) | R5: =F$16 -> Natural stuffing (down, wool, etc.) | T5: =B$15 -> Between 0.5 kg and < 1 kg | V5: 44.11 | W5: Fibreboard of wood or other ligneous materials, whether or not bonded with resins or other organic binders. | X5: 003 | Y5: 0.08 | Z5: 0.1
A6: 008 | B6: Width <= 205 cm | C6: 008 | E6: 03 | F6: Bamboo/rattan | G6: 03 | I6: 04 | J6: Bedding_for_domestic_market | K6: 04 | M6: 018 | N6: =_xlfn.XLOOKUP(M6,'[1]Understanding the coding'!$E$11:$E$58,'[1]Understanding the coding'!$F$11:$F$58,) -> Bedroom furniture or furnishing items (bed frame, headboard, etc.) (N.B.: excludes mattresses and bed bases) | O6: - | P6: 018 - Bedroom furniture or furnishing items (bed frame, headboard, etc.) (N.B.: excludes mattresses and bed bases) | R6: =F$17 -> Synthetic stuffing (foam, polyester, etc.) | T6: =B$16 -> Between 1 kg and < 2 kg | V6: 44.12 | W6: Plywood, veneered wood and similar laminated wood. | X6: 004 | Y6: 0.13 | Z6: 0.16 | AL6: No
A7: 009 | B7: Width > 205 cm | C7: 009 | E7: 04 | F7: > 50% biosourced materials or non-synthetic textiles | G7: 04 | I7: 14 | J7: Bedding_for_trade_market | K7: 14 | M7: 019 | N7: =_xlfn.XLOOKUP(M7,'[1]Understanding the coding'!$E$11:$E$58,'[1]Understanding the coding'!$F$11:$F$58,) -> Desks, tables, etc. | O7: - | P7: 019 - Desks, tables, etc. | R7: =F$4 -> > 50% wood, wood panels, and wood derivatives | T7: =B$46 -> Between 2 kg and < 3 kg | V7: 68.02 | W7: Worked monumental or building stone (other than slate) and articles thereof, excluding goods of heading 68.01; mosaic cubes and the like, of natural stone (including slate), whether or not on a backing; artificially coloured granules, chippings and powder, of natural stone (including slate). | X7: 005 | Y7: 0.17 | Z7: 0.2 | AL7: > 50% wood, wood panels, and wood derivatives
A8: 010 | B8: Width <= 120 cm | C8: 010 | E8: 05 | F8: Plastics | G8: 05 | I8: 05 | J8: Office_furniture | K8: 05 | M8: 020 | N8: =_xlfn.XLOOKUP(M8,'[1]Understanding the coding'!$E$11:$E$58,'[1]Understanding the coding'!$F$11:$F$58,) -> Shelves, panels | O8: - | P8: 020 - Shelves, panels | R8: =F$23 -> Min. 75% certified solid wood | T8: =B$47 -> Between 3 kg and < 5 kg | V8: 68.03 | W8: Worked natural slate and structures in natural or agglomerated slate (ardoisine). | X8: 006 | Y8: 0.33 | Z8: 0.4 | AL8: Min. 75% certified solid wood
A9: 011 | B9: Width > 120 cm and ≤ 140 cm | C9: 011 | E9: 06 | F9: Textiles, leathers, furs | G9: 06 | I9: 06 | J9: Kitchen_furniture | K9: 06 | M9: 021 | N9: =_xlfn.XLOOKUP(M9,'[1]Understanding the coding'!$E$11:$E$58,'[1]Understanding the coding'!$F$11:$F$58,) -> Worktops | O9: - | P9: 021 - Worktops | R9: =F$24 -> Min. 75% uncertified solid wood | T9: =B$48 -> Between 5 kg and < 7 kg | V9: 70.06 | W9: Glass of nos. 70.03, 70.04 or 70.05, curved, beveled, engraved, drilled, enameled or otherwise worked, but not framed or combined with other materials. | X9: 007 | Y9: 0.42 | Z9: 0.5 | AL9: Min. 75% uncertified solid wood
A10: 012 | B10: Width > 140 cm | C10: 012 | E10: 07 | F10: Glass and mirrors | G10: 07 | I10: 07 | J10: Bathroom_furniture | K10: 07 | M10: 022 | N10: =_xlfn.XLOOKUP(M10,'[1]Understanding the coding'!$E$11:$E$58,'[1]Understanding the coding'!$F$11:$F$58,) -> Hardware (drawer handles, drawer railings, etc.) | O10: - | P10: 022 - Hardware (drawer handles, drawer railings, etc.) | R10: =F$26 -> Min. 75% mix of certified solid wood and metal | T10: =B$49 -> Between 7 kg and < 10 kg | V10: 70.07 | W10: Safety glass, consisting of toughened glass or laminated sheets. | X10: 008 | Y10: 0.83 | Z10: 1 | AL10: Min. 75% mix of certified solid wood and metal
A11: 013 | B11: Double/twin (unit made up of two separate components) ≤ 120 cm) | C11: 013 | E11: 08 | F11: Inert, minerals | G11: 08 | I11: 08 | J11: Garden_furniture | K11: 08 | M11: 023 | N11: =_xlfn.XLOOKUP(M11,'[1]Understanding the coding'!$E$11:$E$58,'[1]Understanding the coding'!$F$11:$F$58,) -> Inflatable mattress | O11: - | P11: =CONCATENATE(M11,O11,N11) -> 023 - Inflatable mattress | R11: =F$27 -> Particleboard and/or wood and/or metal, more than 75% | T11: =B$50 -> Between 10 kg and < 15 kg | V11: 83.01 | W11: Padlocks, locks and bolts (key, secret or electric), of base metal; clasps and clasp-fittings incorporating a lock, of base metal; keys for these articles, of base metal. | X11: 009 | Y11: 1.25 | Z11: 1.5 | AL11: Particleboard and/or wood and/or metal, more than 75%
A12: 014 | B12: Width <= 205 cm with 1 pillow | C12: 014 | E12: 09 | F12: Foam | G12: 09 | I12: 09 | J12: Seats | K12: 09 | M12: 024 | N12: =_xlfn.XLOOKUP(M12,'[1]Understanding the coding'!$E$11:$E$58,'[1]Understanding the coding'!$F$11:$F$58,) -> Storage bed | O12: - | P12: =CONCATENATE(M12,O12,N12) -> 024 - Storage bed | R12: =F$28 -> Particleboard, more than 75% | T12: =B$51 -> Between 15 kg and < 20 kg | V12: 83.02 | W12: Base metal fittings, fixtures and similar articles for furniture, doors, staircases, windows, shutters, coachwork, saddlery, trunks, chests, caskets or the like; base metal coat hooks, hat stands, brackets and similar articles; base metal castors with mountings; automatic base metal door closers. | X12: 010 | Y12: 1.67 | Z12: 2 | AL12: Particleboard, more than 75%
A13: 015 | B13: Width > 205 cm with 2 pillows | C13: 015 | E13: 10 | F13: Latex | G13: 10 | I13: 10 | J13: Technical_furniture | K13: =I13 -> 10 | M13: 025 | N13: =_xlfn.XLOOKUP(M13,'[1]Understanding the coding'!$E$11:$E$58,'[1]Understanding the coding'!$F$11:$F$58,) -> Bed legs | O13: - | P13: 025 - Bed legs | R13: =F$5 -> > 50% metal | T13: =B$52 -> Between 20 kg and < 25 kg | V13: 9401.30 | W13: Height-adjustable swivel seats | X13: 011 | Y13: 2.08 | Z13: 2.5 | AL13: > 50% metal
A14: 020 | B14: Must not exceed 0.5 kg | C14: 020 | E14: 11 | F14: Springs | G14: 11 | I14: 11 | J14: Padded_seating_bedding_items | K14: =I14 -> 11 | M14: 028 | N14: =_xlfn.XLOOKUP(M14,'[1]Understanding the coding'!$E$11:$E$58,'[1]Understanding the coding'!$F$11:$F$58,) -> Padded mattress topper, non-bedding type | O14: - | P14: 028 - Padded mattress topper, non-bedding type | R14: =F$25 -> Min. 75% metal | T14: =B$53 -> Between 25 kg and < 30 kg | V14: 9401.40 | W14: Swivel seats, height-adjustableSeats other than camping or garden equipment, convertible into beds | X14: 012 | Y14: 2.5 | Z14: 3 | AL14: Min. 75% metal
A15: 021 | B15: Between 0.5 kg and < 1 kg | C15: 021 | E15: 12 | F15: Other | G15: 12 | I15: 12 | J15: Decorative_textile_items | K15: =I15 -> 12 | M15: 029 | N15: =_xlfn.XLOOKUP(M15,'[1]Understanding the coding'!$E$11:$E$58,'[1]Understanding the coding'!$F$11:$F$58,) -> Duvet/Quilt | O15: - | P15: 029 - Duvet/Quilt | R15: =F$6 -> Bamboo/rattan | T15: =B$21 -> Between 30 kg and < 40 kg | V15: 9401.51 | W15: Seats made of rattan, wicker, bamboo or similar materials: Bamboo or wicker | X15: 013 | Y15: 2.92 | Z15: 3.5 | AL15: Bamboo/Rattan
A16: 022 | B16: Between 1 kg and < 2 kg | C16: 022 | E16: 13 | F16: Natural stuffing (down, wool, etc.) | G16: 13 | I16: 00 | J16: Combinaison_de_meubles | K16: =I16 -> 00 | M16: 030 | N16: =_xlfn.XLOOKUP(M16,'[1]Understanding the coding'!$E$11:$E$58,'[1]Understanding the coding'!$F$11:$F$58,) -> Sleeping bag | O16: - | P16: 030 - Sleeping bag | R16: =F$7 -> > 50% biosourced materials or non-synthetic textiles | T16: =B$54 -> Between 40 kg and < 50 kg | V16: 9401.59 | W16: Seats made of rattan, wicker, bamboo or similar materials: Other | X16: 014 | Y16: 3.33 | Z16: 4 | AL16: > 50% biosourced materials or non-synthetic textiles
A17: 023 | B17: Between 2 kg and < 5 kg | C17: 023 | E17: 14 | F17: Synthetic stuffing (foam, polyester, etc.) | G17: 14 | M17: 031 | N17: =_xlfn.XLOOKUP(M17,'[1]Understanding the coding'!$E$11:$E$58,'[1]Understanding the coding'!$F$11:$F$58,) -> Pillow/Bolster | O17: - | P17: 031 - Pillow/Bolster | R17: =F$8 -> Plastics | T17: =B$55 -> Between 50 kg and < 60 kg | V17: 9401.61 | W17: Other seats, with wooden frame: Upholstered | X17: 015 | Y17: 3.75 | Z17: 4.5 | AL17: Plastics
A18: 024 | B18: Between 5 kg and < 10 kg | C18: 024 | E18: 15 | F18: Composites and compact | G18: 15 | I18: 01 | J18: Living_room_lounge_dining_room_furniture | K18: =I18 -> 01 | M18: 032 | N18: =_xlfn.XLOOKUP(M18,'[1]Understanding the coding'!$E$11:$E$58,'[1]Understanding the coding'!$F$11:$F$58,) -> Cushion, seat cushion | O18: - | P18: 032 - Cushion, seat cushion | R18: Inert, minerals | T18: =B$56 -> Between 60 kg and < 70 kg | V18: 9401.69 | W18: Other seats, with wooden frame: Other | X18: 016 | Y18: 4.17 | Z18: 5 | AL18: Inert, minerals
A19: 025 | B19: Between 10 kg and < 20 kg | C19: 025 | E19: 16 | F19: Artificial stone | G19: 16 | I19: 02 | J19: Occasional_furniture | K19: 02 | M19: 033 | N19: =_xlfn.XLOOKUP(M19,'[1]Understanding the coding'!$E$11:$E$58,'[1]Understanding the coding'!$F$11:$F$58,) -> Other padded seating and bedding items | O19: - | P19: 033 - Other padded seating and bedding items | R19: =F$18 -> Composites and compact | T19: =B$57 -> Between 70 kg and < 80 kg | V19: 9401.71 | W19: Other seats, with metal frame: Upholstered | X19: 017 | Y19: 5.42 | Z19: 6.5 | AL19: Composites and compact
A20: 026 | B20: Between 20 kg and < 30 kg | C20: 026 | E20: 17 | F20: Cement, concrete | G20: 17 | I20: 03 | J20: Bedroom_furniture | K20: 03 | M20: 034 | N20: =_xlfn.XLOOKUP(M20,'[1]Understanding the coding'!$E$11:$E$58,'[1]Understanding the coding'!$F$11:$F$58,) -> Furniture for pets | O20: - | P20: 034 - Furniture for pets | R20: =F$19 -> Artificial stone | T20: =B$58 -> Between 80 kg and < 90 kg | V20: 9401.79 | W20: Other seats, with metal frame: Other | X20: 018 | Y20: 5.83 | Z20: 7 | AL20: Artificial stone
A21: 027 | B21: Between 30 kg and < 40 kg | C21: 027 | E21: 18 | F21: Ceramic | G21: 18 | I21: 05 | J21: Office_furniture | K21: 05 | M21: 035 | N21: =_xlfn.XLOOKUP(M21,'[1]Understanding the coding'!$E$11:$E$58,'[1]Understanding the coding'!$F$11:$F$58,) -> Furnishing fabrics | O21: - | P21: 035 - Furnishing fabrics | R21: =F$20 -> Cement, concrete | T21: =B$59 -> Between 90 kg and < 100 kg | V21: 9401.80 | W21: Other seats | X21: 019 | Y21: 6.67 | Z21: 8 | AL21: Cement, concrete
A22: 028 | B22: Between 40 kg and < 60 kg | C22: 028 | E22: 19 | F22: Paper, cardboard | G22: 19 | I22: 06 | J22: Kitchen_furniture | K22: 06 | M22: 036 | N22: =_xlfn.XLOOKUP(M22,'[1]Understanding the coding'!$E$11:$E$58,'[1]Understanding the coding'!$F$11:$F$58,) -> Protective cover | O22: - | P22: 036 - Protective cover | R22: =F$21 -> Ceramic | T22: =B$60 -> Between 100 kg and < 120 kg | V22: 9401.90 | W22: Parts | X22: 020 | Y22: 7.5 | Z22: 9 | AL22: Ceramic
A23: 029 | B23: Between 60 kg and < 100 kg | C23: 029 | E23: 20 | F23: Min. 75% certified solid wood | G23: 20 | I23: 07 | J23: Bathroom_furniture | K23: 07 | M23: 037 | N23: =_xlfn.XLOOKUP(M23,'[1]Understanding the coding'!$E$11:$E$58,'[1]Understanding the coding'!$F$11:$F$58,) -> Washbasin units | O23: - | P23: =CONCATENATE(M23,O23,N23) -> 037 - Washbasin units | R23: =F$22 -> Paper, cardboard | T23: =B$61 -> Between 120 kg and < 150 kg | V23: 9402.10 | W23: Dentists' chairs, hairdressers' chairs and similar chairs, and parts thereof | X23: 021 | Y23: 8.33 | Z23: 10 | AL23: Paper, cardboard
A24: 030 | B24: Between 100 kg and < 150 kg | C24: 030 | E24: 21 | F24: Min. 75% uncertified solid wood | G24: 21 | I24: 08 | J24: Garden_furniture | K24: 08 | M24: 040 | N24: =_xlfn.XLOOKUP(M24,'[1]Understanding the coding'!$E$11:$E$58,'[1]Understanding the coding'!$F$11:$F$58,) -> 1-person seat without structure | O24: - | P24: 040 - 1-person seat without structure | R24: =F$15 -> Other | T24: =B$25 -> Between 150 kg and < 200 kg | V24: 9402.90 | W24: Other | X24: 022 | Y24: 10.83 | Z24: 13 | AL24: Other
A25: 031 | B25: Between 150 kg and < 200 kg | C25: 031 | E25: 22 | F25: Min. 75% metal | G25: 22 | M25: 041 | N25: =_xlfn.XLOOKUP(M25,'[1]Understanding the coding'!$E$11:$E$58,'[1]Understanding the coding'!$F$11:$F$58,) -> 2-person seat without structure | O25: - | P25: 041 - 2-person seat without structure | T25: =B$26 -> Between 200 kg and < 250 kg | V25: 9403.10 | W25: Metal furniture of the type used in offices | X25: 023 | Y25: 15 | Z25: 18
A26: 032 | B26: Between 200 kg and < 250 kg | C26: 032 | E26: 23 | F26: Min. 75% mix of certified solid wood and metal | G26: 23 | M26: 042 | N26: =_xlfn.XLOOKUP(M26,'[1]Understanding the coding'!$E$11:$E$58,'[1]Understanding the coding'!$F$11:$F$58,) -> Seat without structure for more than 2 people | O26: - | P26: =CONCATENATE(M26,O26,N26) -> 042 - Seat without structure for more than 2 people | R26: _010 | S26: Slatted frame | T26: =B$27 -> Between 250 kg and < 300 kg | V26: 9403.20 | W26: Other metal furniture | X26: 024 | Y26: 19.17 | Z26: =18+5 -> 23 | AL26: No-Bed
A27: 033 | B27: Between 250 kg and < 300 kg | C27: 033 | E27: 24 | F27: Particleboard and/or wood and/or metal, more than 75% | G27: 24 | I27: 00 | J27: Furniture_combination | K27: =I27 -> 00 | M27: 043 | N27: =_xlfn.XLOOKUP(M27,'[1]Understanding the coding'!$E$11:$E$58,'[1]Understanding the coding'!$F$11:$F$58,) -> 1-person non-convertible seat | O27: - | P27: 043 - 1-person non-convertible seat | R27: =F$3 -> Unknown | T27: =B$62 -> Between 300 kg and < 350 kg | V27: 9403.30 | W27: Wooden furniture of the type used in offices | X27: 025 | Y27: 23.33 | Z27: =Z26+5 -> 28 | AL27: > 50% wood, wood panels, and wood derivatives
A28: 034 | B28: Between 300 kg and < 400 kg | C28: 034 | E28: 25 | F28: Particleboard, more than 75% | G28: 25 | M28: 044 | N28: =_xlfn.XLOOKUP(M28,'[1]Understanding the coding'!$E$11:$E$58,'[1]Understanding the coding'!$F$11:$F$58,) -> 2-person non-convertible seat | O28: - | P28: 044 - 2-person non-convertible seat | R28: =F$4 -> > 50% wood, wood panels, and wood derivatives | T28: =B$63 -> Between 350 kg and < 400 kg | V28: 9403.40 | W28: Wooden furniture of the types used in kitchens | X28: 026 | Y28: 27.5 | Z28: 33 | AL28: > 50% metal
A29: 035 | B29: Between 400 kg and < 500 kg | C29: 035 | E29: 26 | F29: Plywood panel, more than 75% | G29: 26 | M29: 045 | N29: =_xlfn.XLOOKUP(M29,'[1]Understanding the coding'!$E$11:$E$58,'[1]Understanding the coding'!$F$11:$F$58,) -> Non-convertible seat for more than 2 people | O29: - | P29: 045 - Non-convertible seat for more than 2 people | R29: =F$23 -> Min. 75% certified solid wood | T29: =B$64 -> Between 400 kg and < 450 kg | V29: 9403.50 | W29: Wooden furniture of the type used in bedrooms | X29: 027 | Y29: 31.67 | Z29: 38 | AL29: Bamboo/Rattan
A30: 036 | B30: Between 500 kg and < 600 kg | C30: 036 | E30: 27 | F30: OSB panel, more than 75% | G30: 27 | M30: 046 | N30: =_xlfn.XLOOKUP(M30,'[1]Understanding the coding'!$E$11:$E$58,'[1]Understanding the coding'!$F$11:$F$58,) -> 1-person convertible seat | O30: - | P30: 046 - 1-person convertible seat | R30: =F$24 -> Min. 75% uncertified solid wood | T30: =B$65 -> Between 450 kg and < 500 kg | V30: 9403.60 | W30: Other wooden furniture | X30: 028 | Y30: 35.83 | Z30: 43 | AL30: > 50% biosourced materials or non-synthetic textiles
A31: 037 | B31: Between 600 kg and < 700 kg | C31: 037 | E31: 28 | F31: > 90% metal | G31: 28 | M31: 047 | N31: =_xlfn.XLOOKUP(M31,'[1]Understanding the coding'!$E$11:$E$58,'[1]Understanding the coding'!$F$11:$F$58,) -> 2-person convertible seat | O31: - | P31: 047 - 2-person convertible seat | R31: =F$26 -> Min. 75% mix of certified solid wood and metal | T31: =B$66 -> Between 500 kg and < 550 kg | V31: 9403.70 | W31: Plastic furniture | X31: 029 | Y31: 40 | Z31: 48 | AL31: Plastics
A32: 038 | B32: Between 700 kg and < 800 kg | C32: =A32 -> 038 | E32: 53 | F32: > 90% solid wood or related products | G32: 53 | M32: 048 | N32: =_xlfn.XLOOKUP(M32,'[1]Understanding the coding'!$E$11:$E$58,'[1]Understanding the coding'!$F$11:$F$58,) -> Convertible seat for more than 2 people | O32: - | P32: 048 - Convertible seat for more than 2 people | R32: =F$27 -> Particleboard and/or wood and/or metal, more than 75% | T32: =B$67 -> Between 550 kg and < 600 kg | V32: 9403.81 | W32: Furniture of other materials, including rattan, wicker, bamboo or similar materials: Of bamboo or rattan | X32: 030 | Y32: 44.17 | Z32: 53 | AL32: Other
A33: 039 | B33: Between 800 kg and < 900 kg | C33: 039 | E33: 55 | F33: > 90% biosourced materials or non-synthetic textiles | G33: 55 | M33: 049 | N33: =_xlfn.XLOOKUP(M33,'[1]Understanding the coding'!$E$11:$E$58,'[1]Understanding the coding'!$F$11:$F$58,) -> 1-person electric/adjustable seat | O33: - | P33: 049 - 1-person electric/adjustable seat | R33: =F$28 -> Particleboard, more than 75% | T33: =B$68 -> Between 600 kg and < 650 kg | V33: 9403.89 | W33: Furniture in other materials, including rattan, wicker, bamboo or similar materials: Other | X33: 031 | Y33: 48.33 | Z33: 58 | AL33: Min. 75% certified solid wood
A34: 040 | B34: Between 900 kg and < 1,000 kg | C34: 040 | E34: 65 | F34: > 90% synthetic fibres or materials | G34: 65 | M34: 050 | N34: =_xlfn.XLOOKUP(M34,'[1]Understanding the coding'!$E$11:$E$58,'[1]Understanding the coding'!$F$11:$F$58,) -> 2-person electric/adjustable seat | O34: - | P34: 050 - 2-person electric/adjustable seat | R34: =F$5 -> > 50% metal | T34: =B$69 -> Between 650 kg and < 700 kg | V34: 9403.90 | W34: Parts | X34: 032 | Y34: 52.5 | Z34: 63 | AL34: Min. 75% uncertified solid wood
A35: 041 | B35: Between 1,000 kg and < 1,100 kg | C35: 041 | E35: 67 | F35: > 50% synthetic fibres or materials | G35: 67 | M35: 051 | N35: =_xlfn.XLOOKUP(M35,'[1]Understanding the coding'!$E$11:$E$58,'[1]Understanding the coding'!$F$11:$F$58,) -> Electric/adjustable seat for more than 2 people | O35: - | P35: 051 - Electric/adjustable seat for more than 2 people | R35: =F$25 -> Min. 75% metal | T35: =B$70 -> Between 700 kg and < 750 kg | V35: 9404.10 | W35: Bed bases | X35: 033 | Y35: 56.67 | Z35: 68 | AL35: Min. 75% metal
A36: 042 | B36: Between 1,100 kg and < 1,200 kg | C36: 042 | M36: 052 | N36: =_xlfn.XLOOKUP(M36,'[1]Understanding the coding'!$E$11:$E$58,'[1]Understanding the coding'!$F$11:$F$58,) -> Other accessory, seat part, hammock stand | O36: - | P36: 052 - Other accessory, seat part, hammock stand | R36: =F$6 -> Bamboo/rattan | T36: =B$71 -> Between 750 kg and < 800 kg | V36: 9404.21 | W36: Matelas : En caoutchouc alvéolaire ou en matières plastiques alvéolaires, recouverts ou non | X36: 034 | Y36: 60.83 | Z36: 73 | AL36: Min. 75% mix of certified solid wood and metal
A37: 043 | B37: Between 1,200 kg and < 1,300 kg | C37: 043 | M37: 053 | N37: =_xlfn.XLOOKUP(M37,'[1]Understanding the coding'!$E$11:$E$58,'[1]Understanding the coding'!$F$11:$F$58,) -> Inflatable seat | O37: - | P37: 053 - Inflatable seat | R37: =F$7 -> > 50% biosourced materials or non-synthetic textiles | T37: =B$72 -> Between 800 kg and < 850 kg | V37: 9404.29 | W37: Mattresses: Other materials | X37: 035 | Y37: 65 | Z37: 78 | AL37: Particleboard and/or wood and/or metal, more than 75%
A38: 044 | B38: Between 1,300 kg and < 1,400 kg | C38: 044 | M38: 060 | N38: =_xlfn.XLOOKUP(M38,'[1]Understanding the coding'!$E$11:$E$58,'[1]Understanding the coding'!$F$11:$F$58,) -> Mattress thickness ≤ 10 cm | O38: - | P38: 060 - Mattress thickness ≤ 10 cm | R38: =F$8 -> Plastics | T38: =B$73 -> Between 850 kg and < 900 kg | V38: 9404.90 | W38: Other materials: Other | X38: 036 | Y38: 69.17 | Z38: 83 | AL38: Particleboard, more than 75%
A39: 045 | B39: Between 1,400 kg and < 1,500 kg | C39: 045 | M39: 061 | N39: =_xlfn.XLOOKUP(M39,'[1]Understanding the coding'!$E$11:$E$58,'[1]Understanding the coding'!$F$11:$F$58,) -> Mattress thickness > 10 cm | O39: - | P39: 061 - Mattress thickness > 10 cm | R39: =F$15 -> Other | T39: =B$74 -> Between 900 kg and < 950 kg | V39: "'44.00" | W39: "Wood and wood panels (simplified code - under discussion with ADEME) | X39: 037 | Y39: 73.33 | Z39: 88
A40: 046 | B40: Between 1,500 kg and < 1,600 kg | C40: 046 | M40: 062 | N40: =_xlfn.XLOOKUP(M40,'[1]Understanding the coding'!$E$11:$E$58,'[1]Understanding the coding'!$F$11:$F$58,) -> Bed base (excluding relaxation bed base and storage bed) | O40: - | P40: 062 - Bed base (excluding relaxation bed base and storage bed) | R40: =F$16 -> Natural stuffing (down, wool, etc.) | T40: =B$75 -> Between 950 kg and < 1,000 kg | V40: "68.00" | W40: "Stone" (simplified code - under discussion with ADEME) | X40: 038 | Y40: 77.5 | Z40: 93 | AL40: Pre_Bed
A41: 047 | B41: Between 1,600 kg and < 1,700 kg | C41: 047 | M41: 070 | N41: =_xlfn.XLOOKUP(M41,'[1]Understanding the coding'!$E$11:$E$58,'[1]Understanding the coding'!$F$11:$F$58,) -> Decorative rugs | O41: - | P41: 070 - Decorative rugs | R41: =F$17 -> Synthetic stuffing (foam, polyester, etc.) | T41: =B$76 -> Over 1,000 kg | V41: "70.00" | W41: "Glass" (simplified code - under discussion with ADEME) | X41: 039 | Y41: 81.67 | Z41: 98 | AL41: Unknown
A42: 048 | B42: Between 1,700 kg and < 1,800 kg | C42: 048 | M42: 071 | N42: =_xlfn.XLOOKUP(M42,'[1]Understanding the coding'!$E$11:$E$58,'[1]Understanding the coding'!$F$11:$F$58,) -> Functional mats / doormats / outdoors mat | O42: - | P42: 071 - Functional mats / doormats / outdoors mat | V42: "83.00" | W42: "Hardware" (simplified code - under discussion with ADEME) | X42: 040 | Y42: 85.83 | Z42: 103 | AL42: Natural stuffing (down, wool, etc.)
A43: 049 | B43: Between 1,800 kg and < 1,900 kg | C43: 049 | M43: 072 | N43: =_xlfn.XLOOKUP(M43,'[1]Understanding the coding'!$E$11:$E$58,'[1]Understanding the coding'!$F$11:$F$58,) -> Interior textile blinds / curtains / net curtains | O43: - | P43: 072 - Interior textile blinds / curtains / net curtains | R43: _013 | S43: Electric or mechanically adjustable bed base | T43: __010 | U43: Slatted frame | X43: 041 | Y43: 90 | Z43: 108 | AL43: Synthetic stuffing (foam, polyester, etc.)
A44: 050 | B44: Between 1,900 kg and < 2,000 kg | C44: 050 | M44: 073 | N44: =_xlfn.XLOOKUP(M44,'[1]Understanding the coding'!$E$11:$E$58,'[1]Understanding the coding'!$F$11:$F$58,) -> Removable carpets | O44: - | P44: =CONCATENATE(M44,O44,N44) -> 073 - Removable carpets | R44: =F$3 -> Unknown | T44: =B$8 -> Width <= 120 cm | X44: 042 | Y44: 5 | Z44: 6
A45: 051 | B45: Over 2,000 kg | C45: 051 | M45: 074 | N45: =_xlfn.XLOOKUP(M45,'[1]Understanding the coding'!$E$11:$E$58,'[1]Understanding the coding'!$F$11:$F$58,) -> Other small decorative items (macramé, decorative garlands, etc.) | O45: - | P45: 074 - Other small decorative items (macramé, decorative garlands, etc.) | R45: =F$4 -> > 50% wood, wood panels, and wood derivatives | T45: =B$9 -> Width > 120 cm and ≤ 140 cm | X45: 043 | Y45: =$Y$7*2 -> 0.34 | Z45: =Y45*1.2 -> 0.408
A46: 052 | B46: Between 2 kg and < 3 kg | C46: 052 | M46: 075 | N46: =_xlfn.XLOOKUP(M46,'[1]Understanding the coding'!$E$11:$E$58,'[1]Understanding the coding'!$F$11:$F$58,) -> Accessories for decorative textile items (rods, etc.) | O46: - | P46: 075 - Accessories for decorative textile items (rods, etc.) | R46: =F$23 -> Min. 75% certified solid wood | T46: =B$10 -> Width > 140 cm | X46: 044 | Y46: =$Y$7*4 -> 0.68 | Z46: =Y46*1.2 -> 0.816
A47: 053 | B47: Between 3 kg and < 5 kg | C47: 053 | M47: 076 | N47: Decorative wall frames | O47: - | P47: =CONCATENATE(M47,O47,N47) -> 076 - Decorative wall frames | R47: =F$24 -> Min. 75% uncertified solid wood | T47: =B$11 -> Double/twin (unit made up of two separate components) ≤ 120 cm) | X47: 045 | Y47: =$Y$9*2 -> 0.84 | Z47: =Y47*1.2 -> 1.008
A48: 054 | B48: Between 5 kg and < 7 kg | C48: 054 | M48: 003 | N48: =_xlfn.XLOOKUP(M48,'[1]Understanding the coding'!$E$11:$E$58,'[1]Understanding the coding'!$F$11:$F$58,) -> Height-adjustable 1-person swivel chair | O48: - | P48: =CONCATENATE(M48,O48,N48) -> 003 - Height-adjustable 1-person swivel chair | R48: =F$26 -> Min. 75% mix of certified solid wood and metal | X48: 046 | Y48: =$Y$9*4 -> 1.68 | Z48: =Y48*1.2 -> 2.016
A49: 055 | B49: Between 7 kg and < 10 kg | C49: 055 | M49: 038 | N49: =_xlfn.XLOOKUP(M49,'[1]Understanding the coding'!$E$11:$E$58,'[1]Understanding the coding'!$F$11:$F$58,) -> Shelves (cut to size) | O49: - | P49: =CONCATENATE(M49,O49,N49) -> 038 - Shelves (cut to size) | R49: =F$27 -> Particleboard and/or wood and/or metal, more than 75% | T49: __013 | U49: Electric or mechanically adjustable bed base | X49: 047 | Y49: 0.02 | Z49: =Y49*1.2 -> 0.024
A50: 056 | B50: Between 10 kg and < 15 kg | C50: 056 | M50: 039 | N50: =_xlfn.XLOOKUP(M50,'[1]Understanding the coding'!$E$11:$E$58,'[1]Understanding the coding'!$F$11:$F$58,) -> Panels (cut to size) | O50: - | P50: =CONCATENATE(M50,O50,N50) -> 039 - Panels (cut to size) | R50: =F$28 -> Particleboard, more than 75% | T50: =B$8 -> Width <= 120 cm | X50: 048 | Y50: 0.05 | Z50: =Y50*1.2 -> 0.06
A51: 057 | B51: Between 15 kg and < 20 kg | C51: 057 | R51: =F$5 -> > 50% metal | T51: =B$9 -> Width > 120 cm and ≤ 140 cm | X51: 049 | Y51: 0.09 | Z51: 0.108
A52: 058 | B52: Between 20 kg and < 25 kg | C52: 058 | R52: =F$25 -> Min. 75% metal | T52: =B$10 -> Width > 140 cm | X52: 050 | Y52: 0.15 | Z52: 0.18
A53: 059 | B53: Between 25 kg and < 30 kg | C53: 059 | R53: =F$6 -> Bamboo/rattan | T53: =B$11 -> Double/twin (unit made up of two separate components) ≤ 120 cm) | X53: 051 | Y53: 0.21 | Z53: 0.252
A54: 060 | B54: Between 40 kg and < 50 kg | C54: 060 | R54: =F$7 -> > 50% biosourced materials or non-synthetic textiles | X54: 052 | Y54: 0.38 | Z54: 0.456
A55: 061 | B55: Between 50 kg and < 60 kg | C55: 061 | R55: =F$8 -> Plastics | T55: __017 | U55: Storage units (excluding shelves) | X55: 053 | Y55: 0.5 | Z55: 0.6
A56: 062 | B56: Between 60 kg and < 70 kg | C56: 062 | R56: =F$15 -> Other | T56: =B$14 -> Must not exceed 0.5 kg | X56: 054 | Y56: 0.92 | Z56: 1.104
A57: 063 | B57: Between 70 kg and < 80 kg | C57: 063 | L57: carac | R57: =F$16 -> Natural stuffing (down, wool, etc.) | T57: =B$15 -> Between 0.5 kg and < 1 kg | X57: 055 | Y57: 0.96 | Z57: 1.152
A58: 064 | B58: Between 80 kg and < 90 kg | C58: 064 | K58: Total | L58: =COUNTA(INDIRECT(N65,FALSE)) -> 4 | R58: =F$17 -> Synthetic stuffing (foam, polyester, etc.) | T58: =B$16 -> Between 1 kg and < 2 kg | X58: 056 | Y58: 1 | Z58: 1.2
A59: 065 | B59: Between 90 kg and < 100 kg | C59: 065 | J59: =K59 -> 60 | K59: =L58*M65 -> 60 | L59: 4 | T59: =B$17 -> Between 2 kg and < 5 kg | X59: 057 | Y59: 1.42 | Z59: 1.704
A60: 066 | B60: Between 100 kg and < 120 kg | C60: 066 | J60: 60 | K60: 60 | L60: 4 | R60: _017 | S60: Storage units (excluding shelves) | T60: =B$18 -> Between 5 kg and < 10 kg | X60: 058 | Y60: 1.46 | Z60: 1.752
A61: 067 | B61: Between 120 kg and < 150 kg | C61: 067 | J61: 60 | K61: 60 | L61: 3 | R61: =F$4 -> > 50% wood, wood panels, and wood derivatives | T61: =B$19 -> Between 10 kg and < 20 kg | X61: 059 | Y61: 1.5 | Z61: 1.8
A62: 068 | B62: Between 300 kg and < 350 kg | C62: 068 | J62: 45 | K62: 45 | L62: 3 | R62: =F$23 -> Min. 75% certified solid wood | T62: =B$20 -> Between 20 kg and < 30 kg | X62: 060 | Y62: 1.92 | Z62: 2.304
A63: 069 | B63: Between 350 kg and < 400 kg | C63: 069 | J63: 12 | K63: 12 | L63: 4 | R63: =F$24 -> Min. 75% uncertified solid wood | T63: =B$21 -> Between 30 kg and < 40 kg | X63: 061 | Y63: 2 | Z63: 2.4
A64: 070 | B64: Between 400 kg and < 450 kg | C64: 070 | J64: 16 | K64: 16 | L64: 4 | M64: mat | P64: Bedding | R64: =F$26 -> Min. 75% mix of certified solid wood and metal | T64: =B$22 -> Between 40 kg and < 60 kg | X64: 062 | Y64: 2.33 | Z64: 2.796
A65: 071 | B65: Between 450 kg and < 500 kg | C65: 071 | J65: 16 | K65: 16 | L65: 3 | M65: =COUNTA(INDIRECT(O65,FALSE)) -> 15 | N65: ="_"&O65 -> __010 | O65: ="_"&LEFT(P65,3) -> _010 | P65: =P$3 -> 010 - Slatted frame | R65: =F$27 -> Particleboard and/or wood and/or metal, more than 75% | T65: =B$23 -> Between 60 kg and < 100 kg | X65: 063 | Y65: 4 | Z65: 4.8
A66: 072 | B66: Between 500 kg and < 550 kg | C66: 072 | J66: 3 | K66: 3 | M66: 15 | N66: ="_"&O66 -> __013 | O66: ="_"&LEFT(P66,3) -> _013 | P66: =P$4 -> 013 - Electric or mechanically adjustable bed base | R66: =F$28 -> Particleboard, more than 75% | T66: =B$24 -> Between 100 kg and < 150 kg | X66: 064 | Y66: 4.33 | Z66: 5.196
A67: 073 | B67: Between 550 kg and < 600 kg | C67: 073 | M67: 15 | N67: __062 | O67: _062 | P67: =P$40 -> 062 - Bed base (excluding relaxation bed base and storage bed) | R67: =F$5 -> > 50% metal | S67: =IFERROR(VLOOKUP(RIGHT(R67,3),$M$3:$N$48,2,FALSE),"") ->  | T67: =B$25 -> Between 150 kg and < 200 kg | U67: =IFERROR(VLOOKUP(RIGHT(T67,3),$M$3:$N$48,2,FALSE),"") ->  | X67: 065 | Y67: 4.58 | Z67: 5.496
A68: 074 | B68: Between 600 kg and < 650 kg | C68: =A68 -> 074 | L68: =COUNTA(INDIRECT(N75,FALSE)) -> 32 | M68: 15 | N68: __024 | O68: _024 | P68: =P$12 -> 024 - Storage bed | R68: =F$25 -> Min. 75% metal | T68: =B$26 -> Between 200 kg and < 250 kg | X68: 066 | Y68: 7 | Z68: 8.4
A69: 075 | B69: Between 650 kg and < 700 kg | C69: 075 | K69: =L68*M75 -> 640 | L69: =COUNTA(INDIRECT(N76,FALSE)) -> 32 | M69: 4 | N69: __025 | O69: _025 | P69: =P$13 -> 025 - Bed legs | R69: =F$6 -> Bamboo/rattan | T69: =B$27 -> Between 250 kg and < 300 kg | X69: 067 | Y69: 7.08 | Z69: 8.496
A70: 076 | B70: Between 700 kg and < 750 kg | C70: 076 | K70: =L69*M76 -> 608 | L70: =COUNTA(INDIRECT(N77,FALSE)) -> 32 | M70: 4 | N70: __060 | O70: _060 | P70: =P$38 -> 060 - Mattress thickness ≤ 10 cm | R70: =F$7 -> > 50% biosourced materials or non-synthetic textiles | T70: =B$28 -> Between 300 kg and < 400 kg | X70: 068 | Y70: 7.92 | Z70: 9.504
A71: 077 | B71: Between 750 kg and < 800 kg | C71: 077 | K71: =L70*M77 -> 544 | L71: =COUNTA(INDIRECT(N78,FALSE)) -> 32 | M71: 4 | N71: __061 | O71: _061 | P71: =P$39 -> 061 - Mattress thickness > 10 cm | R71: =F$8 -> Plastics | T71: =B$29 -> Between 400 kg and < 500 kg | X71: 069 | Y71: 8.75 | Z71: 10.5
A72: 078 | B72: Between 800 kg and < 850 kg | C72: 078 | K72: =L71*M78 -> 544 | L72: =COUNTA(INDIRECT(N79,FALSE)) -> 32 | M72: 1 | N72: __023 | O72: _023 | P72: =P$11 -> 023 - Inflatable mattress | R72: =F$9 -> Textiles, leathers, furs | T72: =B$30 -> Between 500 kg and < 600 kg | X72: 070 | Y72: 9.17 | Z72: 11.004
A73: 079 | B73: Between 850 kg and < 900 kg | C73: 079 | K73: =L72*M79 -> 480 | R73: =F$10 -> Glass and mirrors | T73: =B$31 -> Between 600 kg and < 700 kg | X73: 071 | Y73: 9.58 | Z73: 11.496
A74: 080 | B74: Between 900 kg and < 950 kg | C74: 080 | P74: Living_room_dining_room_furniture | R74: =F$11 -> Inert, minerals | T74: =B$32 -> Between 700 kg and < 800 kg | X74: 072 | Y74: 12.5 | Z74: 15
A75: 081 | B75: Between 950 kg and < 1,000 kg | C75: 081 | L75: =COUNTA(INDIRECT(N82,FALSE)) -> 32 | M75: =COUNTA(INDIRECT(O75,FALSE)) -> 20 | N75: ="_"&O75 -> __017 | O75: ="_"&LEFT(P75,3) -> _017 | P75: =P$5 -> 017 - Storage units (excluding shelves) | R75: =F$18 -> Composites and compact | T75: =B$33 -> Between 800 kg and < 900 kg | X75: 073 | Y75: 17.5 | Z75: 21
A76: 082 | B76: Over 1,000 kg | C76: 082 | K76: =L75*M82 -> 640 | L76: 32 | M76: =COUNTA(INDIRECT(O76,FALSE)) -> 19 | N76: __019 | O76: _019 | P76: =P$7 -> 019 - Desks, tables, etc. | R76: =F$19 -> Artificial stone | T76: =B$34 -> Between 900 kg and < 1,000 kg | X76: 074 | Y76: 21.67 | Z76: 26.004
A77: 091 | B77: Strictly < 1 kg | C77: 091 | K77: 608 | L77: 32 | M77: =COUNTA(INDIRECT(O77,FALSE)) -> 17 | N77: __020 | O77: _020 | P77: =P$8 -> 020 - Shelves, panels | R77: =F$20 -> Cement, concrete | T77: =B$35 -> Between 1,000 kg and < 1,100 kg | X77: 075 | Y77: 26.67 | Z77: 32.004
A78: 092 | B78: ≥ 1 kg and < 3 kg | C78: 092 | K78: 544 | L78: 32 | M78: =COUNTA(INDIRECT(O78,FALSE)) -> 17 | N78: __021 | O78: _021 | P78: =P$9 -> 021 - Worktops | R78: =F$21 -> Ceramic | T78: =B$36 -> Between 1,100 kg and < 1,200 kg | X78: 076 | Y78: 36.67 | Z78: 44.004
A79: 093 | B79: > 3 kg | C79: 093 | K79: 544 | L79: 32 | M79: =COUNTA(INDIRECT(O79,FALSE)) -> 15 | N79: __022 | O79: _022 | P79: =P$10 -> 022 - Hardware (drawer handles, drawer railings, etc.) | R79: =F$22 -> Paper, cardboard | T79: =B$37 -> Between 1,200 kg and < 1,300 kg | X79: 077 | Y79: 41.67 | Z79: 50.004
A80: 901 | B80: from 0 to 60cm length, width above 25cm | C80: 901 | K80: 480 | L80: 32 | R80: =F$15 -> Other | T80: =B$38 -> Between 1,300 kg and < 1,400 kg | X80: 078 | Y80: 46.67 | Z80: 56.004
A81: 902 | B81: from 60 to 120cm length, width above 25cm | C81: 902 | K81: 640 | L81: 32 | P81: Side_furniture | T81: =B$39 -> Between 1,400 kg and < 1,500 kg | X81: 079 | Y81: 51.67 | Z81: 62.004
A82: 903 | B82: over 120cm length, width above 25cm | C82: 903 | K82: 64 | L82: 32 | M82: =COUNTA(INDIRECT(O82,FALSE)) -> 20 | N82: __017 | O82: _017 | P82: =P$5 -> 017 - Storage units (excluding shelves) | R82: _018 | S82: Bedroom furniture or furnishing items (bed frame, headboard, etc.) (N.B.: excludes mattresses and bed bases) | T82: =B$40 -> Between 1,500 kg and < 1,600 kg | X82: 080 | Y82: 61.67 | Z82: 74.004
A83: 904 | B83: from 0 to 60cm length, width above 25cm | C83: 904 | K83: 64 | M83: 19 | N83: __019 | O83: _019 | P83: =P$7 -> 019 - Desks, tables, etc. | R83: =F$4 -> > 50% wood, wood panels, and wood derivatives | T83: =B$41 -> Between 1,600 kg and < 1,700 kg | X83: 081 | Y83: 66.67 | Z83: 80.004
A84: 905 | B84: from 60 to 120cm length, width above 25cm | C84: 905 | M84: 17 | N84: __020 | O84: _020 | P84: =P$8 -> 020 - Shelves, panels | R84: =F$23 -> Min. 75% certified solid wood | T84: =B$42 -> Between 1,700 kg and < 1,800 kg | X84: 082 | Y84: 71.67 | Z84: 86.004
A85: 906 | B85: more than 120cm in length, width above 25cm | C85: 906 | L85: =COUNTA(INDIRECT(N92,FALSE)) -> 32 | M85: 17 | N85: __021 | O85: _021 | P85: =P$9 -> 021 - Worktops | R85: =F$24 -> Min. 75% uncertified solid wood | T85: =B$43 -> Between 1,800 kg and < 1,900 kg | X85: 083 | Y85: 76.67 | Z85: 92.004
A86: 909 | B86: sqm | C86: =A86 -> 909 | K86: =L85*M92 -> 640 | L86: 32 | M86: 15 | N86: __022 | O86: _022 | P86: =P$10 -> 022 - Hardware (drawer handles, drawer railings, etc.) | R86: =F$26 -> Min. 75% mix of certified solid wood and metal | T86: =B$44 -> Between 1,900 kg and < 2,000 kg | X86: 084 | Y86: 86.67 | Z86: 104.004
K87: 608 | L87: 32 | M87: 20 | N87: __034 | O87: _034 | P87: =P$20 -> 034 - Furniture for pets | R87: =F$27 -> Particleboard and/or wood and/or metal, more than 75% | T87: =B$45 -> Over 2,000 kg | X87: 085 | Y87: 91.67 | Z87: 110.004
K88: 608 | L88: 32 | M88: 2 | N88: __035 | O88: _035 | P88: =P$21 -> 035 - Furnishing fabrics | R88: =F$28 -> Particleboard, more than 75% | X88: 086 | Y88: 96.67 | Z88: 116.004
K89: 544 | L89: 32 | M89: 2 | N89: __036 | O89: _036 | P89: =P$22 -> 036 - Protective cover | R89: =F$5 -> > 50% metal | X89: 087 | Y89: 101.67 | Z89: 122.004
K90: 544 | L90: 32 | R90: =F$25 -> Min. 75% metal | T90: __018 | U90: Bedroom furniture or furnishing items (bed frame, headboard, etc.) (N.B.: excludes mattresses and bed bases) | X90: 088 | Y90: 106.67 | Z90: 128.004
K91: 480 | P91: Bedroom_furniture | R91: =F$6 -> Bamboo/rattan | T91: =B$14 -> Must not exceed 0.5 kg | X91: 089 | Y91: 3 | Z91: 3.6
M92: =COUNTA(INDIRECT(O92,FALSE)) -> 20 | N92: __017 | O92: _017 | P92: =P$5 -> 017 - Storage units (excluding shelves) | R92: =F$7 -> > 50% biosourced materials or non-synthetic textiles | T92: =B$15 -> Between 0.5 kg and < 1 kg | X92: 090 | Y92: 4.66 | Z92: 5.592
L93: =COUNTA(INDIRECT(N100,FALSE)) -> 32 | M93: 19 | N93: __018 | O93: _018 | P93: =P$6 -> 018 - Bedroom furniture or furnishing items (bed frame, headboard, etc.) (N.B.: excludes mattresses and bed bases) | R93: =F$8 -> Plastics | T93: =B$16 -> Between 1 kg and < 2 kg | X93: 091 | Y93: 5.84 | Z93: 7.008
K94: =L93*M100 -> 640 | L94: =COUNTA(INDIRECT(N101,FALSE)) -> 32 | M94: 19 | N94: __019 | O94: _019 | P94: =P$7 -> 019 - Desks, tables, etc. | R94: =F$10 -> Glass and mirrors | T94: =B$17 -> Between 2 kg and < 5 kg | X94: 094 | Y94: 0.1 | Z94: 0.12
K95: =L94*M101 -> 608 | L95: =COUNTA(INDIRECT(N102,FALSE)) -> 32 | M95: 17 | N95: __020 | O95: _020 | P95: =P$8 -> 020 - Shelves, panels | R95: =F$11 -> Inert, minerals | T95: =B$18 -> Between 5 kg and < 10 kg
K96: =L95*M102 -> 544 | L96: =COUNTA(INDIRECT(N103,FALSE)) -> 32 | M96: 17 | N96: __021 | O96: _021 | P96: =P$9 -> 021 - Worktops | R96: =F$18 -> Composites and compact | T96: =B$19 -> Between 10 kg and < 20 kg
K97: =L96*M103 -> 480 | L97: =COUNTA(INDIRECT(N104,FALSE)) -> 32 | M97: 15 | N97: __022 | O97: _022 | P97: =P$10 -> 022 - Hardware (drawer handles, drawer railings, etc.) | R97: =F$19 -> Artificial stone | T97: =B$20 -> Between 20 kg and < 30 kg
K98: =L97*M104 -> 544 | R98: =F$20 -> Cement, concrete | T98: =B$21 -> Between 30 kg and < 40 kg
P99: Office_furniture | R99: =F$21 -> Ceramic | T99: =B$22 -> Between 40 kg and < 60 kg
L100: =COUNTA(INDIRECT(N107,FALSE)) -> 32 | M100: =COUNTA(INDIRECT(O100,FALSE)) -> 20 | N100: __017 | O100: _017 | P100: =P$5 -> 017 - Storage units (excluding shelves) | R100: =F$22 -> Paper, cardboard | T100: =B$23 -> Between 60 kg and < 100 kg
K101: =L100*M107 -> 640 | L101: =COUNTA(INDIRECT(N108,FALSE)) -> 32 | M101: =COUNTA(INDIRECT(O101,FALSE)) -> 19 | N101: __019 | O101: _019 | P101: =P$7 -> 019 - Desks, tables, etc. | R101: =F$15 -> Other | T101: =B$24 -> Between 100 kg and < 150 kg
K102: =L101*M108 -> 608 | L102: =COUNTA(INDIRECT(N109,FALSE)) -> 32 | M102: =COUNTA(INDIRECT(O102,FALSE)) -> 17 | N102: __020 | O102: _020 | P102: =P$8 -> 020 - Shelves, panels | T102: =B$25 -> Between 150 kg and < 200 kg
K103: =L102*M109 -> 544 | L103: =COUNTA(INDIRECT(N110,FALSE)) -> 32 | M103: =COUNTA(INDIRECT(O103,FALSE)) -> 15 | N103: __022 | O103: _022 | P103: =P$10 -> 022 - Hardware (drawer handles, drawer railings, etc.) | R103: _019 | S103: Desks, tables, etc. | T103: =B$26 -> Between 200 kg and < 250 kg
K104: =L103*M110 -> 480 | L104: =COUNTA(INDIRECT(N111,FALSE)) -> 32 | M104: =COUNTA(INDIRECT(O104,FALSE)) -> 17 | N104: __021 | O104: _021 | P104: =P$9 -> 021 - Worktops | R104: =F$4 -> > 50% wood, wood panels, and wood derivatives | T104: =B$27 -> Between 250 kg and < 300 kg
K105: =L104*M111 -> 544 | R105: =F$23 -> Min. 75% certified solid wood | T105: =B$28 -> Between 300 kg and < 400 kg
P106: Kitchen_furniture | R106: =F$24 -> Min. 75% uncertified solid wood | T106: =B$29 -> Between 400 kg and < 500 kg
M107: =COUNTA(INDIRECT(O107,FALSE)) -> 20 | N107: __017 | O107: _017 | P107: =P$5 -> 017 - Storage units (excluding shelves) | R107: =F$26 -> Min. 75% mix of certified solid wood and metal | T107: =B$30 -> Between 500 kg and < 600 kg
L108: =COUNTA(INDIRECT(N115,FALSE)) -> 32 | M108: =COUNTA(INDIRECT(O108,FALSE)) -> 19 | N108: __019 | O108: _019 | P108: =P$7 -> 019 - Desks, tables, etc. | R108: =F$27 -> Particleboard and/or wood and/or metal, more than 75% | T108: =B$31 -> Between 600 kg and < 700 kg
K109: =L108*M115 -> 640 | L109: =COUNTA(INDIRECT(N116,FALSE)) -> 32 | M109: =COUNTA(INDIRECT(O109,FALSE)) -> 17 | N109: __020 | O109: _020 | P109: =P$8 -> 020 - Shelves, panels | R109: =F$28 -> Particleboard, more than 75% | T109: =B$32 -> Between 700 kg and < 800 kg
K110: =L109*M116 -> 608 | L110: =COUNTA(INDIRECT(N117,FALSE)) -> 32 | M110: =COUNTA(INDIRECT(O110,FALSE)) -> 15 | N110: __022 | O110: _022 | P110: =P$10 -> 022 - Hardware (drawer handles, drawer railings, etc.) | R110: =F$5 -> > 50% metal | T110: =B$33 -> Between 800 kg and < 900 kg
K111: =L110*M117 -> 544 | L111: =COUNTA(INDIRECT(N118,FALSE)) -> 32 | M111: =COUNTA(INDIRECT(O111,FALSE)) -> 17 | N111: __021 | O111: _021 | P111: =P$9 -> 021 - Worktops | R111: =F$25 -> Min. 75% metal | T111: =B$34 -> Between 900 kg and < 1,000 kg
K112: =L111*M118 -> 480 | L112: =COUNTA(INDIRECT(N119,FALSE)) -> 32 | R112: =F$6 -> Bamboo/rattan | T112: =B$35 -> Between 1,000 kg and < 1,100 kg
K113: =L112*M119 -> 544 | R113: =F$7 -> > 50% biosourced materials or non-synthetic textiles | T113: =B$36 -> Between 1,100 kg and < 1,200 kg
P114: Bathroom_furniture | R114: =F$8 -> Plastics | T114: =B$37 -> Between 1,200 kg and < 1,300 kg
M115: =COUNTA(INDIRECT(O115,FALSE)) -> 20 | N115: __017 | O115: _017 | P115: =P$5 -> 017 - Storage units (excluding shelves) | R115: =F$10 -> Glass and mirrors | T115: =B$38 -> Between 1,300 kg and < 1,400 kg
L116: =COUNTA(INDIRECT(N123,FALSE)) -> 32 | M116: =COUNTA(INDIRECT(O116,FALSE)) -> 19 | N116: __019 | O116: _019 | P116: =P$7 -> 019 - Desks, tables, etc. | R116: =F$11 -> Inert, minerals | T116: =B$39 -> Between 1,400 kg and < 1,500 kg
K117: =L116*M123 -> 640 | L117: =COUNTA(INDIRECT(N124,FALSE)) -> 32 | M117: =COUNTA(INDIRECT(O117,FALSE)) -> 17 | N117: __020 | O117: _020 | P117: =P$8 -> 020 - Shelves, panels | R117: =F$18 -> Composites and compact | T117: =B$40 -> Between 1,500 kg and < 1,600 kg
K118: =L117*M124 -> 608 | L118: =COUNTA(INDIRECT(N125,FALSE)) -> 32 | M118: =COUNTA(INDIRECT(O118,FALSE)) -> 15 | N118: __022 | O118: _022 | P118: =P$10 -> 022 - Hardware (drawer handles, drawer railings, etc.) | R118: =F$19 -> Artificial stone | T118: =B$41 -> Between 1,600 kg and < 1,700 kg
K119: =L118*M125 -> 480 | L119: =COUNTA(INDIRECT(N126,FALSE)) -> 32 | M119: =COUNTA(INDIRECT(O119,FALSE)) -> 17 | N119: __021 | O119: _021 | P119: =P$9 -> 021 - Worktops | R119: =F$20 -> Cement, concrete | T119: =B$42 -> Between 1,700 kg and < 1,800 kg
K120: =L119*M126 -> 64 | R120: =F$21 -> Ceramic | T120: =B$43 -> Between 1,800 kg and < 1,900 kg
R121: =F$22 -> Paper, cardboard | T121: =B$44 -> Between 1,900 kg and < 2,000 kg
P122: Garden_furniture | R122: =F$15 -> Other | T122: =B$45 -> Over 2,000 kg
M123: =COUNTA(INDIRECT(O123,FALSE)) -> 20 | N123: __017 | O123: _017 | P123: =P$5 -> 017 - Storage units (excluding shelves)
M124: =COUNTA(INDIRECT(O124,FALSE)) -> 19 | N124: __019 | O124: _019 | P124: =P$7 -> 019 - Desks, tables, etc. | R124: _020 | S124: Shelves, panels | T124: __019 | U124: Desks, tables, etc.
L125: =COUNTA(INDIRECT(N132,FALSE)) -> 32 | M125: =COUNTA(INDIRECT(O125,FALSE)) -> 15 | N125: __022 | O125: _022 | P125: =P$10 -> 022 - Hardware (drawer handles, drawer railings, etc.) | R125: =F$4 -> > 50% wood, wood panels, and wood derivatives | T125: =B$14 -> Must not exceed 0.5 kg
K126: =L125*M132 -> 640 | L126: =COUNTA(INDIRECT(N133,FALSE)) -> 32 | M126: =COUNTA(INDIRECT(O126,FALSE)) -> 2 | N126: __036 | O126: _036 | P126: =P$22 -> 036 - Protective cover | R126: =F$23 -> Min. 75% certified solid wood | T126: =B$15 -> Between 0.5 kg and < 1 kg
K127: =L126*M133 -> 608 | L127: =COUNTA(INDIRECT(N134,FALSE)) -> 32 | R127: =F$24 -> Min. 75% uncertified solid wood | T127: =B$16 -> Between 1 kg and < 2 kg
K128: =L127*M134 -> 544 | L128: =COUNTA(INDIRECT(N135,FALSE)) -> 32 | P128: Furniture_Combination | R128: =F$26 -> Min. 75% mix of certified solid wood and metal | T128: =B$17 -> Between 2 kg and < 5 kg
K129: =L128*M135 -> 480 | L129: =COUNTA(INDIRECT(N136,FALSE)) -> 32 | P129: =P$49 -> 038 - Shelves (cut to size) | R129: =F$27 -> Particleboard and/or wood and/or metal, more than 75% | T129: =B$18 -> Between 5 kg and < 10 kg
K130: =L129*M136 -> 544 | R130: =F$28 -> Particleboard, more than 75% | T130: =B$19 -> Between 10 kg and < 20 kg
P131: Technical_furniture | R131: =F$5 -> > 50% metal | S131: =IFERROR(VLOOKUP(RIGHT(R131,3),$M$3:$N$48,2,FALSE),"") ->  | T131: =B$20 -> Between 20 kg and < 30 kg | U131: =IFERROR(VLOOKUP(RIGHT(T131,3),$M$3:$N$48,2,FALSE),"") -> 
M132: =COUNTA(INDIRECT(O132,FALSE)) -> 20 | N132: ="_"&O132 -> __017 | O132: _017 | P132: =P$5 -> 017 - Storage units (excluding shelves) | R132: =F$25 -> Min. 75% metal | T132: =B$21 -> Between 30 kg and < 40 kg
L133: =COUNTA(INDIRECT(N140,FALSE)) -> 3 | M133: =COUNTA(INDIRECT(O133,FALSE)) -> 19 | N133: __019 | O133: _019 | P133: =P$7 -> 019 - Desks, tables, etc. | R133: =F$8 -> Plastics | T133: =B$22 -> Between 40 kg and < 60 kg
K134: =L133*M140 -> 9 | L134: 4 | M134: =COUNTA(INDIRECT(O134,FALSE)) -> 17 | N134: __020 | O134: _020 | P134: =P$8 -> 020 - Shelves, panels | R134: =F$10 -> Glass and mirrors | T134: =B$23 -> Between 60 kg and < 100 kg
K135: 12 | L135: 1 | M135: =COUNTA(INDIRECT(O135,FALSE)) -> 15 | N135: __022 | O135: ="_"&LEFT(P135,3) -> _022 | P135: =P$10 -> 022 - Hardware (drawer handles, drawer railings, etc.) | R135: =F$11 -> Inert, minerals | T135: =B$24 -> Between 100 kg and < 150 kg
K136: 3 | L136: 2 | M136: =COUNTA(INDIRECT(O136,FALSE)) -> 17 | N136: __021 | O136: _021 | P136: =P$9 -> 021 - Worktops | R136: =F$18 -> Composites and compact | T136: =B$25 -> Between 150 kg and < 200 kg
K137: 6 | L137: 2 | R137: =F$19 -> Artificial stone | T137: =B$26 -> Between 200 kg and < 250 kg
K138: 6 | L138: 1 | R138: =F$20 -> Cement, concrete | T138: =B$27 -> Between 250 kg and < 300 kg
K139: 3 | P139: Stuffed_articles_seat_couching | R139: =F$21 -> Ceramic | T139: =B$28 -> Between 300 kg and < 400 kg
M140: =COUNTA(INDIRECT(O140,FALSE)) -> 3 | N140: __028 | O140: _028 | P140: =P$14 -> 028 - Padded mattress topper, non-bedding type | R140: =F$22 -> Paper, cardboard | T140: =B$29 -> Between 400 kg and < 500 kg
L141: =COUNTA(INDIRECT(N148,FALSE)) -> 38 | M141: 3 | N141: __029 | O141: _029 | P141: =P$15 -> 029 - Duvet/Quilt | R141: =F$15 -> Other | T141: =B$30 -> Between 500 kg and < 600 kg
J142: =798-K142 -> 646 | K142: =L141*M148 -> 152 | L142: 38 | M142: 3 | N142: __030 | O142: _030 | P142: =P$16 -> 030 - Sleeping bag | T142: =B$31 -> Between 600 kg and < 700 kg
J143: =798-K143 -> 646 | K143: 152 | L143: 38 | M143: 3 | N143: __031 | O143: _031 | P143: =P$17 -> 031 - Pillow/Bolster | R143: _021 | S143: Worktops | T143: =B$32 -> Between 700 kg and < 800 kg
J144: =798-K144 -> 646 | K144: 152 | L144: 38 | M144: 3 | N144: __032 | O144: _032 | P144: =P$18 -> 032 - Cushion, seat cushion | R144: =F$4 -> > 50% wood, wood panels, and wood derivatives | T144: =B$33 -> Between 800 kg and < 900 kg
K145: 798 | L145: 38 | M145: 3 | N145: __033 | O145: _033 | P145: =P$19 -> 033 - Other padded seating and bedding items | R145: =F$23 -> Min. 75% certified solid wood | T145: =B$34 -> Between 900 kg and < 1,000 kg
K146: 798 | L146: 38 | R146: =F$24 -> Min. 75% uncertified solid wood | T146: =B$35 -> Between 1,000 kg and < 1,100 kg
K147: 798 | L147: 38 | P147: Seating | R147: =F$26 -> Min. 75% mix of certified solid wood and metal | T147: =B$36 -> Between 1,100 kg and < 1,200 kg
K148: 798 | L148: 38 | M148: =COUNTA(INDIRECT(O148,FALSE)) -> 4 | N148: __040 | O148: _040 | P148: =P$24 -> 040 - 1-person seat without structure | R148: =F$27 -> Particleboard and/or wood and/or metal, more than 75% | T148: =B$37 -> Between 1,200 kg and < 1,300 kg
K149: 798 | L149: 38 | M149: 4 | N149: __041 | O149: _041 | P149: =P$25 -> 041 - 2-person seat without structure | R149: =F$28 -> Particleboard, more than 75% | T149: =B$38 -> Between 1,300 kg and < 1,400 kg
K150: 798 | L150: 38 | M150: 4 | N150: __042 | O150: _042 | P150: =P$26 -> 042 - Seat without structure for more than 2 people | R150: =F$5 -> > 50% metal | T150: =B$39 -> Between 1,400 kg and < 1,500 kg
K151: 798 | L151: 38 | M151: 21 | N151: __043 | O151: _043 | P151: =P$27 -> 043 - 1-person non-convertible seat | R151: =F$25 -> Min. 75% metal | T151: =B$40 -> Between 1,500 kg and < 1,600 kg
K152: 798 | L152: 38 | M152: 21 | N152: __044 | O152: _044 | P152: =P$28 -> 044 - 2-person non-convertible seat | R152: =F$8 -> Plastics | T152: =B$41 -> Between 1,600 kg and < 1,700 kg
K153: 798 | L153: 38 | M153: 21 | N153: __045 | O153: _045 | P153: =P$29 -> 045 - Non-convertible seat for more than 2 people | R153: =F$10 -> Glass and mirrors | T153: =B$42 -> Between 1,700 kg and < 1,800 kg
K154: 798 | L154: 38 | M154: 21 | N154: __046 | O154: _046 | P154: =P$30 -> 046 - 1-person convertible seat | R154: =F$11 -> Inert, minerals | T154: =B$43 -> Between 1,800 kg and < 1,900 kg
K155: 38 | L155: 38 | M155: 21 | N155: __047 | O155: _047 | P155: =P$31 -> 047 - 2-person convertible seat | R155: =F$18 -> Composites and compact | T155: =B$44 -> Between 1,900 kg and < 2,000 kg
K156: 798 | M156: 21 | N156: __048 | O156: _048 | P156: =P$32 -> 048 - Convertible seat for more than 2 people | R156: =F$19 -> Artificial stone | T156: =B$45 -> Over 2,000 kg
M157: 21 | N157: __049 | O157: _049 | P157: =P$33 -> 049 - 1-person electric/adjustable seat | R157: =F$20 -> Cement, concrete
M158: 21 | N158: __050 | O158: _050 | P158: =P$34 -> 050 - 2-person electric/adjustable seat | R158: =F$21 -> Ceramic | T158: __020 | U158: Shelves, panels
M159: 21 | N159: __051 | O159: _051 | P159: =P$35 -> 051 - Electric/adjustable seat for more than 2 people | R159: =F$22 -> Paper, cardboard | T159: =B$14 -> Must not exceed 0.5 kg
L160: =COUNTA(INDIRECT(N167,FALSE)) -> 6 | M160: 21 | N160: __052 | O160: _052 | P160: =P$36 -> 052 - Other accessory, seat part, hammock stand | R160: =F$15 -> Other | T160: =B$15 -> Between 0.5 kg and < 1 kg
K161: =L160*M167 -> 24 | L161: =COUNTA(INDIRECT(N168,FALSE)) -> 6 | M161: 1 | N161: __053 | O161: _053 | P161: =P$37 -> 053 - Inflatable seat | T161: =B$16 -> Between 1 kg and < 2 kg
K162: =L161*M168 -> 30 | L162: =COUNTA(INDIRECT(N169,FALSE)) -> 32 | M162: 21 | N162: __003 | O162: _003 | P162: =P$48 -> 003 - Height-adjustable 1-person swivel chair | R162: _022 | S162: Hardware (drawer handles, drawer railings, etc.) | T162: =B$17 -> Between 2 kg and < 5 kg
K163: =L162*M169 -> 64 | R163: =F$4 -> > 50% wood, wood panels, and wood derivatives | T163: =B$18 -> Between 5 kg and < 10 kg
R164: =F$23 -> Min. 75% certified solid wood | T164: =B$19 -> Between 10 kg and < 20 kg
R165: =F$24 -> Min. 75% uncertified solid wood | T165: =B$20 -> Between 20 kg and < 30 kg
P166: Dimension | R166: =F$26 -> Min. 75% mix of certified solid wood and metal | T166: =B$21 -> Between 30 kg and < 40 kg
M167: =COUNTA(INDIRECT(O167,FALSE)) -> 4 | N167: ="_"&O167 -> __038 | O167: ="_"&LEFT(P167,3) -> _038 | P167: =P49 -> 038 - Shelves (cut to size) | R167: =F$27 -> Particleboard and/or wood and/or metal, more than 75% | T167: =B$22 -> Between 40 kg and < 60 kg
M168: =COUNTA(INDIRECT(O168,FALSE)) -> 5 | N168: ="_"&O168 -> __039 | O168: _039 | P168: =P50 -> 039 - Panels (cut to size) | R168: =F$28 -> Particleboard, more than 75% | T168: =B$23 -> Between 60 kg and < 100 kg
M169: =COUNTA(INDIRECT(O169,FALSE)) -> 2 | N169: __035 | O169: _035 | P169: =P$21 -> 035 - Furnishing fabrics | R169: =F$5 -> > 50% metal | T169: =B$24 -> Between 100 kg and < 150 kg
N170: __073 | O170: _073 | P170: =P$44 -> 073 - Removable carpets | R170: =F$25 -> Min. 75% metal | T170: =B$25 -> Between 150 kg and < 200 kg
N171: __074 | O171: _074 | P171: =P$45 -> 074 - Other small decorative items (macramé, decorative garlands, etc.) | R171: =F$8 -> Plastics | T171: =B$26 -> Between 200 kg and < 250 kg
R172: =F$18 -> Composites and compact | T172: =B$27 -> Between 250 kg and < 300 kg
R173: =F$19 -> Artificial stone | T173: =B$28 -> Between 300 kg and < 400 kg
R174: =F$20 -> Cement, concrete | T174: =B$29 -> Between 400 kg and < 500 kg
P175: Textile_decoration_articles | R175: =F$21 -> Ceramic | T175: =B$30 -> Between 500 kg and < 600 kg
M176: =COUNTA(INDIRECT(O176,FALSE)) -> 5 | N176: ="_"&O176 -> __070 | O176: ="_"&LEFT(P176,3) -> _070 | P176: =P41 -> 070 - Decorative rugs | R176: =F$22 -> Paper, cardboard | T176: =B$31 -> Between 600 kg and < 700 kg
M177: =COUNTA(INDIRECT(O177,FALSE)) -> 5 | N177: __071 | O177: _071 | P177: 071 - Functional mats / doormats / outdoors mat | R177: =F$15 -> Other | T177: =B$32 -> Between 700 kg and < 800 kg
M178: =COUNTA(INDIRECT(O178,FALSE)) -> 5 | N178: __072 | O178: _072 | P178: 072 - Interior textile blinds / curtains / net curtains | T178: =B$33 -> Between 800 kg and < 900 kg
M179: =COUNTA(INDIRECT(#REF!,FALSE)) -> 1 | N179: ="_"&O180 -> __074 | O179: ="_"&LEFT(P179,3) -> _073 | P179: 073 - Removable carpets | R179: _000 | T179: =B$34 -> Between 900 kg and < 1,000 kg
M180: =COUNTA(INDIRECT(O180,FALSE)) -> 5 | N180: ="_"&O181 -> __075 | O180: ="_"&LEFT(P180,3) -> _074 | P180: 074 - Other small decorative items (macramé, decorative garlands, etc.) | R180: =F$15 -> Other | T180: =B$35 -> Between 1,000 kg and < 1,100 kg
O181: ="_"&LEFT(P181,3) -> _075 | P181: 075 - Accessories for decorative textile items (rods, etc.) | T181: =B$36 -> Between 1,100 kg and < 1,200 kg
O182: ="_"&LEFT(P182,3) -> _076 | P182: 076 - Decorative wall frames | R182: _023 | S182: Inflatable mattress | T182: =B$37 -> Between 1,200 kg and < 1,300 kg
R183: =F$3 -> Unknown | T183: =B$38 -> Between 1,300 kg and < 1,400 kg
T184: =B$39 -> Between 1,400 kg and < 1,500 kg
R185: _024 | S185: Storage bed | T185: =B$40 -> Between 1,500 kg and < 1,600 kg
R186: =F$3 -> Unknown | T186: =B$41 -> Between 1,600 kg and < 1,700 kg
R187: =F$4 -> > 50% wood, wood panels, and wood derivatives | T187: =B$42 -> Between 1,700 kg and < 1,800 kg
R188: =F$23 -> Min. 75% certified solid wood | T188: =B$43 -> Between 1,800 kg and < 1,900 kg
R189: =F$24 -> Min. 75% uncertified solid wood | T189: =B$44 -> Between 1,900 kg and < 2,000 kg
R190: =F$26 -> Min. 75% mix of certified solid wood and metal | T190: =B$45 -> Over 2,000 kg
R191: =F$27 -> Particleboard and/or wood and/or metal, more than 75%
R192: =F$28 -> Particleboard, more than 75% | T192: __021 | U192: Worktops
R193: =F$5 -> > 50% metal | T193: =B$14 -> Must not exceed 0.5 kg
R194: =F$25 -> Min. 75% metal | T194: =B$15 -> Between 0.5 kg and < 1 kg
R195: =F$6 -> Bamboo/rattan | S195: =IFERROR(VLOOKUP(RIGHT(R195,3),$M$3:$N$48,2,FALSE),"") ->  | T195: =B$16 -> Between 1 kg and < 2 kg | U195: =IFERROR(VLOOKUP(RIGHT(T195,3),$M$3:$N$48,2,FALSE),"") -> 
R196: =F$7 -> > 50% biosourced materials or non-synthetic textiles | T196: =B$17 -> Between 2 kg and < 5 kg
R197: =F$8 -> Plastics | T197: =B$18 -> Between 5 kg and < 10 kg
R198: =F$15 -> Other | T198: =B$19 -> Between 10 kg and < 20 kg
R199: =F$16 -> Natural stuffing (down, wool, etc.) | T199: =B$20 -> Between 20 kg and < 30 kg
R200: =F$17 -> Synthetic stuffing (foam, polyester, etc.) | T200: =B$21 -> Between 30 kg and < 40 kg
... 852 more rows

Sheet Carpet panel generator
A1: Product code generator : panels, carpets and fabrics | H1: MASQUER | I1: MASQUER | J1: MASQUER | K1: MASQUER | L1: MASQUER_F | M1: MASQUER_F | N1: MASQUER_F
A2: Select the elements in the brown boxes
A5: =1&" - Choose a category: " -> 1 - Choose a category: | H5: =LEFT(A5,1)+0 -> 1
E7: _d | G7: =IF(D7="","",LEFT(D7,5)) ->  | I7: =CONCATENATE(E7,G7,) -> _d | J7: __ | K7: =CONCATENATE(J7,I7) -> ___d
A9: =H5+1&" - Choose a majority material - by weight: " -> 2 - Choose a majority material - by weight: | H9: =LEFT(A9,1)+0 -> 2
D10: Je connais la tranche de poids
I11: =VLOOKUP(D11,Masked_lists!$AI$2:$AJ$3,2,FALSE) ->  | J11: =IF(AND(I11="Abs",#REF!="Literie"),"Abs_Lit",IF(AND(I11="Pre",#REF!="Literie"),"Pre_Lit","")) -> 
A13: =IFERROR(IF(I11="Abs","Précisez le matériau majoritaire :","Précisez le rembourrage :"),"") ->  | G13: =IF(D13="","",VLOOKUP(D13,Liste_masquée_dimension!F71:G100,2,FALSE)) -> 
A15: =H9+1&" - Choose thesize according to the type of product:" -> 3 - Choose thesize according to the type of product: | H15: =LEFT(A15,1)+0 -> 3
G17: =IF(D17="","",VLOOKUP(D17,Liste_masquée_dimension!$B$71:$C$80,2,FALSE)) -> 
A19: Resulting in product code:
D21: =IF(OR(D17="",D13="",D7="",),"",CONCATENATE(G7,G13,G17,0)) -> 
A24: Eco-fee for 2020 and beyond (€/article on the market): | G24: and its associated eco-fee code:
A26: you can configure this | B26: VAT rate | D26: =IFERROR(VLOOKUP($D$21,'Code per size'!A2:C65,3,FALSE),"") ->  | G26: =IFERROR(VLOOKUP($D$21,'Code per size'!$A$1:$E$468,4,FALSE),"") -> 
B27: 0.2 | D27: =IF(D26="","",IF(B27=20%,VLOOKUP($D$21,'Code per size'!$A$1:$E$65,5,FALSE),D26*(1+$B$27))) -> 
A29: Pour information, le code douanier tel qu'il sera transmis à l'ADEME:
G30: Remarque :
D31: =IF(D21="","",VLOOKUP(D21,'Code per size'!$A$1:$E$63,6,FALSE)) ->  | F31: Certains codes douaniers "factices" ont été créés pour les besoins de la déclaration à l'ADEME, en accord avec eux.
D32: =IF(D21="","",VLOOKUP(D21,'Code per size'!$A$1:$E$63,6,FALSE)) -> 
A37: NB :
A38: Remember to click on “RESET” before generating a new code. the eco-fee amount including VAT is given by way of information only; the applicable pricing scale is the excluding VAT scale.

Sheet Ecofees
A1: Category code | B1: Category label | C1: Product type code | D1: Label Type | E1: Material code | F1: Material label | G1: Caracteristic code | H1: Caracteristic label | I1: Ecofee index | J1: Product code | K1: Product description | L1: Eco-fee ex VAT | M1: Eco part Code | N1: Eco-fee inc VAT | O1: 0
A2: =MID(J2,1,2) -> 01 | B2: =VLOOKUP(A2,'Understanding the coding'!$B$11:$C$23,2,FALSE) -> Living_room_lounge_dining_room_furniture | C2: =MID(J2,3,3) -> 017 | D2: =VLOOKUP(C2,'Understanding the coding'!$E$11:$F$56,2,FALSE) -> Storage units (excluding shelves) | E2: =MID(J2,6,2) -> 01 | F2: =VLOOKUP(E2,'Understanding the coding'!$H$11:$I$43,2,FALSE) -> > 50% wood, wood panels, and wood derivatives | G2: =MID(J2,8,3) -> 020 | H2: =VLOOKUP(G2,'Understanding the coding'!$K$11:$L$96,2,FALSE) -> Must not exceed 0.5 kg | J2: 01017010200 | K2: =CONCATENATE(Tableau13[[#This Row],[Category label]],", ",Tableau13[[#This Row],[Label Type]],", ",Tableau13[[#This Row],[Material label]]," ,",Tableau13[[#This Row],[Caracteristic label]]) -> Living_room_lounge_dining_room_furniture, Storage units (excluding shelves), > 50% wood, wood panels, and wood derivatives ,Must not exceed 0.5 kg | L2: 0.03 | M2: 092 | N2: 0.04
A3: 01 | B3: =VLOOKUP(A3,'Understanding the coding'!$B$11:$C$23,2,FALSE) -> Living_room_lounge_dining_room_furniture | C3: 017 | D3: =VLOOKUP(C3,'Understanding the coding'!$E$11:$F$56,2,FALSE) -> Storage units (excluding shelves) | E3: 01 | F3: =VLOOKUP(E3,'Understanding the coding'!$H$11:$I$43,2,FALSE) -> > 50% wood, wood panels, and wood derivatives | G3: 021 | H3: =VLOOKUP(G3,'Understanding the coding'!$K$11:$L$96,2,FALSE) -> Between 0.5 kg and < 1 kg | J3: 01017010210 | K3: =CONCATENATE(Tableau13[[#This Row],[Category label]],", ",Tableau13[[#This Row],[Label Type]],", ",Tableau13[[#This Row],[Material label]]," ,",Tableau13[[#This Row],[Caracteristic label]]) -> Living_room_lounge_dining_room_furniture, Storage units (excluding shelves), > 50% wood, wood panels, and wood derivatives ,Between 0.5 kg and < 1 kg | L3: 0.08 | M3: 003 | N3: 0.1
A4: 01 | B4: =VLOOKUP(A4,'Understanding the coding'!$B$11:$C$23,2,FALSE) -> Living_room_lounge_dining_room_furniture | C4: 017 | D4: =VLOOKUP(C4,'Understanding the coding'!$E$11:$F$56,2,FALSE) -> Storage units (excluding shelves) | E4: 01 | F4: =VLOOKUP(E4,'Understanding the coding'!$H$11:$I$43,2,FALSE) -> > 50% wood, wood panels, and wood derivatives | G4: 022 | H4: =VLOOKUP(G4,'Understanding the coding'!$K$11:$L$96,2,FALSE) -> Between 1 kg and < 2 kg | J4: 01017010220 | K4: =CONCATENATE(Tableau13[[#This Row],[Category label]],", ",Tableau13[[#This Row],[Label Type]],", ",Tableau13[[#This Row],[Material label]]," ,",Tableau13[[#This Row],[Caracteristic label]]) -> Living_room_lounge_dining_room_furniture, Storage units (excluding shelves), > 50% wood, wood panels, and wood derivatives ,Between 1 kg and < 2 kg | L4: 0.14 | M4: 098 | N4: 0.17
A5: 01 | B5: =VLOOKUP(A5,'Understanding the coding'!$B$11:$C$23,2,FALSE) -> Living_room_lounge_dining_room_furniture | C5: 017 | D5: =VLOOKUP(C5,'Understanding the coding'!$E$11:$F$56,2,FALSE) -> Storage units (excluding shelves) | E5: 01 | F5: =VLOOKUP(E5,'Understanding the coding'!$H$11:$I$43,2,FALSE) -> > 50% wood, wood panels, and wood derivatives | G5: 023 | H5: =VLOOKUP(G5,'Understanding the coding'!$K$11:$L$96,2,FALSE) -> Between 2 kg and < 5 kg | J5: 01017010230 | K5: =CONCATENATE(Tableau13[[#This Row],[Category label]],", ",Tableau13[[#This Row],[Label Type]],", ",Tableau13[[#This Row],[Material label]]," ,",Tableau13[[#This Row],[Caracteristic label]]) -> Living_room_lounge_dining_room_furniture, Storage units (excluding shelves), > 50% wood, wood panels, and wood derivatives ,Between 2 kg and < 5 kg | L5: 0.27 | M5: 103 | N5: 0.32
A6: 01 | B6: =VLOOKUP(A6,'Understanding the coding'!$B$11:$C$23,2,FALSE) -> Living_room_lounge_dining_room_furniture | C6: 017 | D6: =VLOOKUP(C6,'Understanding the coding'!$E$11:$F$56,2,FALSE) -> Storage units (excluding shelves) | E6: 01 | F6: =VLOOKUP(E6,'Understanding the coding'!$H$11:$I$43,2,FALSE) -> > 50% wood, wood panels, and wood derivatives | G6: 024 | H6: =VLOOKUP(G6,'Understanding the coding'!$K$11:$L$96,2,FALSE) -> Between 5 kg and < 10 kg | J6: 01017010240 | K6: =CONCATENATE(Tableau13[[#This Row],[Category label]],", ",Tableau13[[#This Row],[Label Type]],", ",Tableau13[[#This Row],[Material label]]," ,",Tableau13[[#This Row],[Caracteristic label]]) -> Living_room_lounge_dining_room_furniture, Storage units (excluding shelves), > 50% wood, wood panels, and wood derivatives ,Between 5 kg and < 10 kg | L6: 0.68 | M6: 044 | N6: 0.82
A7: 01 | B7: =VLOOKUP(A7,'Understanding the coding'!$B$11:$C$23,2,FALSE) -> Living_room_lounge_dining_room_furniture | C7: 017 | D7: =VLOOKUP(C7,'Understanding the coding'!$E$11:$F$56,2,FALSE) -> Storage units (excluding shelves) | E7: 01 | F7: =VLOOKUP(E7,'Understanding the coding'!$H$11:$I$43,2,FALSE) -> > 50% wood, wood panels, and wood derivatives | G7: 025 | H7: =VLOOKUP(G7,'Understanding the coding'!$K$11:$L$96,2,FALSE) -> Between 10 kg and < 20 kg | J7: 01017010250 | K7: =CONCATENATE(Tableau13[[#This Row],[Category label]],", ",Tableau13[[#This Row],[Label Type]],", ",Tableau13[[#This Row],[Material label]]," ,",Tableau13[[#This Row],[Caracteristic label]]) -> Living_room_lounge_dining_room_furniture, Storage units (excluding shelves), > 50% wood, wood panels, and wood derivatives ,Between 10 kg and < 20 kg | L7: 1.5 | M7: 059 | N7: 1.8
A8: 01 | B8: =VLOOKUP(A8,'Understanding the coding'!$B$11:$C$23,2,FALSE) -> Living_room_lounge_dining_room_furniture | C8: 017 | D8: =VLOOKUP(C8,'Understanding the coding'!$E$11:$F$56,2,FALSE) -> Storage units (excluding shelves) | E8: 01 | F8: =VLOOKUP(E8,'Understanding the coding'!$H$11:$I$43,2,FALSE) -> > 50% wood, wood panels, and wood derivatives | G8: 026 | H8: =VLOOKUP(G8,'Understanding the coding'!$K$11:$L$96,2,FALSE) -> Between 20 kg and < 30 kg | J8: 01017010260 | K8: =CONCATENATE(Tableau13[[#This Row],[Category label]],", ",Tableau13[[#This Row],[Label Type]],", ",Tableau13[[#This Row],[Material label]]," ,",Tableau13[[#This Row],[Caracteristic label]]) -> Living_room_lounge_dining_room_furniture, Storage units (excluding shelves), > 50% wood, wood panels, and wood derivatives ,Between 20 kg and < 30 kg | L8: 2.33 | M8: 062 | N8: 2.8
A9: 01 | B9: =VLOOKUP(A9,'Understanding the coding'!$B$11:$C$23,2,FALSE) -> Living_room_lounge_dining_room_furniture | C9: 017 | D9: =VLOOKUP(C9,'Understanding the coding'!$E$11:$F$56,2,FALSE) -> Storage units (excluding shelves) | E9: 01 | F9: =VLOOKUP(E9,'Understanding the coding'!$H$11:$I$43,2,FALSE) -> > 50% wood, wood panels, and wood derivatives | G9: 027 | H9: =VLOOKUP(G9,'Understanding the coding'!$K$11:$L$96,2,FALSE) -> Between 30 kg and < 40 kg | J9: 01017010270 | K9: =CONCATENATE(Tableau13[[#This Row],[Category label]],", ",Tableau13[[#This Row],[Label Type]],", ",Tableau13[[#This Row],[Material label]]," ,",Tableau13[[#This Row],[Caracteristic label]]) -> Living_room_lounge_dining_room_furniture, Storage units (excluding shelves), > 50% wood, wood panels, and wood derivatives ,Between 30 kg and < 40 kg | L9: 3.25 | M9: 122 | N9: 3.9
A10: 01 | B10: =VLOOKUP(A10,'Understanding the coding'!$B$11:$C$23,2,FALSE) -> Living_room_lounge_dining_room_furniture | C10: 017 | D10: =VLOOKUP(C10,'Understanding the coding'!$E$11:$F$56,2,FALSE) -> Storage units (excluding shelves) | E10: 01 | F10: =VLOOKUP(E10,'Understanding the coding'!$H$11:$I$43,2,FALSE) -> > 50% wood, wood panels, and wood derivatives | G10: 028 | H10: =VLOOKUP(G10,'Understanding the coding'!$K$11:$L$96,2,FALSE) -> Between 40 kg and < 60 kg | J10: 01017010280 | K10: =CONCATENATE(Tableau13[[#This Row],[Category label]],", ",Tableau13[[#This Row],[Label Type]],", ",Tableau13[[#This Row],[Material label]]," ,",Tableau13[[#This Row],[Caracteristic label]]) -> Living_room_lounge_dining_room_furniture, Storage units (excluding shelves), > 50% wood, wood panels, and wood derivatives ,Between 40 kg and < 60 kg | L10: 4.42 | M10: 126 | N10: 5.3
A11: 01 | B11: =VLOOKUP(A11,'Understanding the coding'!$B$11:$C$23,2,FALSE) -> Living_room_lounge_dining_room_furniture | C11: 017 | D11: =VLOOKUP(C11,'Understanding the coding'!$E$11:$F$56,2,FALSE) -> Storage units (excluding shelves) | E11: 01 | F11: =VLOOKUP(E11,'Understanding the coding'!$H$11:$I$43,2,FALSE) -> > 50% wood, wood panels, and wood derivatives | G11: 029 | H11: =VLOOKUP(G11,'Understanding the coding'!$K$11:$L$96,2,FALSE) -> Between 60 kg and < 100 kg | J11: 01017010290 | K11: =CONCATENATE(Tableau13[[#This Row],[Category label]],", ",Tableau13[[#This Row],[Label Type]],", ",Tableau13[[#This Row],[Material label]]," ,",Tableau13[[#This Row],[Caracteristic label]]) -> Living_room_lounge_dining_room_furniture, Storage units (excluding shelves), > 50% wood, wood panels, and wood derivatives ,Between 60 kg and < 100 kg | L11: 7.08 | M11: 067 | N11: 8.5
A12: 01 | B12: =VLOOKUP(A12,'Understanding the coding'!$B$11:$C$23,2,FALSE) -> Living_room_lounge_dining_room_furniture | C12: 017 | D12: =VLOOKUP(C12,'Understanding the coding'!$E$11:$F$56,2,FALSE) -> Storage units (excluding shelves) | E12: 01 | F12: =VLOOKUP(E12,'Understanding the coding'!$H$11:$I$43,2,FALSE) -> > 50% wood, wood panels, and wood derivatives | G12: 030 | H12: =VLOOKUP(G12,'Understanding the coding'!$K$11:$L$96,2,FALSE) -> Between 100 kg and < 150 kg | J12: 01017010300 | K12: =CONCATENATE(Tableau13[[#This Row],[Category label]],", ",Tableau13[[#This Row],[Label Type]],", ",Tableau13[[#This Row],[Material label]]," ,",Tableau13[[#This Row],[Caracteristic label]]) -> Living_room_lounge_dining_room_furniture, Storage units (excluding shelves), > 50% wood, wood panels, and wood derivatives ,Between 100 kg and < 150 kg | L12: 12.5 | M12: 072 | N12: 15
A13: 01 | B13: =VLOOKUP(A13,'Understanding the coding'!$B$11:$C$23,2,FALSE) -> Living_room_lounge_dining_room_furniture | C13: 017 | D13: =VLOOKUP(C13,'Understanding the coding'!$E$11:$F$56,2,FALSE) -> Storage units (excluding shelves) | E13: 01 | F13: =VLOOKUP(E13,'Understanding the coding'!$H$11:$I$43,2,FALSE) -> > 50% wood, wood panels, and wood derivatives | G13: 031 | H13: =VLOOKUP(G13,'Understanding the coding'!$K$11:$L$96,2,FALSE) -> Between 150 kg and < 200 kg | J13: 01017010310 | K13: =CONCATENATE(Tableau13[[#This Row],[Category label]],", ",Tableau13[[#This Row],[Label Type]],", ",Tableau13[[#This Row],[Material label]]," ,",Tableau13[[#This Row],[Caracteristic label]]) -> Living_room_lounge_dining_room_furniture, Storage units (excluding shelves), > 50% wood, wood panels, and wood derivatives ,Between 150 kg and < 200 kg | L13: 16.25 | M13: 145 | N13: 19.5
A14: 01 | B14: =VLOOKUP(A14,'Understanding the coding'!$B$11:$C$23,2,FALSE) -> Living_room_lounge_dining_room_furniture | C14: 017 | D14: =VLOOKUP(C14,'Understanding the coding'!$E$11:$F$56,2,FALSE) -> Storage units (excluding shelves) | E14: 01 | F14: =VLOOKUP(E14,'Understanding the coding'!$H$11:$I$43,2,FALSE) -> > 50% wood, wood panels, and wood derivatives | G14: 032 | H14: =VLOOKUP(G14,'Understanding the coding'!$K$11:$L$96,2,FALSE) -> Between 200 kg and < 250 kg | J14: 01017010320 | K14: =CONCATENATE(Tableau13[[#This Row],[Category label]],", ",Tableau13[[#This Row],[Label Type]],", ",Tableau13[[#This Row],[Material label]]," ,",Tableau13[[#This Row],[Caracteristic label]]) -> Living_room_lounge_dining_room_furniture, Storage units (excluding shelves), > 50% wood, wood panels, and wood derivatives ,Between 200 kg and < 250 kg | L14: 20.83 | M14: 149 | N14: 25
A15: 01 | B15: =VLOOKUP(A15,'Understanding the coding'!$B$11:$C$23,2,FALSE) -> Living_room_lounge_dining_room_furniture | C15: 017 | D15: =VLOOKUP(C15,'Understanding the coding'!$E$11:$F$56,2,FALSE) -> Storage units (excluding shelves) | E15: 01 | F15: =VLOOKUP(E15,'Understanding the coding'!$H$11:$I$43,2,FALSE) -> > 50% wood, wood panels, and wood derivatives | G15: 033 | H15: =VLOOKUP(G15,'Understanding the coding'!$K$11:$L$96,2,FALSE) -> Between 250 kg and < 300 kg | J15: 01017010330 | K15: =CONCATENATE(Tableau13[[#This Row],[Category label]],", ",Tableau13[[#This Row],[Label Type]],", ",Tableau13[[#This Row],[Material label]]," ,",Tableau13[[#This Row],[Caracteristic label]]) -> Living_room_lounge_dining_room_furniture, Storage units (excluding shelves), > 50% wood, wood panels, and wood derivatives ,Between 250 kg and < 300 kg | L15: 27.5 | M15: 026 | N15: 33
A16: 01 | B16: =VLOOKUP(A16,'Understanding the coding'!$B$11:$C$23,2,FALSE) -> Living_room_lounge_dining_room_furniture | C16: 017 | D16: =VLOOKUP(C16,'Understanding the coding'!$E$11:$F$56,2,FALSE) -> Storage units (excluding shelves) | E16: 01 | F16: =VLOOKUP(E16,'Understanding the coding'!$H$11:$I$43,2,FALSE) -> > 50% wood, wood panels, and wood derivatives | G16: 034 | H16: =VLOOKUP(G16,'Understanding the coding'!$K$11:$L$96,2,FALSE) -> Between 300 kg and < 400 kg | J16: 01017010340 | K16: =CONCATENATE(Tableau13[[#This Row],[Category label]],", ",Tableau13[[#This Row],[Label Type]],", ",Tableau13[[#This Row],[Material label]]," ,",Tableau13[[#This Row],[Caracteristic label]]) -> Living_room_lounge_dining_room_furniture, Storage units (excluding shelves), > 50% wood, wood panels, and wood derivatives ,Between 300 kg and < 400 kg | L16: 34.17 | M16: 158 | N16: 41
A17: 01 | B17: =VLOOKUP(A17,'Understanding the coding'!$B$11:$C$23,2,FALSE) -> Living_room_lounge_dining_room_furniture | C17: 017 | D17: =VLOOKUP(C17,'Understanding the coding'!$E$11:$F$56,2,FALSE) -> Storage units (excluding shelves) | E17: 01 | F17: =VLOOKUP(E17,'Understanding the coding'!$H$11:$I$43,2,FALSE) -> > 50% wood, wood panels, and wood derivatives | G17: 035 | H17: =VLOOKUP(G17,'Understanding the coding'!$K$11:$L$96,2,FALSE) -> Between 400 kg and < 500 kg | J17: 01017010350 | K17: =CONCATENATE(Tableau13[[#This Row],[Category label]],", ",Tableau13[[#This Row],[Label Type]],", ",Tableau13[[#This Row],[Material label]]," ,",Tableau13[[#This Row],[Caracteristic label]]) -> Living_room_lounge_dining_room_furniture, Storage units (excluding shelves), > 50% wood, wood panels, and wood derivatives ,Between 400 kg and < 500 kg | L17: 42.92 | M17: 166 | N17: 51.5
A18: 01 | B18: =VLOOKUP(A18,'Understanding the coding'!$B$11:$C$23,2,FALSE) -> Living_room_lounge_dining_room_furniture | C18: 017 | D18: =VLOOKUP(C18,'Understanding the coding'!$E$11:$F$56,2,FALSE) -> Storage units (excluding shelves) | E18: 01 | F18: =VLOOKUP(E18,'Understanding the coding'!$H$11:$I$43,2,FALSE) -> > 50% wood, wood panels, and wood derivatives | G18: 036 | H18: =VLOOKUP(G18,'Understanding the coding'!$K$11:$L$96,2,FALSE) -> Between 500 kg and < 600 kg | J18: 01017010360 | K18: =CONCATENATE(Tableau13[[#This Row],[Category label]],", ",Tableau13[[#This Row],[Label Type]],", ",Tableau13[[#This Row],[Material label]]," ,",Tableau13[[#This Row],[Caracteristic label]]) -> Living_room_lounge_dining_room_furniture, Storage units (excluding shelves), > 50% wood, wood panels, and wood derivatives ,Between 500 kg and < 600 kg | L18: 51.67 | M18: 079 | N18: 62
A19: 01 | B19: =VLOOKUP(A19,'Understanding the coding'!$B$11:$C$23,2,FALSE) -> Living_room_lounge_dining_room_furniture | C19: 017 | D19: =VLOOKUP(C19,'Understanding the coding'!$E$11:$F$56,2,FALSE) -> Storage units (excluding shelves) | E19: 01 | F19: =VLOOKUP(E19,'Understanding the coding'!$H$11:$I$43,2,FALSE) -> > 50% wood, wood panels, and wood derivatives | G19: 037 | H19: =VLOOKUP(G19,'Understanding the coding'!$K$11:$L$96,2,FALSE) -> Between 600 kg and < 700 kg | J19: 01017010370 | K19: =CONCATENATE(Tableau13[[#This Row],[Category label]],", ",Tableau13[[#This Row],[Label Type]],", ",Tableau13[[#This Row],[Material label]]," ,",Tableau13[[#This Row],[Caracteristic label]]) -> Living_room_lounge_dining_room_furniture, Storage units (excluding shelves), > 50% wood, wood panels, and wood derivatives ,Between 600 kg and < 700 kg | L19: 60.42 | M19: 181 | N19: 72.5
A20: 01 | B20: =VLOOKUP(A20,'Understanding the coding'!$B$11:$C$23,2,FALSE) -> Living_room_lounge_dining_room_furniture | C20: 017 | D20: =VLOOKUP(C20,'Understanding the coding'!$E$11:$F$56,2,FALSE) -> Storage units (excluding shelves) | E20: 01 | F20: =VLOOKUP(E20,'Understanding the coding'!$H$11:$I$43,2,FALSE) -> > 50% wood, wood panels, and wood derivatives | G20: 038 | H20: =VLOOKUP(G20,'Understanding the coding'!$K$11:$L$96,2,FALSE) -> Between 700 kg and < 800 kg | J20: 01017010380 | K20: =CONCATENATE(Tableau13[[#This Row],[Category label]],", ",Tableau13[[#This Row],[Label Type]],", ",Tableau13[[#This Row],[Material label]]," ,",Tableau13[[#This Row],[Caracteristic label]]) -> Living_room_lounge_dining_room_furniture, Storage units (excluding shelves), > 50% wood, wood panels, and wood derivatives ,Between 700 kg and < 800 kg | L20: 69.17 | M20: 036 | N20: 83
A21: 01 | B21: =VLOOKUP(A21,'Understanding the coding'!$B$11:$C$23,2,FALSE) -> Living_room_lounge_dining_room_furniture | C21: 017 | D21: =VLOOKUP(C21,'Understanding the coding'!$E$11:$F$56,2,FALSE) -> Storage units (excluding shelves) | E21: 01 | F21: =VLOOKUP(E21,'Understanding the coding'!$H$11:$I$43,2,FALSE) -> > 50% wood, wood panels, and wood derivatives | G21: 039 | H21: =VLOOKUP(G21,'Understanding the coding'!$K$11:$L$96,2,FALSE) -> Between 800 kg and < 900 kg | J21: 01017010390 | K21: =CONCATENATE(Tableau13[[#This Row],[Category label]],", ",Tableau13[[#This Row],[Label Type]],", ",Tableau13[[#This Row],[Material label]]," ,",Tableau13[[#This Row],[Caracteristic label]]) -> Living_room_lounge_dining_room_furniture, Storage units (excluding shelves), > 50% wood, wood panels, and wood derivatives ,Between 800 kg and < 900 kg | L21: 77.92 | M21: 194 | N21: 93.5
A22: 01 | B22: =VLOOKUP(A22,'Understanding the coding'!$B$11:$C$23,2,FALSE) -> Living_room_lounge_dining_room_furniture | C22: 017 | D22: =VLOOKUP(C22,'Understanding the coding'!$E$11:$F$56,2,FALSE) -> Storage units (excluding shelves) | E22: 01 | F22: =VLOOKUP(E22,'Understanding the coding'!$H$11:$I$43,2,FALSE) -> > 50% wood, wood panels, and wood derivatives | G22: 040 | H22: =VLOOKUP(G22,'Understanding the coding'!$K$11:$L$96,2,FALSE) -> Between 900 kg and < 1,000 kg | J22: 01017010400 | K22: =CONCATENATE(Tableau13[[#This Row],[Category label]],", ",Tableau13[[#This Row],[Label Type]],", ",Tableau13[[#This Row],[Material label]]," ,",Tableau13[[#This Row],[Caracteristic label]]) -> Living_room_lounge_dining_room_furniture, Storage units (excluding shelves), > 50% wood, wood panels, and wood derivatives ,Between 900 kg and < 1,000 kg | L22: 86.67 | M22: 084 | N22: 104
A23: 01 | B23: =VLOOKUP(A23,'Understanding the coding'!$B$11:$C$23,2,FALSE) -> Living_room_lounge_dining_room_furniture | C23: 017 | D23: =VLOOKUP(C23,'Understanding the coding'!$E$11:$F$56,2,FALSE) -> Storage units (excluding shelves) | E23: 01 | F23: =VLOOKUP(E23,'Understanding the coding'!$H$11:$I$43,2,FALSE) -> > 50% wood, wood panels, and wood derivatives | G23: 041 | H23: =VLOOKUP(G23,'Understanding the coding'!$K$11:$L$96,2,FALSE) -> Between 1,000 kg and < 1,100 kg | J23: 01017010410 | K23: =CONCATENATE(Tableau13[[#This Row],[Category label]],", ",Tableau13[[#This Row],[Label Type]],", ",Tableau13[[#This Row],[Material label]]," ,",Tableau13[[#This Row],[Caracteristic label]]) -> Living_room_lounge_dining_room_furniture, Storage units (excluding shelves), > 50% wood, wood panels, and wood derivatives ,Between 1,000 kg and < 1,100 kg | L23: 95.42 | M23: 206 | N23: 114.5
A24: 01 | B24: =VLOOKUP(A24,'Understanding the coding'!$B$11:$C$23,2,FALSE) -> Living_room_lounge_dining_room_furniture | C24: 017 | D24: =VLOOKUP(C24,'Understanding the coding'!$E$11:$F$56,2,FALSE) -> Storage units (excluding shelves) | E24: 01 | F24: =VLOOKUP(E24,'Understanding the coding'!$H$11:$I$43,2,FALSE) -> > 50% wood, wood panels, and wood derivatives | G24: 042 | H24: =VLOOKUP(G24,'Understanding the coding'!$K$11:$L$96,2,FALSE) -> Between 1,100 kg and < 1,200 kg | J24: 01017010420 | K24: =CONCATENATE(Tableau13[[#This Row],[Category label]],", ",Tableau13[[#This Row],[Label Type]],", ",Tableau13[[#This Row],[Material label]]," ,",Tableau13[[#This Row],[Caracteristic label]]) -> Living_room_lounge_dining_room_furniture, Storage units (excluding shelves), > 50% wood, wood panels, and wood derivatives ,Between 1,100 kg and < 1,200 kg | L24: 104.17 | M24: 209 | N24: 125
A25: 01 | B25: =VLOOKUP(A25,'Understanding the coding'!$B$11:$C$23,2,FALSE) -> Living_room_lounge_dining_room_furniture | C25: 017 | D25: =VLOOKUP(C25,'Understanding the coding'!$E$11:$F$56,2,FALSE) -> Storage units (excluding shelves) | E25: 01 | F25: =VLOOKUP(E25,'Understanding the coding'!$H$11:$I$43,2,FALSE) -> > 50% wood, wood panels, and wood derivatives | G25: 043 | H25: =VLOOKUP(G25,'Understanding the coding'!$K$11:$L$96,2,FALSE) -> Between 1,200 kg and < 1,300 kg | J25: 01017010430 | K25: =CONCATENATE(Tableau13[[#This Row],[Category label]],", ",Tableau13[[#This Row],[Label Type]],", ",Tableau13[[#This Row],[Material label]]," ,",Tableau13[[#This Row],[Caracteristic label]]) -> Living_room_lounge_dining_room_furniture, Storage units (excluding shelves), > 50% wood, wood panels, and wood derivatives ,Between 1,200 kg and < 1,300 kg | L25: 112.92 | M25: 215 | N25: 135.5
A26: 01 | B26: =VLOOKUP(A26,'Understanding the coding'!$B$11:$C$23,2,FALSE) -> Living_room_lounge_dining_room_furniture | C26: 017 | D26: =VLOOKUP(C26,'Understanding the coding'!$E$11:$F$56,2,FALSE) -> Storage units (excluding shelves) | E26: 01 | F26: =VLOOKUP(E26,'Understanding the coding'!$H$11:$I$43,2,FALSE) -> > 50% wood, wood panels, and wood derivatives | G26: 044 | H26: =VLOOKUP(G26,'Understanding the coding'!$K$11:$L$96,2,FALSE) -> Between 1,300 kg and < 1,400 kg | J26: 01017010440 | K26: =CONCATENATE(Tableau13[[#This Row],[Category label]],", ",Tableau13[[#This Row],[Label Type]],", ",Tableau13[[#This Row],[Material label]]," ,",Tableau13[[#This Row],[Caracteristic label]]) -> Living_room_lounge_dining_room_furniture, Storage units (excluding shelves), > 50% wood, wood panels, and wood derivatives ,Between 1,300 kg and < 1,400 kg | L26: 121.67 | M26: 219 | N26: 146
A27: 01 | B27: =VLOOKUP(A27,'Understanding the coding'!$B$11:$C$23,2,FALSE) -> Living_room_lounge_dining_room_furniture | C27: 017 | D27: =VLOOKUP(C27,'Understanding the coding'!$E$11:$F$56,2,FALSE) -> Storage units (excluding shelves) | E27: 01 | F27: =VLOOKUP(E27,'Understanding the coding'!$H$11:$I$43,2,FALSE) -> > 50% wood, wood panels, and wood derivatives | G27: 045 | H27: =VLOOKUP(G27,'Understanding the coding'!$K$11:$L$96,2,FALSE) -> Between 1,400 kg and < 1,500 kg | J27: 01017010450 | K27: =CONCATENATE(Tableau13[[#This Row],[Category label]],", ",Tableau13[[#This Row],[Label Type]],", ",Tableau13[[#This Row],[Material label]]," ,",Tableau13[[#This Row],[Caracteristic label]]) -> Living_room_lounge_dining_room_furniture, Storage units (excluding shelves), > 50% wood, wood panels, and wood derivatives ,Between 1,400 kg and < 1,500 kg | L27: 130.42 | M27: 223 | N27: 156.5
A28: 01 | B28: =VLOOKUP(A28,'Understanding the coding'!$B$11:$C$23,2,FALSE) -> Living_room_lounge_dining_room_furniture | C28: 017 | D28: =VLOOKUP(C28,'Understanding the coding'!$E$11:$F$56,2,FALSE) -> Storage units (excluding shelves) | E28: 01 | F28: =VLOOKUP(E28,'Understanding the coding'!$H$11:$I$43,2,FALSE) -> > 50% wood, wood panels, and wood derivatives | G28: 046 | H28: =VLOOKUP(G28,'Understanding the coding'!$K$11:$L$96,2,FALSE) -> Between 1,500 kg and < 1,600 kg | J28: 01017010460 | K28: =CONCATENATE(Tableau13[[#This Row],[Category label]],", ",Tableau13[[#This Row],[Label Type]],", ",Tableau13[[#This Row],[Material label]]," ,",Tableau13[[#This Row],[Caracteristic label]]) -> Living_room_lounge_dining_room_furniture, Storage units (excluding shelves), > 50% wood, wood panels, and wood derivatives ,Between 1,500 kg and < 1,600 kg | L28: 139.17 | M28: 226 | N28: 167
A29: 01 | B29: =VLOOKUP(A29,'Understanding the coding'!$B$11:$C$23,2,FALSE) -> Living_room_lounge_dining_room_furniture | C29: 017 | D29: =VLOOKUP(C29,'Understanding the coding'!$E$11:$F$56,2,FALSE) -> Storage units (excluding shelves) | E29: 01 | F29: =VLOOKUP(E29,'Understanding the coding'!$H$11:$I$43,2,FALSE) -> > 50% wood, wood panels, and wood derivatives | G29: 047 | H29: =VLOOKUP(G29,'Understanding the coding'!$K$11:$L$96,2,FALSE) -> Between 1,600 kg and < 1,700 kg | J29: 01017010470 | K29: =CONCATENATE(Tableau13[[#This Row],[Category label]],", ",Tableau13[[#This Row],[Label Type]],", ",Tableau13[[#This Row],[Material label]]," ,",Tableau13[[#This Row],[Caracteristic label]]) -> Living_room_lounge_dining_room_furniture, Storage units (excluding shelves), > 50% wood, wood panels, and wood derivatives ,Between 1,600 kg and < 1,700 kg | L29: 147.92 | M29: 229 | N29: 177.5
A30: 01 | B30: =VLOOKUP(A30,'Understanding the coding'!$B$11:$C$23,2,FALSE) -> Living_room_lounge_dining_room_furniture | C30: 017 | D30: =VLOOKUP(C30,'Understanding the coding'!$E$11:$F$56,2,FALSE) -> Storage units (excluding shelves) | E30: 01 | F30: =VLOOKUP(E30,'Understanding the coding'!$H$11:$I$43,2,FALSE) -> > 50% wood, wood panels, and wood derivatives | G30: 048 | H30: =VLOOKUP(G30,'Understanding the coding'!$K$11:$L$96,2,FALSE) -> Between 1,700 kg and < 1,800 kg | J30: 01017010480 | K30: =CONCATENATE(Tableau13[[#This Row],[Category label]],", ",Tableau13[[#This Row],[Label Type]],", ",Tableau13[[#This Row],[Material label]]," ,",Tableau13[[#This Row],[Caracteristic label]]) -> Living_room_lounge_dining_room_furniture, Storage units (excluding shelves), > 50% wood, wood panels, and wood derivatives ,Between 1,700 kg and < 1,800 kg | L30: 156.67 | M30: 232 | N30: 188
A31: 01 | B31: =VLOOKUP(A31,'Understanding the coding'!$B$11:$C$23,2,FALSE) -> Living_room_lounge_dining_room_furniture | C31: 017 | D31: =VLOOKUP(C31,'Understanding the coding'!$E$11:$F$56,2,FALSE) -> Storage units (excluding shelves) | E31: 01 | F31: =VLOOKUP(E31,'Understanding the coding'!$H$11:$I$43,2,FALSE) -> > 50% wood, wood panels, and wood derivatives | G31: 049 | H31: =VLOOKUP(G31,'Understanding the coding'!$K$11:$L$96,2,FALSE) -> Between 1,800 kg and < 1,900 kg | J31: 01017010490 | K31: =CONCATENATE(Tableau13[[#This Row],[Category label]],", ",Tableau13[[#This Row],[Label Type]],", ",Tableau13[[#This Row],[Material label]]," ,",Tableau13[[#This Row],[Caracteristic label]]) -> Living_room_lounge_dining_room_furniture, Storage units (excluding shelves), > 50% wood, wood panels, and wood derivatives ,Between 1,800 kg and < 1,900 kg | L31: 165.42 | M31: 235 | N31: 198.5
A32: 01 | B32: =VLOOKUP(A32,'Understanding the coding'!$B$11:$C$23,2,FALSE) -> Living_room_lounge_dining_room_furniture | C32: 017 | D32: =VLOOKUP(C32,'Understanding the coding'!$E$11:$F$56,2,FALSE) -> Storage units (excluding shelves) | E32: 01 | F32: =VLOOKUP(E32,'Understanding the coding'!$H$11:$I$43,2,FALSE) -> > 50% wood, wood panels, and wood derivatives | G32: 050 | H32: =VLOOKUP(G32,'Understanding the coding'!$K$11:$L$96,2,FALSE) -> Between 1,900 kg and < 2,000 kg | J32: 01017010500 | K32: =CONCATENATE(Tableau13[[#This Row],[Category label]],", ",Tableau13[[#This Row],[Label Type]],", ",Tableau13[[#This Row],[Material label]]," ,",Tableau13[[#This Row],[Caracteristic label]]) -> Living_room_lounge_dining_room_furniture, Storage units (excluding shelves), > 50% wood, wood panels, and wood derivatives ,Between 1,900 kg and < 2,000 kg | L32: 174.17 | M32: 236 | N32: 209
A33: 01 | B33: =VLOOKUP(A33,'Understanding the coding'!$B$11:$C$23,2,FALSE) -> Living_room_lounge_dining_room_furniture | C33: 017 | D33: =VLOOKUP(C33,'Understanding the coding'!$E$11:$F$56,2,FALSE) -> Storage units (excluding shelves) | E33: 01 | F33: =VLOOKUP(E33,'Understanding the coding'!$H$11:$I$43,2,FALSE) -> > 50% wood, wood panels, and wood derivatives | G33: 051 | H33: =VLOOKUP(G33,'Understanding the coding'!$K$11:$L$96,2,FALSE) -> Over 2,000 kg | J33: 01017010510 | K33: =CONCATENATE(Tableau13[[#This Row],[Category label]],", ",Tableau13[[#This Row],[Label Type]],", ",Tableau13[[#This Row],[Material label]]," ,",Tableau13[[#This Row],[Caracteristic label]]) -> Living_room_lounge_dining_room_furniture, Storage units (excluding shelves), > 50% wood, wood panels, and wood derivatives ,Over 2,000 kg | L33: 182.92 | M33: 238 | N33: 219.5
A34: 01 | B34: =VLOOKUP(A34,'Understanding the coding'!$B$11:$C$23,2,FALSE) -> Living_room_lounge_dining_room_furniture | C34: 017 | D34: =VLOOKUP(C34,'Understanding the coding'!$E$11:$F$56,2,FALSE) -> Storage units (excluding shelves) | E34: 02 | F34: =VLOOKUP(E34,'Understanding the coding'!$H$11:$I$43,2,FALSE) -> > 50% metal | G34: 020 | H34: =VLOOKUP(G34,'Understanding the coding'!$K$11:$L$96,2,FALSE) -> Must not exceed 0.5 kg | J34: 01017020200 | K34: =CONCATENATE(Tableau13[[#This Row],[Category label]],", ",Tableau13[[#This Row],[Label Type]],", ",Tableau13[[#This Row],[Material label]]," ,",Tableau13[[#This Row],[Caracteristic label]]) -> Living_room_lounge_dining_room_furniture, Storage units (excluding shelves), > 50% metal ,Must not exceed 0.5 kg | L34: 0.03 | M34: 092 | N34: 0.04
A35: 01 | B35: =VLOOKUP(A35,'Understanding the coding'!$B$11:$C$23,2,FALSE) -> Living_room_lounge_dining_room_furniture | C35: 017 | D35: =VLOOKUP(C35,'Understanding the coding'!$E$11:$F$56,2,FALSE) -> Storage units (excluding shelves) | E35: 02 | F35: =VLOOKUP(E35,'Understanding the coding'!$H$11:$I$43,2,FALSE) -> > 50% metal | G35: 021 | H35: =VLOOKUP(G35,'Understanding the coding'!$K$11:$L$96,2,FALSE) -> Between 0.5 kg and < 1 kg | J35: 01017020210 | K35: =CONCATENATE(Tableau13[[#This Row],[Category label]],", ",Tableau13[[#This Row],[Label Type]],", ",Tableau13[[#This Row],[Material label]]," ,",Tableau13[[#This Row],[Caracteristic label]]) -> Living_room_lounge_dining_room_furniture, Storage units (excluding shelves), > 50% metal ,Between 0.5 kg and < 1 kg | L35: 0.08 | M35: 003 | N35: 0.1
A36: 01 | B36: =VLOOKUP(A36,'Understanding the coding'!$B$11:$C$23,2,FALSE) -> Living_room_lounge_dining_room_furniture | C36: 017 | D36: =VLOOKUP(C36,'Understanding the coding'!$E$11:$F$56,2,FALSE) -> Storage units (excluding shelves) | E36: 02 | F36: =VLOOKUP(E36,'Understanding the coding'!$H$11:$I$43,2,FALSE) -> > 50% metal | G36: 022 | H36: =VLOOKUP(G36,'Understanding the coding'!$K$11:$L$96,2,FALSE) -> Between 1 kg and < 2 kg | J36: 01017020220 | K36: =CONCATENATE(Tableau13[[#This Row],[Category label]],", ",Tableau13[[#This Row],[Label Type]],", ",Tableau13[[#This Row],[Material label]]," ,",Tableau13[[#This Row],[Caracteristic label]]) -> Living_room_lounge_dining_room_furniture, Storage units (excluding shelves), > 50% metal ,Between 1 kg and < 2 kg | L36: 0.14 | M36: 098 | N36: 0.17
A37: 01 | B37: =VLOOKUP(A37,'Understanding the coding'!$B$11:$C$23,2,FALSE) -> Living_room_lounge_dining_room_furniture | C37: 017 | D37: =VLOOKUP(C37,'Understanding the coding'!$E$11:$F$56,2,FALSE) -> Storage units (excluding shelves) | E37: 02 | F37: =VLOOKUP(E37,'Understanding the coding'!$H$11:$I$43,2,FALSE) -> > 50% metal | G37: 023 | H37: =VLOOKUP(G37,'Understanding the coding'!$K$11:$L$96,2,FALSE) -> Between 2 kg and < 5 kg | J37: 01017020230 | K37: =CONCATENATE(Tableau13[[#This Row],[Category label]],", ",Tableau13[[#This Row],[Label Type]],", ",Tableau13[[#This Row],[Material label]]," ,",Tableau13[[#This Row],[Caracteristic label]]) -> Living_room_lounge_dining_room_furniture, Storage units (excluding shelves), > 50% metal ,Between 2 kg and < 5 kg | L37: 0.27 | M37: 103 | N37: 0.32
A38: 01 | B38: =VLOOKUP(A38,'Understanding the coding'!$B$11:$C$23,2,FALSE) -> Living_room_lounge_dining_room_furniture | C38: 017 | D38: =VLOOKUP(C38,'Understanding the coding'!$E$11:$F$56,2,FALSE) -> Storage units (excluding shelves) | E38: 02 | F38: =VLOOKUP(E38,'Understanding the coding'!$H$11:$I$43,2,FALSE) -> > 50% metal | G38: 024 | H38: =VLOOKUP(G38,'Understanding the coding'!$K$11:$L$96,2,FALSE) -> Between 5 kg and < 10 kg | J38: 01017020240 | K38: =CONCATENATE(Tableau13[[#This Row],[Category label]],", ",Tableau13[[#This Row],[Label Type]],", ",Tableau13[[#This Row],[Material label]]," ,",Tableau13[[#This Row],[Caracteristic label]]) -> Living_room_lounge_dining_room_furniture, Storage units (excluding shelves), > 50% metal ,Between 5 kg and < 10 kg | L38: 0.68 | M38: 044 | N38: 0.82
A39: 01 | B39: =VLOOKUP(A39,'Understanding the coding'!$B$11:$C$23,2,FALSE) -> Living_room_lounge_dining_room_furniture | C39: 017 | D39: =VLOOKUP(C39,'Understanding the coding'!$E$11:$F$56,2,FALSE) -> Storage units (excluding shelves) | E39: 02 | F39: =VLOOKUP(E39,'Understanding the coding'!$H$11:$I$43,2,FALSE) -> > 50% metal | G39: 025 | H39: =VLOOKUP(G39,'Understanding the coding'!$K$11:$L$96,2,FALSE) -> Between 10 kg and < 20 kg | J39: 01017020250 | K39: =CONCATENATE(Tableau13[[#This Row],[Category label]],", ",Tableau13[[#This Row],[Label Type]],", ",Tableau13[[#This Row],[Material label]]," ,",Tableau13[[#This Row],[Caracteristic label]]) -> Living_room_lounge_dining_room_furniture, Storage units (excluding shelves), > 50% metal ,Between 10 kg and < 20 kg | L39: 1.5 | M39: 059 | N39: 1.8
A40: 01 | B40: =VLOOKUP(A40,'Understanding the coding'!$B$11:$C$23,2,FALSE) -> Living_room_lounge_dining_room_furniture | C40: 017 | D40: =VLOOKUP(C40,'Understanding the coding'!$E$11:$F$56,2,FALSE) -> Storage units (excluding shelves) | E40: 02 | F40: =VLOOKUP(E40,'Understanding the coding'!$H$11:$I$43,2,FALSE) -> > 50% metal | G40: 026 | H40: =VLOOKUP(G40,'Understanding the coding'!$K$11:$L$96,2,FALSE) -> Between 20 kg and < 30 kg | J40: 01017020260 | K40: =CONCATENATE(Tableau13[[#This Row],[Category label]],", ",Tableau13[[#This Row],[Label Type]],", ",Tableau13[[#This Row],[Material label]]," ,",Tableau13[[#This Row],[Caracteristic label]]) -> Living_room_lounge_dining_room_furniture, Storage units (excluding shelves), > 50% metal ,Between 20 kg and < 30 kg | L40: 2.33 | M40: 062 | N40: 2.8
A41: 01 | B41: =VLOOKUP(A41,'Understanding the coding'!$B$11:$C$23,2,FALSE) -> Living_room_lounge_dining_room_furniture | C41: 017 | D41: =VLOOKUP(C41,'Understanding the coding'!$E$11:$F$56,2,FALSE) -> Storage units (excluding shelves) | E41: 02 | F41: =VLOOKUP(E41,'Understanding the coding'!$H$11:$I$43,2,FALSE) -> > 50% metal | G41: 027 | H41: =VLOOKUP(G41,'Understanding the coding'!$K$11:$L$96,2,FALSE) -> Between 30 kg and < 40 kg | J41: 01017020270 | K41: =CONCATENATE(Tableau13[[#This Row],[Category label]],", ",Tableau13[[#This Row],[Label Type]],", ",Tableau13[[#This Row],[Material label]]," ,",Tableau13[[#This Row],[Caracteristic label]]) -> Living_room_lounge_dining_room_furniture, Storage units (excluding shelves), > 50% metal ,Between 30 kg and < 40 kg | L41: 3.25 | M41: 122 | N41: 3.9
A42: 01 | B42: =VLOOKUP(A42,'Understanding the coding'!$B$11:$C$23,2,FALSE) -> Living_room_lounge_dining_room_furniture | C42: 017 | D42: =VLOOKUP(C42,'Understanding the coding'!$E$11:$F$56,2,FALSE) -> Storage units (excluding shelves) | E42: 02 | F42: =VLOOKUP(E42,'Understanding the coding'!$H$11:$I$43,2,FALSE) -> > 50% metal | G42: 028 | H42: =VLOOKUP(G42,'Understanding the coding'!$K$11:$L$96,2,FALSE) -> Between 40 kg and < 60 kg | J42: 01017020280 | K42: =CONCATENATE(Tableau13[[#This Row],[Category label]],", ",Tableau13[[#This Row],[Label Type]],", ",Tableau13[[#This Row],[Material label]]," ,",Tableau13[[#This Row],[Caracteristic label]]) -> Living_room_lounge_dining_room_furniture, Storage units (excluding shelves), > 50% metal ,Between 40 kg and < 60 kg | L42: 4.42 | M42: 126 | N42: 5.3
A43: 01 | B43: =VLOOKUP(A43,'Understanding the coding'!$B$11:$C$23,2,FALSE) -> Living_room_lounge_dining_room_furniture | C43: 017 | D43: =VLOOKUP(C43,'Understanding the coding'!$E$11:$F$56,2,FALSE) -> Storage units (excluding shelves) | E43: 02 | F43: =VLOOKUP(E43,'Understanding the coding'!$H$11:$I$43,2,FALSE) -> > 50% metal | G43: 029 | H43: =VLOOKUP(G43,'Understanding the coding'!$K$11:$L$96,2,FALSE) -> Between 60 kg and < 100 kg | J43: 01017020290 | K43: =CONCATENATE(Tableau13[[#This Row],[Category label]],", ",Tableau13[[#This Row],[Label Type]],", ",Tableau13[[#This Row],[Material label]]," ,",Tableau13[[#This Row],[Caracteristic label]]) -> Living_room_lounge_dining_room_furniture, Storage units (excluding shelves), > 50% metal ,Between 60 kg and < 100 kg | L43: 7.08 | M43: 067 | N43: 8.5
A44: 01 | B44: =VLOOKUP(A44,'Understanding the coding'!$B$11:$C$23,2,FALSE) -> Living_room_lounge_dining_room_furniture | C44: 017 | D44: =VLOOKUP(C44,'Understanding the coding'!$E$11:$F$56,2,FALSE) -> Storage units (excluding shelves) | E44: 02 | F44: =VLOOKUP(E44,'Understanding the coding'!$H$11:$I$43,2,FALSE) -> > 50% metal | G44: 030 | H44: =VLOOKUP(G44,'Understanding the coding'!$K$11:$L$96,2,FALSE) -> Between 100 kg and < 150 kg | J44: 01017020300 | K44: =CONCATENATE(Tableau13[[#This Row],[Category label]],", ",Tableau13[[#This Row],[Label Type]],", ",Tableau13[[#This Row],[Material label]]," ,",Tableau13[[#This Row],[Caracteristic label]]) -> Living_room_lounge_dining_room_furniture, Storage units (excluding shelves), > 50% metal ,Between 100 kg and < 150 kg | L44: 12.5 | M44: 072 | N44: 15
A45: 01 | B45: =VLOOKUP(A45,'Understanding the coding'!$B$11:$C$23,2,FALSE) -> Living_room_lounge_dining_room_furniture | C45: 017 | D45: =VLOOKUP(C45,'Understanding the coding'!$E$11:$F$56,2,FALSE) -> Storage units (excluding shelves) | E45: 02 | F45: =VLOOKUP(E45,'Understanding the coding'!$H$11:$I$43,2,FALSE) -> > 50% metal | G45: 031 | H45: =VLOOKUP(G45,'Understanding the coding'!$K$11:$L$96,2,FALSE) -> Between 150 kg and < 200 kg | J45: 01017020310 | K45: =CONCATENATE(Tableau13[[#This Row],[Category label]],", ",Tableau13[[#This Row],[Label Type]],", ",Tableau13[[#This Row],[Material label]]," ,",Tableau13[[#This Row],[Caracteristic label]]) -> Living_room_lounge_dining_room_furniture, Storage units (excluding shelves), > 50% metal ,Between 150 kg and < 200 kg | L45: 16.25 | M45: 145 | N45: 19.5
A46: 01 | B46: =VLOOKUP(A46,'Understanding the coding'!$B$11:$C$23,2,FALSE) -> Living_room_lounge_dining_room_furniture | C46: 017 | D46: =VLOOKUP(C46,'Understanding the coding'!$E$11:$F$56,2,FALSE) -> Storage units (excluding shelves) | E46: 02 | F46: =VLOOKUP(E46,'Understanding the coding'!$H$11:$I$43,2,FALSE) -> > 50% metal | G46: 032 | H46: =VLOOKUP(G46,'Understanding the coding'!$K$11:$L$96,2,FALSE) -> Between 200 kg and < 250 kg | J46: 01017020320 | K46: =CONCATENATE(Tableau13[[#This Row],[Category label]],", ",Tableau13[[#This Row],[Label Type]],", ",Tableau13[[#This Row],[Material label]]," ,",Tableau13[[#This Row],[Caracteristic label]]) -> Living_room_lounge_dining_room_furniture, Storage units (excluding shelves), > 50% metal ,Between 200 kg and < 250 kg | L46: 20.83 | M46: 149 | N46: 25
A47: 01 | B47: =VLOOKUP(A47,'Understanding the coding'!$B$11:$C$23,2,FALSE) -> Living_room_lounge_dining_room_furniture | C47: 017 | D47: =VLOOKUP(C47,'Understanding the coding'!$E$11:$F$56,2,FALSE) -> Storage units (excluding shelves) | E47: 02 | F47: =VLOOKUP(E47,'Understanding the coding'!$H$11:$I$43,2,FALSE) -> > 50% metal | G47: 033 | H47: =VLOOKUP(G47,'Understanding the coding'!$K$11:$L$96,2,FALSE) -> Between 250 kg and < 300 kg | J47: 01017020330 | K47: =CONCATENATE(Tableau13[[#This Row],[Category label]],", ",Tableau13[[#This Row],[Label Type]],", ",Tableau13[[#This Row],[Material label]]," ,",Tableau13[[#This Row],[Caracteristic label]]) -> Living_room_lounge_dining_room_furniture, Storage units (excluding shelves), > 50% metal ,Between 250 kg and < 300 kg | L47: 27.5 | M47: 026 | N47: 33
A48: 01 | B48: =VLOOKUP(A48,'Understanding the coding'!$B$11:$C$23,2,FALSE) -> Living_room_lounge_dining_room_furniture | C48: 017 | D48: =VLOOKUP(C48,'Understanding the coding'!$E$11:$F$56,2,FALSE) -> Storage units (excluding shelves) | E48: 02 | F48: =VLOOKUP(E48,'Understanding the coding'!$H$11:$I$43,2,FALSE) -> > 50% metal | G48: 034 | H48: =VLOOKUP(G48,'Understanding the coding'!$K$11:$L$96,2,FALSE) -> Between 300 kg and < 400 kg | J48: 01017020340 | K48: =CONCATENATE(Tableau13[[#This Row],[Category label]],", ",Tableau13[[#This Row],[Label Type]],", ",Tableau13[[#This Row],[Material label]]," ,",Tableau13[[#This Row],[Caracteristic label]]) -> Living_room_lounge_dining_room_furniture, Storage units (excluding shelves), > 50% metal ,Between 300 kg and < 400 kg | L48: 34.17 | M48: 158 | N48: 41
A49: 01 | B49: =VLOOKUP(A49,'Understanding the coding'!$B$11:$C$23,2,FALSE) -> Living_room_lounge_dining_room_furniture | C49: 017 | D49: =VLOOKUP(C49,'Understanding the coding'!$E$11:$F$56,2,FALSE) -> Storage units (excluding shelves) | E49: 02 | F49: =VLOOKUP(E49,'Understanding the coding'!$H$11:$I$43,2,FALSE) -> > 50% metal | G49: 035 | H49: =VLOOKUP(G49,'Understanding the coding'!$K$11:$L$96,2,FALSE) -> Between 400 kg and < 500 kg | J49: 01017020350 | K49: =CONCATENATE(Tableau13[[#This Row],[Category label]],", ",Tableau13[[#This Row],[Label Type]],", ",Tableau13[[#This Row],[Material label]]," ,",Tableau13[[#This Row],[Caracteristic label]]) -> Living_room_lounge_dining_room_furniture, Storage units (excluding shelves), > 50% metal ,Between 400 kg and < 500 kg | L49: 42.92 | M49: 166 | N49: 51.5
A50: 01 | B50: =VLOOKUP(A50,'Understanding the coding'!$B$11:$C$23,2,FALSE) -> Living_room_lounge_dining_room_furniture | C50: 017 | D50: =VLOOKUP(C50,'Understanding the coding'!$E$11:$F$56,2,FALSE) -> Storage units (excluding shelves) | E50: 02 | F50: =VLOOKUP(E50,'Understanding the coding'!$H$11:$I$43,2,FALSE) -> > 50% metal | G50: 036 | H50: =VLOOKUP(G50,'Understanding the coding'!$K$11:$L$96,2,FALSE) -> Between 500 kg and < 600 kg | J50: 01017020360 | K50: =CONCATENATE(Tableau13[[#This Row],[Category label]],", ",Tableau13[[#This Row],[Label Type]],", ",Tableau13[[#This Row],[Material label]]," ,",Tableau13[[#This Row],[Caracteristic label]]) -> Living_room_lounge_dining_room_furniture, Storage units (excluding shelves), > 50% metal ,Between 500 kg and < 600 kg | L50: 51.67 | M50: 079 | N50: 62
A51: 01 | B51: =VLOOKUP(A51,'Understanding the coding'!$B$11:$C$23,2,FALSE) -> Living_room_lounge_dining_room_furniture | C51: 017 | D51: =VLOOKUP(C51,'Understanding the coding'!$E$11:$F$56,2,FALSE) -> Storage units (excluding shelves) | E51: 02 | F51: =VLOOKUP(E51,'Understanding the coding'!$H$11:$I$43,2,FALSE) -> > 50% metal | G51: 037 | H51: =VLOOKUP(G51,'Understanding the coding'!$K$11:$L$96,2,FALSE) -> Between 600 kg and < 700 kg | J51: 01017020370 | K51: =CONCATENATE(Tableau13[[#This Row],[Category label]],", ",Tableau13[[#This Row],[Label Type]],", ",Tableau13[[#This Row],[Material label]]," ,",Tableau13[[#This Row],[Caracteristic label]]) -> Living_room_lounge_dining_room_furniture, Storage units (excluding shelves), > 50% metal ,Between 600 kg and < 700 kg | L51: 60.42 | M51: 181 | N51: 72.5
A52: 01 | B52: =VLOOKUP(A52,'Understanding the coding'!$B$11:$C$23,2,FALSE) -> Living_room_lounge_dining_room_furniture | C52: 017 | D52: =VLOOKUP(C52,'Understanding the coding'!$E$11:$F$56,2,FALSE) -> Storage units (excluding shelves) | E52: 02 | F52: =VLOOKUP(E52,'Understanding the coding'!$H$11:$I$43,2,FALSE) -> > 50% metal | G52: 038 | H52: =VLOOKUP(G52,'Understanding the coding'!$K$11:$L$96,2,FALSE) -> Between 700 kg and < 800 kg | J52: 01017020380 | K52: =CONCATENATE(Tableau13[[#This Row],[Category label]],", ",Tableau13[[#This Row],[Label Type]],", ",Tableau13[[#This Row],[Material label]]," ,",Tableau13[[#This Row],[Caracteristic label]]) -> Living_room_lounge_dining_room_furniture, Storage units (excluding shelves), > 50% metal ,Between 700 kg and < 800 kg | L52: 69.17 | M52: 036 | N52: 83
A53: 01 | B53: =VLOOKUP(A53,'Understanding the coding'!$B$11:$C$23,2,FALSE) -> Living_room_lounge_dining_room_furniture | C53: 017 | D53: =VLOOKUP(C53,'Understanding the coding'!$E$11:$F$56,2,FALSE) -> Storage units (excluding shelves) | E53: 02 | F53: =VLOOKUP(E53,'Understanding the coding'!$H$11:$I$43,2,FALSE) -> > 50% metal | G53: 039 | H53: =VLOOKUP(G53,'Understanding the coding'!$K$11:$L$96,2,FALSE) -> Between 800 kg and < 900 kg | J53: 01017020390 | K53: =CONCATENATE(Tableau13[[#This Row],[Category label]],", ",Tableau13[[#This Row],[Label Type]],", ",Tableau13[[#This Row],[Material label]]," ,",Tableau13[[#This Row],[Caracteristic label]]) -> Living_room_lounge_dining_room_furniture, Storage units (excluding shelves), > 50% metal ,Between 800 kg and < 900 kg | L53: 77.92 | M53: 194 | N53: 93.5
A54: 01 | B54: =VLOOKUP(A54,'Understanding the coding'!$B$11:$C$23,2,FALSE) -> Living_room_lounge_dining_room_furniture | C54: 017 | D54: =VLOOKUP(C54,'Understanding the coding'!$E$11:$F$56,2,FALSE) -> Storage units (excluding shelves) | E54: 02 | F54: =VLOOKUP(E54,'Understanding the coding'!$H$11:$I$43,2,FALSE) -> > 50% metal | G54: 040 | H54: =VLOOKUP(G54,'Understanding the coding'!$K$11:$L$96,2,FALSE) -> Between 900 kg and < 1,000 kg | J54: 01017020400 | K54: =CONCATENATE(Tableau13[[#This Row],[Category label]],", ",Tableau13[[#This Row],[Label Type]],", ",Tableau13[[#This Row],[Material label]]," ,",Tableau13[[#This Row],[Caracteristic label]]) -> Living_room_lounge_dining_room_furniture, Storage units (excluding shelves), > 50% metal ,Between 900 kg and < 1,000 kg | L54: 86.67 | M54: 084 | N54: 104
A55: 01 | B55: =VLOOKUP(A55,'Understanding the coding'!$B$11:$C$23,2,FALSE) -> Living_room_lounge_dining_room_furniture | C55: 017 | D55: =VLOOKUP(C55,'Understanding the coding'!$E$11:$F$56,2,FALSE) -> Storage units (excluding shelves) | E55: 02 | F55: =VLOOKUP(E55,'Understanding the coding'!$H$11:$I$43,2,FALSE) -> > 50% metal | G55: 041 | H55: =VLOOKUP(G55,'Understanding the coding'!$K$11:$L$96,2,FALSE) -> Between 1,000 kg and < 1,100 kg | J55: 01017020410 | K55: =CONCATENATE(Tableau13[[#This Row],[Category label]],", ",Tableau13[[#This Row],[Label Type]],", ",Tableau13[[#This Row],[Material label]]," ,",Tableau13[[#This Row],[Caracteristic label]]) -> Living_room_lounge_dining_room_furniture, Storage units (excluding shelves), > 50% metal ,Between 1,000 kg and < 1,100 kg | L55: 95.42 | M55: 206 | N55: 114.5
A56: 01 | B56: =VLOOKUP(A56,'Understanding the coding'!$B$11:$C$23,2,FALSE) -> Living_room_lounge_dining_room_furniture | C56: 017 | D56: =VLOOKUP(C56,'Understanding the coding'!$E$11:$F$56,2,FALSE) -> Storage units (excluding shelves) | E56: 02 | F56: =VLOOKUP(E56,'Understanding the coding'!$H$11:$I$43,2,FALSE) -> > 50% metal | G56: 042 | H56: =VLOOKUP(G56,'Understanding the coding'!$K$11:$L$96,2,FALSE) -> Between 1,100 kg and < 1,200 kg | J56: 01017020420 | K56: =CONCATENATE(Tableau13[[#This Row],[Category label]],", ",Tableau13[[#This Row],[Label Type]],", ",Tableau13[[#This Row],[Material label]]," ,",Tableau13[[#This Row],[Caracteristic label]]) -> Living_room_lounge_dining_room_furniture, Storage units (excluding shelves), > 50% metal ,Between 1,100 kg and < 1,200 kg | L56: 104.17 | M56: 209 | N56: 125
A57: 01 | B57: =VLOOKUP(A57,'Understanding the coding'!$B$11:$C$23,2,FALSE) -> Living_room_lounge_dining_room_furniture | C57: 017 | D57: =VLOOKUP(C57,'Understanding the coding'!$E$11:$F$56,2,FALSE) -> Storage units (excluding shelves) | E57: 02 | F57: =VLOOKUP(E57,'Understanding the coding'!$H$11:$I$43,2,FALSE) -> > 50% metal | G57: 043 | H57: =VLOOKUP(G57,'Understanding the coding'!$K$11:$L$96,2,FALSE) -> Between 1,200 kg and < 1,300 kg | J57: 01017020430 | K57: =CONCATENATE(Tableau13[[#This Row],[Category label]],", ",Tableau13[[#This Row],[Label Type]],", ",Tableau13[[#This Row],[Material label]]," ,",Tableau13[[#This Row],[Caracteristic label]]) -> Living_room_lounge_dining_room_furniture, Storage units (excluding shelves), > 50% metal ,Between 1,200 kg and < 1,300 kg | L57: 112.92 | M57: 215 | N57: 135.5
A58: 01 | B58: =VLOOKUP(A58,'Understanding the coding'!$B$11:$C$23,2,FALSE) -> Living_room_lounge_dining_room_furniture | C58: 017 | D58: =VLOOKUP(C58,'Understanding the coding'!$E$11:$F$56,2,FALSE) -> Storage units (excluding shelves) | E58: 02 | F58: =VLOOKUP(E58,'Understanding the coding'!$H$11:$I$43,2,FALSE) -> > 50% metal | G58: 044 | H58: =VLOOKUP(G58,'Understanding the coding'!$K$11:$L$96,2,FALSE) -> Between 1,300 kg and < 1,400 kg | J58: 01017020440 | K58: =CONCATENATE(Tableau13[[#This Row],[Category label]],", ",Tableau13[[#This Row],[Label Type]],", ",Tableau13[[#This Row],[Material label]]," ,",Tableau13[[#This Row],[Caracteristic label]]) -> Living_room_lounge_dining_room_furniture, Storage units (excluding shelves), > 50% metal ,Between 1,300 kg and < 1,400 kg | L58: 121.67 | M58: 219 | N58: 146
A59: 01 | B59: =VLOOKUP(A59,'Understanding the coding'!$B$11:$C$23,2,FALSE) -> Living_room_lounge_dining_room_furniture | C59: 017 | D59: =VLOOKUP(C59,'Understanding the coding'!$E$11:$F$56,2,FALSE) -> Storage units (excluding shelves) | E59: 02 | F59: =VLOOKUP(E59,'Understanding the coding'!$H$11:$I$43,2,FALSE) -> > 50% metal | G59: 045 | H59: =VLOOKUP(G59,'Understanding the coding'!$K$11:$L$96,2,FALSE) -> Between 1,400 kg and < 1,500 kg | J59: 01017020450 | K59: =CONCATENATE(Tableau13[[#This Row],[Category label]],", ",Tableau13[[#This Row],[Label Type]],", ",Tableau13[[#This Row],[Material label]]," ,",Tableau13[[#This Row],[Caracteristic label]]) -> Living_room_lounge_dining_room_furniture, Storage units (excluding shelves), > 50% metal ,Between 1,400 kg and < 1,500 kg | L59: 130.42 | M59: 223 | N59: 156.5
A60: 01 | B60: =VLOOKUP(A60,'Understanding the coding'!$B$11:$C$23,2,FALSE) -> Living_room_lounge_dining_room_furniture | C60: 017 | D60: =VLOOKUP(C60,'Understanding the coding'!$E$11:$F$56,2,FALSE) -> Storage units (excluding shelves) | E60: 02 | F60: =VLOOKUP(E60,'Understanding the coding'!$H$11:$I$43,2,FALSE) -> > 50% metal | G60: 046 | H60: =VLOOKUP(G60,'Understanding the coding'!$K$11:$L$96,2,FALSE) -> Between 1,500 kg and < 1,600 kg | J60: 01017020460 | K60: =CONCATENATE(Tableau13[[#This Row],[Category label]],", ",Tableau13[[#This Row],[Label Type]],", ",Tableau13[[#This Row],[Material label]]," ,",Tableau13[[#This Row],[Caracteristic label]]) -> Living_room_lounge_dining_room_furniture, Storage units (excluding shelves), > 50% metal ,Between 1,500 kg and < 1,600 kg | L60: 139.17 | M60: 226 | N60: 167
A61: 01 | B61: =VLOOKUP(A61,'Understanding the coding'!$B$11:$C$23,2,FALSE) -> Living_room_lounge_dining_room_furniture | C61: 017 | D61: =VLOOKUP(C61,'Understanding the coding'!$E$11:$F$56,2,FALSE) -> Storage units (excluding shelves) | E61: 02 | F61: =VLOOKUP(E61,'Understanding the coding'!$H$11:$I$43,2,FALSE) -> > 50% metal | G61: 047 | H61: =VLOOKUP(G61,'Understanding the coding'!$K$11:$L$96,2,FALSE) -> Between 1,600 kg and < 1,700 kg | J61: 01017020470 | K61: =CONCATENATE(Tableau13[[#This Row],[Category label]],", ",Tableau13[[#This Row],[Label Type]],", ",Tableau13[[#This Row],[Material label]]," ,",Tableau13[[#This Row],[Caracteristic label]]) -> Living_room_lounge_dining_room_furniture, Storage units (excluding shelves), > 50% metal ,Between 1,600 kg and < 1,700 kg | L61: 147.92 | M61: 229 | N61: 177.5
A62: 01 | B62: =VLOOKUP(A62,'Understanding the coding'!$B$11:$C$23,2,FALSE) -> Living_room_lounge_dining_room_furniture | C62: 017 | D62: =VLOOKUP(C62,'Understanding the coding'!$E$11:$F$56,2,FALSE) -> Storage units (excluding shelves) | E62: 02 | F62: =VLOOKUP(E62,'Understanding the coding'!$H$11:$I$43,2,FALSE) -> > 50% metal | G62: 048 | H62: =VLOOKUP(G62,'Understanding the coding'!$K$11:$L$96,2,FALSE) -> Between 1,700 kg and < 1,800 kg | J62: 01017020480 | K62: =CONCATENATE(Tableau13[[#This Row],[Category label]],", ",Tableau13[[#This Row],[Label Type]],", ",Tableau13[[#This Row],[Material label]]," ,",Tableau13[[#This Row],[Caracteristic label]]) -> Living_room_lounge_dining_room_furniture, Storage units (excluding shelves), > 50% metal ,Between 1,700 kg and < 1,800 kg | L62: 156.67 | M62: 232 | N62: 188
A63: 01 | B63: =VLOOKUP(A63,'Understanding the coding'!$B$11:$C$23,2,FALSE) -> Living_room_lounge_dining_room_furniture | C63: 017 | D63: =VLOOKUP(C63,'Understanding the coding'!$E$11:$F$56,2,FALSE) -> Storage units (excluding shelves) | E63: 02 | F63: =VLOOKUP(E63,'Understanding the coding'!$H$11:$I$43,2,FALSE) -> > 50% metal | G63: 049 | H63: =VLOOKUP(G63,'Understanding the coding'!$K$11:$L$96,2,FALSE) -> Between 1,800 kg and < 1,900 kg | J63: 01017020490 | K63: =CONCATENATE(Tableau13[[#This Row],[Category label]],", ",Tableau13[[#This Row],[Label Type]],", ",Tableau13[[#This Row],[Material label]]," ,",Tableau13[[#This Row],[Caracteristic label]]) -> Living_room_lounge_dining_room_furniture, Storage units (excluding shelves), > 50% metal ,Between 1,800 kg and < 1,900 kg | L63: 165.42 | M63: 235 | N63: 198.5
A64: 01 | B64: =VLOOKUP(A64,'Understanding the coding'!$B$11:$C$23,2,FALSE) -> Living_room_lounge_dining_room_furniture | C64: 017 | D64: =VLOOKUP(C64,'Understanding the coding'!$E$11:$F$56,2,FALSE) -> Storage units (excluding shelves) | E64: 02 | F64: =VLOOKUP(E64,'Understanding the coding'!$H$11:$I$43,2,FALSE) -> > 50% metal | G64: 050 | H64: =VLOOKUP(G64,'Understanding the coding'!$K$11:$L$96,2,FALSE) -> Between 1,900 kg and < 2,000 kg | J64: 01017020500 | K64: =CONCATENATE(Tableau13[[#This Row],[Category label]],", ",Tableau13[[#This Row],[Label Type]],", ",Tableau13[[#This Row],[Material label]]," ,",Tableau13[[#This Row],[Caracteristic label]]) -> Living_room_lounge_dining_room_furniture, Storage units (excluding shelves), > 50% metal ,Between 1,900 kg and < 2,000 kg | L64: 174.17 | M64: 236 | N64: 209
A65: 01 | B65: =VLOOKUP(A65,'Understanding the coding'!$B$11:$C$23,2,FALSE) -> Living_room_lounge_dining_room_furniture | C65: 017 | D65: =VLOOKUP(C65,'Understanding the coding'!$E$11:$F$56,2,FALSE) -> Storage units (excluding shelves) | E65: 02 | F65: =VLOOKUP(E65,'Understanding the coding'!$H$11:$I$43,2,FALSE) -> > 50% metal | G65: 051 | H65: =VLOOKUP(G65,'Understanding the coding'!$K$11:$L$96,2,FALSE) -> Over 2,000 kg | J65: 01017020510 | K65: =CONCATENATE(Tableau13[[#This Row],[Category label]],", ",Tableau13[[#This Row],[Label Type]],", ",Tableau13[[#This Row],[Material label]]," ,",Tableau13[[#This Row],[Caracteristic label]]) -> Living_room_lounge_dining_room_furniture, Storage units (excluding shelves), > 50% metal ,Over 2,000 kg | L65: 182.92 | M65: 238 | N65: 219.5
A66: =MID(J66,1,2) -> 01 | B66: =VLOOKUP(A66,'Understanding the coding'!$B$11:$C$23,2,FALSE) -> Living_room_lounge_dining_room_furniture | C66: =MID(J66,3,3) -> 017 | D66: =VLOOKUP(C66,'Understanding the coding'!$E$11:$F$56,2,FALSE) -> Storage units (excluding shelves) | E66: =MID(J66,6,2) -> 03 | F66: =VLOOKUP(E66,'Understanding the coding'!$H$11:$I$43,2,FALSE) -> Bamboo/rattan | G66: =MID(J66,8,3) -> 020 | H66: =VLOOKUP(G66,'Understanding the coding'!$K$11:$L$96,2,FALSE) -> Must not exceed 0.5 kg | J66: 01017030200 | K66: =CONCATENATE(Tableau13[[#This Row],[Category label]],", ",Tableau13[[#This Row],[Label Type]],", ",Tableau13[[#This Row],[Material label]]," ,",Tableau13[[#This Row],[Caracteristic label]]) -> Living_room_lounge_dining_room_furniture, Storage units (excluding shelves), Bamboo/rattan ,Must not exceed 0.5 kg | L66: 0.03 | M66: 092 | N66: 0.04
A67: 01 | B67: =VLOOKUP(A67,'Understanding the coding'!$B$11:$C$23,2,FALSE) -> Living_room_lounge_dining_room_furniture | C67: 017 | D67: =VLOOKUP(C67,'Understanding the coding'!$E$11:$F$56,2,FALSE) -> Storage units (excluding shelves) | E67: 03 | F67: =VLOOKUP(E67,'Understanding the coding'!$H$11:$I$43,2,FALSE) -> Bamboo/rattan | G67: 021 | H67: =VLOOKUP(G67,'Understanding the coding'!$K$11:$L$96,2,FALSE) -> Between 0.5 kg and < 1 kg | J67: 01017030210 | K67: =CONCATENATE(Tableau13[[#This Row],[Category label]],", ",Tableau13[[#This Row],[Label Type]],", ",Tableau13[[#This Row],[Material label]]," ,",Tableau13[[#This Row],[Caracteristic label]]) -> Living_room_lounge_dining_room_furniture, Storage units (excluding shelves), Bamboo/rattan ,Between 0.5 kg and < 1 kg | L67: 0.08 | M67: 003 | N67: 0.1
A68: 01 | B68: =VLOOKUP(A68,'Understanding the coding'!$B$11:$C$23,2,FALSE) -> Living_room_lounge_dining_room_furniture | C68: 017 | D68: =VLOOKUP(C68,'Understanding the coding'!$E$11:$F$56,2,FALSE) -> Storage units (excluding shelves) | E68: 03 | F68: =VLOOKUP(E68,'Understanding the coding'!$H$11:$I$43,2,FALSE) -> Bamboo/rattan | G68: 022 | H68: =VLOOKUP(G68,'Understanding the coding'!$K$11:$L$96,2,FALSE) -> Between 1 kg and < 2 kg | J68: 01017030220 | K68: =CONCATENATE(Tableau13[[#This Row],[Category label]],", ",Tableau13[[#This Row],[Label Type]],", ",Tableau13[[#This Row],[Material label]]," ,",Tableau13[[#This Row],[Caracteristic label]]) -> Living_room_lounge_dining_room_furniture, Storage units (excluding shelves), Bamboo/rattan ,Between 1 kg and < 2 kg | L68: 0.14 | M68: 098 | N68: 0.17
A69: 01 | B69: =VLOOKUP(A69,'Understanding the coding'!$B$11:$C$23,2,FALSE) -> Living_room_lounge_dining_room_furniture | C69: 017 | D69: =VLOOKUP(C69,'Understanding the coding'!$E$11:$F$56,2,FALSE) -> Storage units (excluding shelves) | E69: 03 | F69: =VLOOKUP(E69,'Understanding the coding'!$H$11:$I$43,2,FALSE) -> Bamboo/rattan | G69: 023 | H69: =VLOOKUP(G69,'Understanding the coding'!$K$11:$L$96,2,FALSE) -> Between 2 kg and < 5 kg | J69: 01017030230 | K69: =CONCATENATE(Tableau13[[#This Row],[Category label]],", ",Tableau13[[#This Row],[Label Type]],", ",Tableau13[[#This Row],[Material label]]," ,",Tableau13[[#This Row],[Caracteristic label]]) -> Living_room_lounge_dining_room_furniture, Storage units (excluding shelves), Bamboo/rattan ,Between 2 kg and < 5 kg | L69: 0.27 | M69: 103 | N69: 0.32
A70: 01 | B70: =VLOOKUP(A70,'Understanding the coding'!$B$11:$C$23,2,FALSE) -> Living_room_lounge_dining_room_furniture | C70: 017 | D70: =VLOOKUP(C70,'Understanding the coding'!$E$11:$F$56,2,FALSE) -> Storage units (excluding shelves) | E70: 03 | F70: =VLOOKUP(E70,'Understanding the coding'!$H$11:$I$43,2,FALSE) -> Bamboo/rattan | G70: 024 | H70: =VLOOKUP(G70,'Understanding the coding'!$K$11:$L$96,2,FALSE) -> Between 5 kg and < 10 kg | J70: 01017030240 | K70: =CONCATENATE(Tableau13[[#This Row],[Category label]],", ",Tableau13[[#This Row],[Label Type]],", ",Tableau13[[#This Row],[Material label]]," ,",Tableau13[[#This Row],[Caracteristic label]]) -> Living_room_lounge_dining_room_furniture, Storage units (excluding shelves), Bamboo/rattan ,Between 5 kg and < 10 kg | L70: 0.68 | M70: 044 | N70: 0.82
A71: 01 | B71: =VLOOKUP(A71,'Understanding the coding'!$B$11:$C$23,2,FALSE) -> Living_room_lounge_dining_room_furniture | C71: 017 | D71: =VLOOKUP(C71,'Understanding the coding'!$E$11:$F$56,2,FALSE) -> Storage units (excluding shelves) | E71: 03 | F71: =VLOOKUP(E71,'Understanding the coding'!$H$11:$I$43,2,FALSE) -> Bamboo/rattan | G71: 025 | H71: =VLOOKUP(G71,'Understanding the coding'!$K$11:$L$96,2,FALSE) -> Between 10 kg and < 20 kg | J71: 01017030250 | K71: =CONCATENATE(Tableau13[[#This Row],[Category label]],", ",Tableau13[[#This Row],[Label Type]],", ",Tableau13[[#This Row],[Material label]]," ,",Tableau13[[#This Row],[Caracteristic label]]) -> Living_room_lounge_dining_room_furniture, Storage units (excluding shelves), Bamboo/rattan ,Between 10 kg and < 20 kg | L71: 1.5 | M71: 059 | N71: 1.8
A72: 01 | B72: =VLOOKUP(A72,'Understanding the coding'!$B$11:$C$23,2,FALSE) -> Living_room_lounge_dining_room_furniture | C72: 017 | D72: =VLOOKUP(C72,'Understanding the coding'!$E$11:$F$56,2,FALSE) -> Storage units (excluding shelves) | E72: 03 | F72: =VLOOKUP(E72,'Understanding the coding'!$H$11:$I$43,2,FALSE) -> Bamboo/rattan | G72: 026 | H72: =VLOOKUP(G72,'Understanding the coding'!$K$11:$L$96,2,FALSE) -> Between 20 kg and < 30 kg | J72: 01017030260 | K72: =CONCATENATE(Tableau13[[#This Row],[Category label]],", ",Tableau13[[#This Row],[Label Type]],", ",Tableau13[[#This Row],[Material label]]," ,",Tableau13[[#This Row],[Caracteristic label]]) -> Living_room_lounge_dining_room_furniture, Storage units (excluding shelves), Bamboo/rattan ,Between 20 kg and < 30 kg | L72: 2.33 | M72: 062 | N72: 2.8
A73: 01 | B73: =VLOOKUP(A73,'Understanding the coding'!$B$11:$C$23,2,FALSE) -> Living_room_lounge_dining_room_furniture | C73: 017 | D73: =VLOOKUP(C73,'Understanding the coding'!$E$11:$F$56,2,FALSE) -> Storage units (excluding shelves) | E73: 03 | F73: =VLOOKUP(E73,'Understanding the coding'!$H$11:$I$43,2,FALSE) -> Bamboo/rattan | G73: 027 | H73: =VLOOKUP(G73,'Understanding the coding'!$K$11:$L$96,2,FALSE) -> Between 30 kg and < 40 kg | J73: 01017030270 | K73: =CONCATENATE(Tableau13[[#This Row],[Category label]],", ",Tableau13[[#This Row],[Label Type]],", ",Tableau13[[#This Row],[Material label]]," ,",Tableau13[[#This Row],[Caracteristic label]]) -> Living_room_lounge_dining_room_furniture, Storage units (excluding shelves), Bamboo/rattan ,Between 30 kg and < 40 kg | L73: 3.25 | M73: 122 | N73: 3.9
A74: 01 | B74: =VLOOKUP(A74,'Understanding the coding'!$B$11:$C$23,2,FALSE) -> Living_room_lounge_dining_room_furniture | C74: 017 | D74: =VLOOKUP(C74,'Understanding the coding'!$E$11:$F$56,2,FALSE) -> Storage units (excluding shelves) | E74: 03 | F74: =VLOOKUP(E74,'Understanding the coding'!$H$11:$I$43,2,FALSE) -> Bamboo/rattan | G74: 028 | H74: =VLOOKUP(G74,'Understanding the coding'!$K$11:$L$96,2,FALSE) -> Between 40 kg and < 60 kg | J74: 01017030280 | K74: =CONCATENATE(Tableau13[[#This Row],[Category label]],", ",Tableau13[[#This Row],[Label Type]],", ",Tableau13[[#This Row],[Material label]]," ,",Tableau13[[#This Row],[Caracteristic label]]) -> Living_room_lounge_dining_room_furniture, Storage units (excluding shelves), Bamboo/rattan ,Between 40 kg and < 60 kg | L74: 4.42 | M74: 126 | N74: 5.3
A75: 01 | B75: =VLOOKUP(A75,'Understanding the coding'!$B$11:$C$23,2,FALSE) -> Living_room_lounge_dining_room_furniture | C75: 017 | D75: =VLOOKUP(C75,'Understanding the coding'!$E$11:$F$56,2,FALSE) -> Storage units (excluding shelves) | E75: 03 | F75: =VLOOKUP(E75,'Understanding the coding'!$H$11:$I$43,2,FALSE) -> Bamboo/rattan | G75: 029 | H75: =VLOOKUP(G75,'Understanding the coding'!$K$11:$L$96,2,FALSE) -> Between 60 kg and < 100 kg | J75: 01017030290 | K75: =CONCATENATE(Tableau13[[#This Row],[Category label]],", ",Tableau13[[#This Row],[Label Type]],", ",Tableau13[[#This Row],[Material label]]," ,",Tableau13[[#This Row],[Caracteristic label]]) -> Living_room_lounge_dining_room_furniture, Storage units (excluding shelves), Bamboo/rattan ,Between 60 kg and < 100 kg | L75: 7.08 | M75: 067 | N75: 8.5
A76: 01 | B76: =VLOOKUP(A76,'Understanding the coding'!$B$11:$C$23,2,FALSE) -> Living_room_lounge_dining_room_furniture | C76: 017 | D76: =VLOOKUP(C76,'Understanding the coding'!$E$11:$F$56,2,FALSE) -> Storage units (excluding shelves) | E76: 03 | F76: =VLOOKUP(E76,'Understanding the coding'!$H$11:$I$43,2,FALSE) -> Bamboo/rattan | G76: 030 | H76: =VLOOKUP(G76,'Understanding the coding'!$K$11:$L$96,2,FALSE) -> Between 100 kg and < 150 kg | J76: 01017030300 | K76: =CONCATENATE(Tableau13[[#This Row],[Category label]],", ",Tableau13[[#This Row],[Label Type]],", ",Tableau13[[#This Row],[Material label]]," ,",Tableau13[[#This Row],[Caracteristic label]]) -> Living_room_lounge_dining_room_furniture, Storage units (excluding shelves), Bamboo/rattan ,Between 100 kg and < 150 kg | L76: 12.5 | M76: 072 | N76: 15
A77: 01 | B77: =VLOOKUP(A77,'Understanding the coding'!$B$11:$C$23,2,FALSE) -> Living_room_lounge_dining_room_furniture | C77: 017 | D77: =VLOOKUP(C77,'Understanding the coding'!$E$11:$F$56,2,FALSE) -> Storage units (excluding shelves) | E77: 03 | F77: =VLOOKUP(E77,'Understanding the coding'!$H$11:$I$43,2,FALSE) -> Bamboo/rattan | G77: 031 | H77: =VLOOKUP(G77,'Understanding the coding'!$K$11:$L$96,2,FALSE) -> Between 150 kg and < 200 kg | J77: 01017030310 | K77: =CONCATENATE(Tableau13[[#This Row],[Category label]],", ",Tableau13[[#This Row],[Label Type]],", ",Tableau13[[#This Row],[Material label]]," ,",Tableau13[[#This Row],[Caracteristic label]]) -> Living_room_lounge_dining_room_furniture, Storage units (excluding shelves), Bamboo/rattan ,Between 150 kg and < 200 kg | L77: 16.25 | M77: 145 | N77: 19.5
A78: 01 | B78: =VLOOKUP(A78,'Understanding the coding'!$B$11:$C$23,2,FALSE) -> Living_room_lounge_dining_room_furniture | C78: 017 | D78: =VLOOKUP(C78,'Understanding the coding'!$E$11:$F$56,2,FALSE) -> Storage units (excluding shelves) | E78: 03 | F78: =VLOOKUP(E78,'Understanding the coding'!$H$11:$I$43,2,FALSE) -> Bamboo/rattan | G78: 032 | H78: =VLOOKUP(G78,'Understanding the coding'!$K$11:$L$96,2,FALSE) -> Between 200 kg and < 250 kg | J78: 01017030320 | K78: =CONCATENATE(Tableau13[[#This Row],[Category label]],", ",Tableau13[[#This Row],[Label Type]],", ",Tableau13[[#This Row],[Material label]]," ,",Tableau13[[#This Row],[Caracteristic label]]) -> Living_room_lounge_dining_room_furniture, Storage units (excluding shelves), Bamboo/rattan ,Between 200 kg and < 250 kg | L78: 20.83 | M78: 149 | N78: 25
A79: 01 | B79: =VLOOKUP(A79,'Understanding the coding'!$B$11:$C$23,2,FALSE) -> Living_room_lounge_dining_room_furniture | C79: 017 | D79: =VLOOKUP(C79,'Understanding the coding'!$E$11:$F$56,2,FALSE) -> Storage units (excluding shelves) | E79: 03 | F79: =VLOOKUP(E79,'Understanding the coding'!$H$11:$I$43,2,FALSE) -> Bamboo/rattan | G79: 033 | H79: =VLOOKUP(G79,'Understanding the coding'!$K$11:$L$96,2,FALSE) -> Between 250 kg and < 300 kg | J79: 01017030330 | K79: =CONCATENATE(Tableau13[[#This Row],[Category label]],", ",Tableau13[[#This Row],[Label Type]],", ",Tableau13[[#This Row],[Material label]]," ,",Tableau13[[#This Row],[Caracteristic label]]) -> Living_room_lounge_dining_room_furniture, Storage units (excluding shelves), Bamboo/rattan ,Between 250 kg and < 300 kg | L79: 27.5 | M79: 026 | N79: 33
A80: 01 | B80: =VLOOKUP(A80,'Understanding the coding'!$B$11:$C$23,2,FALSE) -> Living_room_lounge_dining_room_furniture | C80: 017 | D80: =VLOOKUP(C80,'Understanding the coding'!$E$11:$F$56,2,FALSE) -> Storage units (excluding shelves) | E80: 03 | F80: =VLOOKUP(E80,'Understanding the coding'!$H$11:$I$43,2,FALSE) -> Bamboo/rattan | G80: 034 | H80: =VLOOKUP(G80,'Understanding the coding'!$K$11:$L$96,2,FALSE) -> Between 300 kg and < 400 kg | J80: 01017030340 | K80: =CONCATENATE(Tableau13[[#This Row],[Category label]],", ",Tableau13[[#This Row],[Label Type]],", ",Tableau13[[#This Row],[Material label]]," ,",Tableau13[[#This Row],[Caracteristic label]]) -> Living_room_lounge_dining_room_furniture, Storage units (excluding shelves), Bamboo/rattan ,Between 300 kg and < 400 kg | L80: 34.17 | M80: 158 | N80: 41
A81: 01 | B81: =VLOOKUP(A81,'Understanding the coding'!$B$11:$C$23,2,FALSE) -> Living_room_lounge_dining_room_furniture | C81: 017 | D81: =VLOOKUP(C81,'Understanding the coding'!$E$11:$F$56,2,FALSE) -> Storage units (excluding shelves) | E81: 03 | F81: =VLOOKUP(E81,'Understanding the coding'!$H$11:$I$43,2,FALSE) -> Bamboo/rattan | G81: 035 | H81: =VLOOKUP(G81,'Understanding the coding'!$K$11:$L$96,2,FALSE) -> Between 400 kg and < 500 kg | J81: 01017030350 | K81: =CONCATENATE(Tableau13[[#This Row],[Category label]],", ",Tableau13[[#This Row],[Label Type]],", ",Tableau13[[#This Row],[Material label]]," ,",Tableau13[[#This Row],[Caracteristic label]]) -> Living_room_lounge_dining_room_furniture, Storage units (excluding shelves), Bamboo/rattan ,Between 400 kg and < 500 kg | L81: 42.92 | M81: 166 | N81: 51.5
A82: 01 | B82: =VLOOKUP(A82,'Understanding the coding'!$B$11:$C$23,2,FALSE) -> Living_room_lounge_dining_room_furniture | C82: 017 | D82: =VLOOKUP(C82,'Understanding the coding'!$E$11:$F$56,2,FALSE) -> Storage units (excluding shelves) | E82: 03 | F82: =VLOOKUP(E82,'Understanding the coding'!$H$11:$I$43,2,FALSE) -> Bamboo/rattan | G82: 036 | H82: =VLOOKUP(G82,'Understanding the coding'!$K$11:$L$96,2,FALSE) -> Between 500 kg and < 600 kg | J82: 01017030360 | K82: =CONCATENATE(Tableau13[[#This Row],[Category label]],", ",Tableau13[[#This Row],[Label Type]],", ",Tableau13[[#This Row],[Material label]]," ,",Tableau13[[#This Row],[Caracteristic label]]) -> Living_room_lounge_dining_room_furniture, Storage units (excluding shelves), Bamboo/rattan ,Between 500 kg and < 600 kg | L82: 51.67 | M82: 079 | N82: 62
A83: 01 | B83: =VLOOKUP(A83,'Understanding the coding'!$B$11:$C$23,2,FALSE) -> Living_room_lounge_dining_room_furniture | C83: 017 | D83: =VLOOKUP(C83,'Understanding the coding'!$E$11:$F$56,2,FALSE) -> Storage units (excluding shelves) | E83: 03 | F83: =VLOOKUP(E83,'Understanding the coding'!$H$11:$I$43,2,FALSE) -> Bamboo/rattan | G83: 037 | H83: =VLOOKUP(G83,'Understanding the coding'!$K$11:$L$96,2,FALSE) -> Between 600 kg and < 700 kg | J83: 01017030370 | K83: =CONCATENATE(Tableau13[[#This Row],[Category label]],", ",Tableau13[[#This Row],[Label Type]],", ",Tableau13[[#This Row],[Material label]]," ,",Tableau13[[#This Row],[Caracteristic label]]) -> Living_room_lounge_dining_room_furniture, Storage units (excluding shelves), Bamboo/rattan ,Between 600 kg and < 700 kg | L83: 60.42 | M83: 181 | N83: 72.5
A84: 01 | B84: =VLOOKUP(A84,'Understanding the coding'!$B$11:$C$23,2,FALSE) -> Living_room_lounge_dining_room_furniture | C84: 017 | D84: =VLOOKUP(C84,'Understanding the coding'!$E$11:$F$56,2,FALSE) -> Storage units (excluding shelves) | E84: 03 | F84: =VLOOKUP(E84,'Understanding the coding'!$H$11:$I$43,2,FALSE) -> Bamboo/rattan | G84: 038 | H84: =VLOOKUP(G84,'Understanding the coding'!$K$11:$L$96,2,FALSE) -> Between 700 kg and < 800 kg | J84: 01017030380 | K84: =CONCATENATE(Tableau13[[#This Row],[Category label]],", ",Tableau13[[#This Row],[Label Type]],", ",Tableau13[[#This Row],[Material label]]," ,",Tableau13[[#This Row],[Caracteristic label]]) -> Living_room_lounge_dining_room_furniture, Storage units (excluding shelves), Bamboo/rattan ,Between 700 kg and < 800 kg | L84: 69.17 | M84: 036 | N84: 83
A85: 01 | B85: =VLOOKUP(A85,'Understanding the coding'!$B$11:$C$23,2,FALSE) -> Living_room_lounge_dining_room_furniture | C85: 017 | D85: =VLOOKUP(C85,'Understanding the coding'!$E$11:$F$56,2,FALSE) -> Storage units (excluding shelves) | E85: 03 | F85: =VLOOKUP(E85,'Understanding the coding'!$H$11:$I$43,2,FALSE) -> Bamboo/rattan | G85: 039 | H85: =VLOOKUP(G85,'Understanding the coding'!$K$11:$L$96,2,FALSE) -> Between 800 kg and < 900 kg | J85: 01017030390 | K85: =CONCATENATE(Tableau13[[#This Row],[Category label]],", ",Tableau13[[#This Row],[Label Type]],", ",Tableau13[[#This Row],[Material label]]," ,",Tableau13[[#This Row],[Caracteristic label]]) -> Living_room_lounge_dining_room_furniture, Storage units (excluding shelves), Bamboo/rattan ,Between 800 kg and < 900 kg | L85: 77.92 | M85: 194 | N85: 93.5
A86: 01 | B86: =VLOOKUP(A86,'Understanding the coding'!$B$11:$C$23,2,FALSE) -> Living_room_lounge_dining_room_furniture | C86: 017 | D86: =VLOOKUP(C86,'Understanding the coding'!$E$11:$F$56,2,FALSE) -> Storage units (excluding shelves) | E86: 03 | F86: =VLOOKUP(E86,'Understanding the coding'!$H$11:$I$43,2,FALSE) -> Bamboo/rattan | G86: 040 | H86: =VLOOKUP(G86,'Understanding the coding'!$K$11:$L$96,2,FALSE) -> Between 900 kg and < 1,000 kg | J86: 01017030400 | K86: =CONCATENATE(Tableau13[[#This Row],[Category label]],", ",Tableau13[[#This Row],[Label Type]],", ",Tableau13[[#This Row],[Material label]]," ,",Tableau13[[#This Row],[Caracteristic label]]) -> Living_room_lounge_dining_room_furniture, Storage units (excluding shelves), Bamboo/rattan ,Between 900 kg and < 1,000 kg | L86: 86.67 | M86: 084 | N86: 104
A87: 01 | B87: =VLOOKUP(A87,'Understanding the coding'!$B$11:$C$23,2,FALSE) -> Living_room_lounge_dining_room_furniture | C87: 017 | D87: =VLOOKUP(C87,'Understanding the coding'!$E$11:$F$56,2,FALSE) -> Storage units (excluding shelves) | E87: 03 | F87: =VLOOKUP(E87,'Understanding the coding'!$H$11:$I$43,2,FALSE) -> Bamboo/rattan | G87: 041 | H87: =VLOOKUP(G87,'Understanding the coding'!$K$11:$L$96,2,FALSE) -> Between 1,000 kg and < 1,100 kg | J87: 01017030410 | K87: =CONCATENATE(Tableau13[[#This Row],[Category label]],", ",Tableau13[[#This Row],[Label Type]],", ",Tableau13[[#This Row],[Material label]]," ,",Tableau13[[#This Row],[Caracteristic label]]) -> Living_room_lounge_dining_room_furniture, Storage units (excluding shelves), Bamboo/rattan ,Between 1,000 kg and < 1,100 kg | L87: 95.42 | M87: 206 | N87: 114.5
A88: 01 | B88: =VLOOKUP(A88,'Understanding the coding'!$B$11:$C$23,2,FALSE) -> Living_room_lounge_dining_room_furniture | C88: 017 | D88: =VLOOKUP(C88,'Understanding the coding'!$E$11:$F$56,2,FALSE) -> Storage units (excluding shelves) | E88: 03 | F88: =VLOOKUP(E88,'Understanding the coding'!$H$11:$I$43,2,FALSE) -> Bamboo/rattan | G88: 042 | H88: =VLOOKUP(G88,'Understanding the coding'!$K$11:$L$96,2,FALSE) -> Between 1,100 kg and < 1,200 kg | J88: 01017030420 | K88: =CONCATENATE(Tableau13[[#This Row],[Category label]],", ",Tableau13[[#This Row],[Label Type]],", ",Tableau13[[#This Row],[Material label]]," ,",Tableau13[[#This Row],[Caracteristic label]]) -> Living_room_lounge_dining_room_furniture, Storage units (excluding shelves), Bamboo/rattan ,Between 1,100 kg and < 1,200 kg | L88: 104.17 | M88: 209 | N88: 125
A89: 01 | B89: =VLOOKUP(A89,'Understanding the coding'!$B$11:$C$23,2,FALSE) -> Living_room_lounge_dining_room_furniture | C89: 017 | D89: =VLOOKUP(C89,'Understanding the coding'!$E$11:$F$56,2,FALSE) -> Storage units (excluding shelves) | E89: 03 | F89: =VLOOKUP(E89,'Understanding the coding'!$H$11:$I$43,2,FALSE) -> Bamboo/rattan | G89: 043 | H89: =VLOOKUP(G89,'Understanding the coding'!$K$11:$L$96,2,FALSE) -> Between 1,200 kg and < 1,300 kg | J89: 01017030430 | K89: =CONCATENATE(Tableau13[[#This Row],[Category label]],", ",Tableau13[[#This Row],[Label Type]],", ",Tableau13[[#This Row],[Material label]]," ,",Tableau13[[#This Row],[Caracteristic label]]) -> Living_room_lounge_dining_room_furniture, Storage units (excluding shelves), Bamboo/rattan ,Between 1,200 kg and < 1,300 kg | L89: 112.92 | M89: 215 | N89: 135.5
A90: 01 | B90: =VLOOKUP(A90,'Understanding the coding'!$B$11:$C$23,2,FALSE) -> Living_room_lounge_dining_room_furniture | C90: 017 | D90: =VLOOKUP(C90,'Understanding the coding'!$E$11:$F$56,2,FALSE) -> Storage units (excluding shelves) | E90: 03 | F90: =VLOOKUP(E90,'Understanding the coding'!$H$11:$I$43,2,FALSE) -> Bamboo/rattan | G90: 044 | H90: =VLOOKUP(G90,'Understanding the coding'!$K$11:$L$96,2,FALSE) -> Between 1,300 kg and < 1,400 kg | J90: 01017030440 | K90: =CONCATENATE(Tableau13[[#This Row],[Category label]],", ",Tableau13[[#This Row],[Label Type]],", ",Tableau13[[#This Row],[Material label]]," ,",Tableau13[[#This Row],[Caracteristic label]]) -> Living_room_lounge_dining_room_furniture, Storage units (excluding shelves), Bamboo/rattan ,Between 1,300 kg and < 1,400 kg | L90: 121.67 | M90: 219 | N90: 146
A91: 01 | B91: =VLOOKUP(A91,'Understanding the coding'!$B$11:$C$23,2,FALSE) -> Living_room_lounge_dining_room_furniture | C91: 017 | D91: =VLOOKUP(C91,'Understanding the coding'!$E$11:$F$56,2,FALSE) -> Storage units (excluding shelves) | E91: 03 | F91: =VLOOKUP(E91,'Understanding the coding'!$H$11:$I$43,2,FALSE) -> Bamboo/rattan | G91: 045 | H91: =VLOOKUP(G91,'Understanding the coding'!$K$11:$L$96,2,FALSE) -> Between 1,400 kg and < 1,500 kg | J91: 01017030450 | K91: =CONCATENATE(Tableau13[[#This Row],[Category label]],", ",Tableau13[[#This Row],[Label Type]],", ",Tableau13[[#This Row],[Material label]]," ,",Tableau13[[#This Row],[Caracteristic label]]) -> Living_room_lounge_dining_room_furniture, Storage units (excluding shelves), Bamboo/rattan ,Between 1,400 kg and < 1,500 kg | L91: 130.42 | M91: 223 | N91: 156.5
A92: 01 | B92: =VLOOKUP(A92,'Understanding the coding'!$B$11:$C$23,2,FALSE) -> Living_room_lounge_dining_room_furniture | C92: 017 | D92: =VLOOKUP(C92,'Understanding the coding'!$E$11:$F$56,2,FALSE) -> Storage units (excluding shelves) | E92: 03 | F92: =VLOOKUP(E92,'Understanding the coding'!$H$11:$I$43,2,FALSE) -> Bamboo/rattan | G92: 046 | H92: =VLOOKUP(G92,'Understanding the coding'!$K$11:$L$96,2,FALSE) -> Between 1,500 kg and < 1,600 kg | J92: 01017030460 | K92: =CONCATENATE(Tableau13[[#This Row],[Category label]],", ",Tableau13[[#This Row],[Label Type]],", ",Tableau13[[#This Row],[Material label]]," ,",Tableau13[[#This Row],[Caracteristic label]]) -> Living_room_lounge_dining_room_furniture, Storage units (excluding shelves), Bamboo/rattan ,Between 1,500 kg and < 1,600 kg | L92: 139.17 | M92: 226 | N92: 167
A93: 01 | B93: =VLOOKUP(A93,'Understanding the coding'!$B$11:$C$23,2,FALSE) -> Living_room_lounge_dining_room_furniture | C93: 017 | D93: =VLOOKUP(C93,'Understanding the coding'!$E$11:$F$56,2,FALSE) -> Storage units (excluding shelves) | E93: 03 | F93: =VLOOKUP(E93,'Understanding the coding'!$H$11:$I$43,2,FALSE) -> Bamboo/rattan | G93: 047 | H93: =VLOOKUP(G93,'Understanding the coding'!$K$11:$L$96,2,FALSE) -> Between 1,600 kg and < 1,700 kg | J93: 01017030470 | K93: =CONCATENATE(Tableau13[[#This Row],[Category label]],", ",Tableau13[[#This Row],[Label Type]],", ",Tableau13[[#This Row],[Material label]]," ,",Tableau13[[#This Row],[Caracteristic label]]) -> Living_room_lounge_dining_room_furniture, Storage units (excluding shelves), Bamboo/rattan ,Between 1,600 kg and < 1,700 kg | L93: 147.92 | M93: 229 | N93: 177.5
A94: 01 | B94: =VLOOKUP(A94,'Understanding the coding'!$B$11:$C$23,2,FALSE) -> Living_room_lounge_dining_room_furniture | C94: 017 | D94: =VLOOKUP(C94,'Understanding the coding'!$E$11:$F$56,2,FALSE) -> Storage units (excluding shelves) | E94: 03 | F94: =VLOOKUP(E94,'Understanding the coding'!$H$11:$I$43,2,FALSE) -> Bamboo/rattan | G94: 048 | H94: =VLOOKUP(G94,'Understanding the coding'!$K$11:$L$96,2,FALSE) -> Between 1,700 kg and < 1,800 kg | J94: 01017030480 | K94: =CONCATENATE(Tableau13[[#This Row],[Category label]],", ",Tableau13[[#This Row],[Label Type]],", ",Tableau13[[#This Row],[Material label]]," ,",Tableau13[[#This Row],[Caracteristic label]]) -> Living_room_lounge_dining_room_furniture, Storage units (excluding shelves), Bamboo/rattan ,Between 1,700 kg and < 1,800 kg | L94: 156.67 | M94: 232 | N94: 188
A95: 01 | B95: =VLOOKUP(A95,'Understanding the coding'!$B$11:$C$23,2,FALSE) -> Living_room_lounge_dining_room_furniture | C95: 017 | D95: =VLOOKUP(C95,'Understanding the coding'!$E$11:$F$56,2,FALSE) -> Storage units (excluding shelves) | E95: 03 | F95: =VLOOKUP(E95,'Understanding the coding'!$H$11:$I$43,2,FALSE) -> Bamboo/rattan | G95: 049 | H95: =VLOOKUP(G95,'Understanding the coding'!$K$11:$L$96,2,FALSE) -> Between 1,800 kg and < 1,900 kg | J95: 01017030490 | K95: =CONCATENATE(Tableau13[[#This Row],[Category label]],", ",Tableau13[[#This Row],[Label Type]],", ",Tableau13[[#This Row],[Material label]]," ,",Tableau13[[#This Row],[Caracteristic label]]) -> Living_room_lounge_dining_room_furniture, Storage units (excluding shelves), Bamboo/rattan ,Between 1,800 kg and < 1,900 kg | L95: 165.42 | M95: 235 | N95: 198.5
A96: 01 | B96: =VLOOKUP(A96,'Understanding the coding'!$B$11:$C$23,2,FALSE) -> Living_room_lounge_dining_room_furniture | C96: 017 | D96: =VLOOKUP(C96,'Understanding the coding'!$E$11:$F$56,2,FALSE) -> Storage units (excluding shelves) | E96: 03 | F96: =VLOOKUP(E96,'Understanding the coding'!$H$11:$I$43,2,FALSE) -> Bamboo/rattan | G96: 050 | H96: =VLOOKUP(G96,'Understanding the coding'!$K$11:$L$96,2,FALSE) -> Between 1,900 kg and < 2,000 kg | J96: 01017030500 | K96: =CONCATENATE(Tableau13[[#This Row],[Category label]],", ",Tableau13[[#This Row],[Label Type]],", ",Tableau13[[#This Row],[Material label]]," ,",Tableau13[[#This Row],[Caracteristic label]]) -> Living_room_lounge_dining_room_furniture, Storage units (excluding shelves), Bamboo/rattan ,Between 1,900 kg and < 2,000 kg | L96: 174.17 | M96: 236 | N96: 209
A97: 01 | B97: =VLOOKUP(A97,'Understanding the coding'!$B$11:$C$23,2,FALSE) -> Living_room_lounge_dining_room_furniture | C97: 017 | D97: =VLOOKUP(C97,'Understanding the coding'!$E$11:$F$56,2,FALSE) -> Storage units (excluding shelves) | E97: 03 | F97: =VLOOKUP(E97,'Understanding the coding'!$H$11:$I$43,2,FALSE) -> Bamboo/rattan | G97: 051 | H97: =VLOOKUP(G97,'Understanding the coding'!$K$11:$L$96,2,FALSE) -> Over 2,000 kg | J97: 01017030510 | K97: =CONCATENATE(Tableau13[[#This Row],[Category label]],", ",Tableau13[[#This Row],[Label Type]],", ",Tableau13[[#This Row],[Material label]]," ,",Tableau13[[#This Row],[Caracteristic label]]) -> Living_room_lounge_dining_room_furniture, Storage units (excluding shelves), Bamboo/rattan ,Over 2,000 kg | L97: 182.92 | M97: 238 | N97: 219.5
A98: 01 | B98: =VLOOKUP(A98,'Understanding the coding'!$B$11:$C$23,2,FALSE) -> Living_room_lounge_dining_room_furniture | C98: 017 | D98: =VLOOKUP(C98,'Understanding the coding'!$E$11:$F$56,2,FALSE) -> Storage units (excluding shelves) | E98: 04 | F98: =VLOOKUP(E98,'Understanding the coding'!$H$11:$I$43,2,FALSE) -> > 50% biosourced materials or non-synthetic textiles | G98: 020 | H98: =VLOOKUP(G98,'Understanding the coding'!$K$11:$L$96,2,FALSE) -> Must not exceed 0.5 kg | J98: 01017040200 | K98: =CONCATENATE(Tableau13[[#This Row],[Category label]],", ",Tableau13[[#This Row],[Label Type]],", ",Tableau13[[#This Row],[Material label]]," ,",Tableau13[[#This Row],[Caracteristic label]]) -> Living_room_lounge_dining_room_furniture, Storage units (excluding shelves), > 50% biosourced materials or non-synthetic textiles ,Must not exceed 0.5 kg | L98: 0.03 | M98: 092 | N98: 0.04
A99: 01 | B99: =VLOOKUP(A99,'Understanding the coding'!$B$11:$C$23,2,FALSE) -> Living_room_lounge_dining_room_furniture | C99: 017 | D99: =VLOOKUP(C99,'Understanding the coding'!$E$11:$F$56,2,FALSE) -> Storage units (excluding shelves) | E99: 04 | F99: =VLOOKUP(E99,'Understanding the coding'!$H$11:$I$43,2,FALSE) -> > 50% biosourced materials or non-synthetic textiles | G99: 021 | H99: =VLOOKUP(G99,'Understanding the coding'!$K$11:$L$96,2,FALSE) -> Between 0.5 kg and < 1 kg | J99: 01017040210 | K99: =CONCATENATE(Tableau13[[#This Row],[Category label]],", ",Tableau13[[#This Row],[Label Type]],", ",Tableau13[[#This Row],[Material label]]," ,",Tableau13[[#This Row],[Caracteristic label]]) -> Living_room_lounge_dining_room_furniture, Storage units (excluding shelves), > 50% biosourced materials or non-synthetic textiles ,Between 0.5 kg and < 1 kg | L99: 0.08 | M99: 003 | N99: 0.1
A100: 01 | B100: =VLOOKUP(A100,'Understanding the coding'!$B$11:$C$23,2,FALSE) -> Living_room_lounge_dining_room_furniture | C100: 017 | D100: =VLOOKUP(C100,'Understanding the coding'!$E$11:$F$56,2,FALSE) -> Storage units (excluding shelves) | E100: 04 | F100: =VLOOKUP(E100,'Understanding the coding'!$H$11:$I$43,2,FALSE) -> > 50% biosourced materials or non-synthetic textiles | G100: 022 | H100: =VLOOKUP(G100,'Understanding the coding'!$K$11:$L$96,2,FALSE) -> Between 1 kg and < 2 kg | J100: 01017040220 | K100: =CONCATENATE(Tableau13[[#This Row],[Category label]],", ",Tableau13[[#This Row],[Label Type]],", ",Tableau13[[#This Row],[Material label]]," ,",Tableau13[[#This Row],[Caracteristic label]]) -> Living_room_lounge_dining_room_furniture, Storage units (excluding shelves), > 50% biosourced materials or non-synthetic textiles ,Between 1 kg and < 2 kg | L100: 0.14 | M100: 098 | N100: 0.17
A101: 01 | B101: =VLOOKUP(A101,'Understanding the coding'!$B$11:$C$23,2,FALSE) -> Living_room_lounge_dining_room_furniture | C101: 017 | D101: =VLOOKUP(C101,'Understanding the coding'!$E$11:$F$56,2,FALSE) -> Storage units (excluding shelves) | E101: 04 | F101: =VLOOKUP(E101,'Understanding the coding'!$H$11:$I$43,2,FALSE) -> > 50% biosourced materials or non-synthetic textiles | G101: 023 | H101: =VLOOKUP(G101,'Understanding the coding'!$K$11:$L$96,2,FALSE) -> Between 2 kg and < 5 kg | J101: 01017040230 | K101: =CONCATENATE(Tableau13[[#This Row],[Category label]],", ",Tableau13[[#This Row],[Label Type]],", ",Tableau13[[#This Row],[Material label]]," ,",Tableau13[[#This Row],[Caracteristic label]]) -> Living_room_lounge_dining_room_furniture, Storage units (excluding shelves), > 50% biosourced materials or non-synthetic textiles ,Between 2 kg and < 5 kg | L101: 0.27 | M101: 103 | N101: 0.32
A102: 01 | B102: =VLOOKUP(A102,'Understanding the coding'!$B$11:$C$23,2,FALSE) -> Living_room_lounge_dining_room_furniture | C102: 017 | D102: =VLOOKUP(C102,'Understanding the coding'!$E$11:$F$56,2,FALSE) -> Storage units (excluding shelves) | E102: 04 | F102: =VLOOKUP(E102,'Understanding the coding'!$H$11:$I$43,2,FALSE) -> > 50% biosourced materials or non-synthetic textiles | G102: 024 | H102: =VLOOKUP(G102,'Understanding the coding'!$K$11:$L$96,2,FALSE) -> Between 5 kg and < 10 kg | J102: 01017040240 | K102: =CONCATENATE(Tableau13[[#This Row],[Category label]],", ",Tableau13[[#This Row],[Label Type]],", ",Tableau13[[#This Row],[Material label]]," ,",Tableau13[[#This Row],[Caracteristic label]]) -> Living_room_lounge_dining_room_furniture, Storage units (excluding shelves), > 50% biosourced materials or non-synthetic textiles ,Between 5 kg and < 10 kg | L102: 0.68 | M102: 044 | N102: 0.82
A103: 01 | B103: =VLOOKUP(A103,'Understanding the coding'!$B$11:$C$23,2,FALSE) -> Living_room_lounge_dining_room_furniture | C103: 017 | D103: =VLOOKUP(C103,'Understanding the coding'!$E$11:$F$56,2,FALSE) -> Storage units (excluding shelves) | E103: 04 | F103: =VLOOKUP(E103,'Understanding the coding'!$H$11:$I$43,2,FALSE) -> > 50% biosourced materials or non-synthetic textiles | G103: 025 | H103: =VLOOKUP(G103,'Understanding the coding'!$K$11:$L$96,2,FALSE) -> Between 10 kg and < 20 kg | J103: 01017040250 | K103: =CONCATENATE(Tableau13[[#This Row],[Category label]],", ",Tableau13[[#This Row],[Label Type]],", ",Tableau13[[#This Row],[Material label]]," ,",Tableau13[[#This Row],[Caracteristic label]]) -> Living_room_lounge_dining_room_furniture, Storage units (excluding shelves), > 50% biosourced materials or non-synthetic textiles ,Between 10 kg and < 20 kg | L103: 1.5 | M103: 059 | N103: 1.8
A104: 01 | B104: =VLOOKUP(A104,'Understanding the coding'!$B$11:$C$23,2,FALSE) -> Living_room_lounge_dining_room_furniture | C104: 017 | D104: =VLOOKUP(C104,'Understanding the coding'!$E$11:$F$56,2,FALSE) -> Storage units (excluding shelves) | E104: 04 | F104: =VLOOKUP(E104,'Understanding the coding'!$H$11:$I$43,2,FALSE) -> > 50% biosourced materials or non-synthetic textiles | G104: 026 | H104: =VLOOKUP(G104,'Understanding the coding'!$K$11:$L$96,2,FALSE) -> Between 20 kg and < 30 kg | J104: 01017040260 | K104: =CONCATENATE(Tableau13[[#This Row],[Category label]],", ",Tableau13[[#This Row],[Label Type]],", ",Tableau13[[#This Row],[Material label]]," ,",Tableau13[[#This Row],[Caracteristic label]]) -> Living_room_lounge_dining_room_furniture, Storage units (excluding shelves), > 50% biosourced materials or non-synthetic textiles ,Between 20 kg and < 30 kg | L104: 2.33 | M104: 062 | N104: 2.8
A105: 01 | B105: =VLOOKUP(A105,'Understanding the coding'!$B$11:$C$23,2,FALSE) -> Living_room_lounge_dining_room_furniture | C105: 017 | D105: =VLOOKUP(C105,'Understanding the coding'!$E$11:$F$56,2,FALSE) -> Storage units (excluding shelves) | E105: 04 | F105: =VLOOKUP(E105,'Understanding the coding'!$H$11:$I$43,2,FALSE) -> > 50% biosourced materials or non-synthetic textiles | G105: 027 | H105: =VLOOKUP(G105,'Understanding the coding'!$K$11:$L$96,2,FALSE) -> Between 30 kg and < 40 kg | J105: 01017040270 | K105: =CONCATENATE(Tableau13[[#This Row],[Category label]],", ",Tableau13[[#This Row],[Label Type]],", ",Tableau13[[#This Row],[Material label]]," ,",Tableau13[[#This Row],[Caracteristic label]]) -> Living_room_lounge_dining_room_furniture, Storage units (excluding shelves), > 50% biosourced materials or non-synthetic textiles ,Between 30 kg and < 40 kg | L105: 3.25 | M105: 122 | N105: 3.9
A106: 01 | B106: =VLOOKUP(A106,'Understanding the coding'!$B$11:$C$23,2,FALSE) -> Living_room_lounge_dining_room_furniture | C106: 017 | D106: =VLOOKUP(C106,'Understanding the coding'!$E$11:$F$56,2,FALSE) -> Storage units (excluding shelves) | E106: 04 | F106: =VLOOKUP(E106,'Understanding the coding'!$H$11:$I$43,2,FALSE) -> > 50% biosourced materials or non-synthetic textiles | G106: 028 | H106: =VLOOKUP(G106,'Understanding the coding'!$K$11:$L$96,2,FALSE) -> Between 40 kg and < 60 kg | J106: 01017040280 | K106: =CONCATENATE(Tableau13[[#This Row],[Category label]],", ",Tableau13[[#This Row],[Label Type]],", ",Tableau13[[#This Row],[Material label]]," ,",Tableau13[[#This Row],[Caracteristic label]]) -> Living_room_lounge_dining_room_furniture, Storage units (excluding shelves), > 50% biosourced materials or non-synthetic textiles ,Between 40 kg and < 60 kg | L106: 4.42 | M106: 126 | N106: 5.3
A107: 01 | B107: =VLOOKUP(A107,'Understanding the coding'!$B$11:$C$23,2,FALSE) -> Living_room_lounge_dining_room_furniture | C107: 017 | D107: =VLOOKUP(C107,'Understanding the coding'!$E$11:$F$56,2,FALSE) -> Storage units (excluding shelves) | E107: 04 | F107: =VLOOKUP(E107,'Understanding the coding'!$H$11:$I$43,2,FALSE) -> > 50% biosourced materials or non-synthetic textiles | G107: 029 | H107: =VLOOKUP(G107,'Understanding the coding'!$K$11:$L$96,2,FALSE) -> Between 60 kg and < 100 kg | J107: 01017040290 | K107: =CONCATENATE(Tableau13[[#This Row],[Category label]],", ",Tableau13[[#This Row],[Label Type]],", ",Tableau13[[#This Row],[Material label]]," ,",Tableau13[[#This Row],[Caracteristic label]]) -> Living_room_lounge_dining_room_furniture, Storage units (excluding shelves), > 50% biosourced materials or non-synthetic textiles ,Between 60 kg and < 100 kg | L107: 7.08 | M107: 067 | N107: 8.5
A108: 01 | B108: =VLOOKUP(A108,'Understanding the coding'!$B$11:$C$23,2,FALSE) -> Living_room_lounge_dining_room_furniture | C108: 017 | D108: =VLOOKUP(C108,'Understanding the coding'!$E$11:$F$56,2,FALSE) -> Storage units (excluding shelves) | E108: 04 | F108: =VLOOKUP(E108,'Understanding the coding'!$H$11:$I$43,2,FALSE) -> > 50% biosourced materials or non-synthetic textiles | G108: 030 | H108: =VLOOKUP(G108,'Understanding the coding'!$K$11:$L$96,2,FALSE) -> Between 100 kg and < 150 kg | J108: 01017040300 | K108: =CONCATENATE(Tableau13[[#This Row],[Category label]],", ",Tableau13[[#This Row],[Label Type]],", ",Tableau13[[#This Row],[Material label]]," ,",Tableau13[[#This Row],[Caracteristic label]]) -> Living_room_lounge_dining_room_furniture, Storage units (excluding shelves), > 50% biosourced materials or non-synthetic textiles ,Between 100 kg and < 150 kg | L108: 12.5 | M108: 072 | N108: 15
A109: 01 | B109: =VLOOKUP(A109,'Understanding the coding'!$B$11:$C$23,2,FALSE) -> Living_room_lounge_dining_room_furniture | C109: 017 | D109: =VLOOKUP(C109,'Understanding the coding'!$E$11:$F$56,2,FALSE) -> Storage units (excluding shelves) | E109: 04 | F109: =VLOOKUP(E109,'Understanding the coding'!$H$11:$I$43,2,FALSE) -> > 50% biosourced materials or non-synthetic textiles | G109: 031 | H109: =VLOOKUP(G109,'Understanding the coding'!$K$11:$L$96,2,FALSE) -> Between 150 kg and < 200 kg | J109: 01017040310 | K109: =CONCATENATE(Tableau13[[#This Row],[Category label]],", ",Tableau13[[#This Row],[Label Type]],", ",Tableau13[[#This Row],[Material label]]," ,",Tableau13[[#This Row],[Caracteristic label]]) -> Living_room_lounge_dining_room_furniture, Storage units (excluding shelves), > 50% biosourced materials or non-synthetic textiles ,Between 150 kg and < 200 kg | L109: 16.25 | M109: 145 | N109: 19.5
A110: 01 | B110: =VLOOKUP(A110,'Understanding the coding'!$B$11:$C$23,2,FALSE) -> Living_room_lounge_dining_room_furniture | C110: 017 | D110: =VLOOKUP(C110,'Understanding the coding'!$E$11:$F$56,2,FALSE) -> Storage units (excluding shelves) | E110: 04 | F110: =VLOOKUP(E110,'Understanding the coding'!$H$11:$I$43,2,FALSE) -> > 50% biosourced materials or non-synthetic textiles | G110: 032 | H110: =VLOOKUP(G110,'Understanding the coding'!$K$11:$L$96,2,FALSE) -> Between 200 kg and < 250 kg | J110: 01017040320 | K110: =CONCATENATE(Tableau13[[#This Row],[Category label]],", ",Tableau13[[#This Row],[Label Type]],", ",Tableau13[[#This Row],[Material label]]," ,",Tableau13[[#This Row],[Caracteristic label]]) -> Living_room_lounge_dining_room_furniture, Storage units (excluding shelves), > 50% biosourced materials or non-synthetic textiles ,Between 200 kg and < 250 kg | L110: 20.83 | M110: 149 | N110: 25
A111: 01 | B111: =VLOOKUP(A111,'Understanding the coding'!$B$11:$C$23,2,FALSE) -> Living_room_lounge_dining_room_furniture | C111: 017 | D111: =VLOOKUP(C111,'Understanding the coding'!$E$11:$F$56,2,FALSE) -> Storage units (excluding shelves) | E111: 04 | F111: =VLOOKUP(E111,'Understanding the coding'!$H$11:$I$43,2,FALSE) -> > 50% biosourced materials or non-synthetic textiles | G111: 033 | H111: =VLOOKUP(G111,'Understanding the coding'!$K$11:$L$96,2,FALSE) -> Between 250 kg and < 300 kg | J111: 01017040330 | K111: =CONCATENATE(Tableau13[[#This Row],[Category label]],", ",Tableau13[[#This Row],[Label Type]],", ",Tableau13[[#This Row],[Material label]]," ,",Tableau13[[#This Row],[Caracteristic label]]) -> Living_room_lounge_dining_room_furniture, Storage units (excluding shelves), > 50% biosourced materials or non-synthetic textiles ,Between 250 kg and < 300 kg | L111: 27.5 | M111: 026 | N111: 33
A112: 01 | B112: =VLOOKUP(A112,'Understanding the coding'!$B$11:$C$23,2,FALSE) -> Living_room_lounge_dining_room_furniture | C112: 017 | D112: =VLOOKUP(C112,'Understanding the coding'!$E$11:$F$56,2,FALSE) -> Storage units (excluding shelves) | E112: 04 | F112: =VLOOKUP(E112,'Understanding the coding'!$H$11:$I$43,2,FALSE) -> > 50% biosourced materials or non-synthetic textiles | G112: 034 | H112: =VLOOKUP(G112,'Understanding the coding'!$K$11:$L$96,2,FALSE) -> Between 300 kg and < 400 kg | J112: 01017040340 | K112: =CONCATENATE(Tableau13[[#This Row],[Category label]],", ",Tableau13[[#This Row],[Label Type]],", ",Tableau13[[#This Row],[Material label]]," ,",Tableau13[[#This Row],[Caracteristic label]]) -> Living_room_lounge_dining_room_furniture, Storage units (excluding shelves), > 50% biosourced materials or non-synthetic textiles ,Between 300 kg and < 400 kg | L112: 34.17 | M112: 158 | N112: 41
A113: 01 | B113: =VLOOKUP(A113,'Understanding the coding'!$B$11:$C$23,2,FALSE) -> Living_room_lounge_dining_room_furniture | C113: 017 | D113: =VLOOKUP(C113,'Understanding the coding'!$E$11:$F$56,2,FALSE) -> Storage units (excluding shelves) | E113: 04 | F113: =VLOOKUP(E113,'Understanding the coding'!$H$11:$I$43,2,FALSE) -> > 50% biosourced materials or non-synthetic textiles | G113: 035 | H113: =VLOOKUP(G113,'Understanding the coding'!$K$11:$L$96,2,FALSE) -> Between 400 kg and < 500 kg | J113: 01017040350 | K113: =CONCATENATE(Tableau13[[#This Row],[Category label]],", ",Tableau13[[#This Row],[Label Type]],", ",Tableau13[[#This Row],[Material label]]," ,",Tableau13[[#This Row],[Caracteristic label]]) -> Living_room_lounge_dining_room_furniture, Storage units (excluding shelves), > 50% biosourced materials or non-synthetic textiles ,Between 400 kg and < 500 kg | L113: 42.92 | M113: 166 | N113: 51.5
A114: 01 | B114: =VLOOKUP(A114,'Understanding the coding'!$B$11:$C$23,2,FALSE) -> Living_room_lounge_dining_room_furniture | C114: 017 | D114: =VLOOKUP(C114,'Understanding the coding'!$E$11:$F$56,2,FALSE) -> Storage units (excluding shelves) | E114: 04 | F114: =VLOOKUP(E114,'Understanding the coding'!$H$11:$I$43,2,FALSE) -> > 50% biosourced materials or non-synthetic textiles | G114: 036 | H114: =VLOOKUP(G114,'Understanding the coding'!$K$11:$L$96,2,FALSE) -> Between 500 kg and < 600 kg | J114: 01017040360 | K114: =CONCATENATE(Tableau13[[#This Row],[Category label]],", ",Tableau13[[#This Row],[Label Type]],", ",Tableau13[[#This Row],[Material label]]," ,",Tableau13[[#This Row],[Caracteristic label]]) -> Living_room_lounge_dining_room_furniture, Storage units (excluding shelves), > 50% biosourced materials or non-synthetic textiles ,Between 500 kg and < 600 kg | L114: 51.67 | M114: 079 | N114: 62
A115: 01 | B115: =VLOOKUP(A115,'Understanding the coding'!$B$11:$C$23,2,FALSE) -> Living_room_lounge_dining_room_furniture | C115: 017 | D115: =VLOOKUP(C115,'Understanding the coding'!$E$11:$F$56,2,FALSE) -> Storage units (excluding shelves) | E115: 04 | F115: =VLOOKUP(E115,'Understanding the coding'!$H$11:$I$43,2,FALSE) -> > 50% biosourced materials or non-synthetic textiles | G115: 037 | H115: =VLOOKUP(G115,'Understanding the coding'!$K$11:$L$96,2,FALSE) -> Between 600 kg and < 700 kg | J115: 01017040370 | K115: =CONCATENATE(Tableau13[[#This Row],[Category label]],", ",Tableau13[[#This Row],[Label Type]],", ",Tableau13[[#This Row],[Material label]]," ,",Tableau13[[#This Row],[Caracteristic label]]) -> Living_room_lounge_dining_room_furniture, Storage units (excluding shelves), > 50% biosourced materials or non-synthetic textiles ,Between 600 kg and < 700 kg | L115: 60.42 | M115: 181 | N115: 72.5
A116: 01 | B116: =VLOOKUP(A116,'Understanding the coding'!$B$11:$C$23,2,FALSE) -> Living_room_lounge_dining_room_furniture | C116: 017 | D116: =VLOOKUP(C116,'Understanding the coding'!$E$11:$F$56,2,FALSE) -> Storage units (excluding shelves) | E116: 04 | F116: =VLOOKUP(E116,'Understanding the coding'!$H$11:$I$43,2,FALSE) -> > 50% biosourced materials or non-synthetic textiles | G116: 038 | H116: =VLOOKUP(G116,'Understanding the coding'!$K$11:$L$96,2,FALSE) -> Between 700 kg and < 800 kg | J116: 01017040380 | K116: =CONCATENATE(Tableau13[[#This Row],[Category label]],", ",Tableau13[[#This Row],[Label Type]],", ",Tableau13[[#This Row],[Material label]]," ,",Tableau13[[#This Row],[Caracteristic label]]) -> Living_room_lounge_dining_room_furniture, Storage units (excluding shelves), > 50% biosourced materials or non-synthetic textiles ,Between 700 kg and < 800 kg | L116: 69.17 | M116: 036 | N116: 83
A117: 01 | B117: =VLOOKUP(A117,'Understanding the coding'!$B$11:$C$23,2,FALSE) -> Living_room_lounge_dining_room_furniture | C117: 017 | D117: =VLOOKUP(C117,'Understanding the coding'!$E$11:$F$56,2,FALSE) -> Storage units (excluding shelves) | E117: 04 | F117: =VLOOKUP(E117,'Understanding the coding'!$H$11:$I$43,2,FALSE) -> > 50% biosourced materials or non-synthetic textiles | G117: 039 | H117: =VLOOKUP(G117,'Understanding the coding'!$K$11:$L$96,2,FALSE) -> Between 800 kg and < 900 kg | J117: 01017040390 | K117: =CONCATENATE(Tableau13[[#This Row],[Category label]],", ",Tableau13[[#This Row],[Label Type]],", ",Tableau13[[#This Row],[Material label]]," ,",Tableau13[[#This Row],[Caracteristic label]]) -> Living_room_lounge_dining_room_furniture, Storage units (excluding shelves), > 50% biosourced materials or non-synthetic textiles ,Between 800 kg and < 900 kg | L117: 77.92 | M117: 194 | N117: 93.5
A118: 01 | B118: =VLOOKUP(A118,'Understanding the coding'!$B$11:$C$23,2,FALSE) -> Living_room_lounge_dining_room_furniture | C118: 017 | D118: =VLOOKUP(C118,'Understanding the coding'!$E$11:$F$56,2,FALSE) -> Storage units (excluding shelves) | E118: 04 | F118: =VLOOKUP(E118,'Understanding the coding'!$H$11:$I$43,2,FALSE) -> > 50% biosourced materials or non-synthetic textiles | G118: 040 | H118: =VLOOKUP(G118,'Understanding the coding'!$K$11:$L$96,2,FALSE) -> Between 900 kg and < 1,000 kg | J118: 01017040400 | K118: =CONCATENATE(Tableau13[[#This Row],[Category label]],", ",Tableau13[[#This Row],[Label Type]],", ",Tableau13[[#This Row],[Material label]]," ,",Tableau13[[#This Row],[Caracteristic label]]) -> Living_room_lounge_dining_room_furniture, Storage units (excluding shelves), > 50% biosourced materials or non-synthetic textiles ,Between 900 kg and < 1,000 kg | L118: 86.67 | M118: 084 | N118: 104
A119: 01 | B119: =VLOOKUP(A119,'Understanding the coding'!$B$11:$C$23,2,FALSE) -> Living_room_lounge_dining_room_furniture | C119: 017 | D119: =VLOOKUP(C119,'Understanding the coding'!$E$11:$F$56,2,FALSE) -> Storage units (excluding shelves) | E119: 04 | F119: =VLOOKUP(E119,'Understanding the coding'!$H$11:$I$43,2,FALSE) -> > 50% biosourced materials or non-synthetic textiles | G119: 041 | H119: =VLOOKUP(G119,'Understanding the coding'!$K$11:$L$96,2,FALSE) -> Between 1,000 kg and < 1,100 kg | J119: 01017040410 | K119: =CONCATENATE(Tableau13[[#This Row],[Category label]],", ",Tableau13[[#This Row],[Label Type]],", ",Tableau13[[#This Row],[Material label]]," ,",Tableau13[[#This Row],[Caracteristic label]]) -> Living_room_lounge_dining_room_furniture, Storage units (excluding shelves), > 50% biosourced materials or non-synthetic textiles ,Between 1,000 kg and < 1,100 kg | L119: 95.42 | M119: 206 | N119: 114.5
A120: 01 | B120: =VLOOKUP(A120,'Understanding the coding'!$B$11:$C$23,2,FALSE) -> Living_room_lounge_dining_room_furniture | C120: 017 | D120: =VLOOKUP(C120,'Understanding the coding'!$E$11:$F$56,2,FALSE) -> Storage units (excluding shelves) | E120: 04 | F120: =VLOOKUP(E120,'Understanding the coding'!$H$11:$I$43,2,FALSE) -> > 50% biosourced materials or non-synthetic textiles | G120: 042 | H120: =VLOOKUP(G120,'Understanding the coding'!$K$11:$L$96,2,FALSE) -> Between 1,100 kg and < 1,200 kg | J120: 01017040420 | K120: =CONCATENATE(Tableau13[[#This Row],[Category label]],", ",Tableau13[[#This Row],[Label Type]],", ",Tableau13[[#This Row],[Material label]]," ,",Tableau13[[#This Row],[Caracteristic label]]) -> Living_room_lounge_dining_room_furniture, Storage units (excluding shelves), > 50% biosourced materials or non-synthetic textiles ,Between 1,100 kg and < 1,200 kg | L120: 104.17 | M120: 209 | N120: 125
A121: 01 | B121: =VLOOKUP(A121,'Understanding the coding'!$B$11:$C$23,2,FALSE) -> Living_room_lounge_dining_room_furniture | C121: 017 | D121: =VLOOKUP(C121,'Understanding the coding'!$E$11:$F$56,2,FALSE) -> Storage units (excluding shelves) | E121: 04 | F121: =VLOOKUP(E121,'Understanding the coding'!$H$11:$I$43,2,FALSE) -> > 50% biosourced materials or non-synthetic textiles | G121: 043 | H121: =VLOOKUP(G121,'Understanding the coding'!$K$11:$L$96,2,FALSE) -> Between 1,200 kg and < 1,300 kg | J121: 01017040430 | K121: =CONCATENATE(Tableau13[[#This Row],[Category label]],", ",Tableau13[[#This Row],[Label Type]],", ",Tableau13[[#This Row],[Material label]]," ,",Tableau13[[#This Row],[Caracteristic label]]) -> Living_room_lounge_dining_room_furniture, Storage units (excluding shelves), > 50% biosourced materials or non-synthetic textiles ,Between 1,200 kg and < 1,300 kg | L121: 112.92 | M121: 215 | N121: 135.5
A122: 01 | B122: =VLOOKUP(A122,'Understanding the coding'!$B$11:$C$23,2,FALSE) -> Living_room_lounge_dining_room_furniture | C122: 017 | D122: =VLOOKUP(C122,'Understanding the coding'!$E$11:$F$56,2,FALSE) -> Storage units (excluding shelves) | E122: 04 | F122: =VLOOKUP(E122,'Understanding the coding'!$H$11:$I$43,2,FALSE) -> > 50% biosourced materials or non-synthetic textiles | G122: 044 | H122: =VLOOKUP(G122,'Understanding the coding'!$K$11:$L$96,2,FALSE) -> Between 1,300 kg and < 1,400 kg | J122: 01017040440 | K122: =CONCATENATE(Tableau13[[#This Row],[Category label]],", ",Tableau13[[#This Row],[Label Type]],", ",Tableau13[[#This Row],[Material label]]," ,",Tableau13[[#This Row],[Caracteristic label]]) -> Living_room_lounge_dining_room_furniture, Storage units (excluding shelves), > 50% biosourced materials or non-synthetic textiles ,Between 1,300 kg and < 1,400 kg | L122: 121.67 | M122: 219 | N122: 146
A123: 01 | B123: =VLOOKUP(A123,'Understanding the coding'!$B$11:$C$23,2,FALSE) -> Living_room_lounge_dining_room_furniture | C123: 017 | D123: =VLOOKUP(C123,'Understanding the coding'!$E$11:$F$56,2,FALSE) -> Storage units (excluding shelves) | E123: 04 | F123: =VLOOKUP(E123,'Understanding the coding'!$H$11:$I$43,2,FALSE) -> > 50% biosourced materials or non-synthetic textiles | G123: 045 | H123: =VLOOKUP(G123,'Understanding the coding'!$K$11:$L$96,2,FALSE) -> Between 1,400 kg and < 1,500 kg | J123: 01017040450 | K123: =CONCATENATE(Tableau13[[#This Row],[Category label]],", ",Tableau13[[#This Row],[Label Type]],", ",Tableau13[[#This Row],[Material label]]," ,",Tableau13[[#This Row],[Caracteristic label]]) -> Living_room_lounge_dining_room_furniture, Storage units (excluding shelves), > 50% biosourced materials or non-synthetic textiles ,Between 1,400 kg and < 1,500 kg | L123: 130.42 | M123: 223 | N123: 156.5
A124: 01 | B124: =VLOOKUP(A124,'Understanding the coding'!$B$11:$C$23,2,FALSE) -> Living_room_lounge_dining_room_furniture | C124: 017 | D124: =VLOOKUP(C124,'Understanding the coding'!$E$11:$F$56,2,FALSE) -> Storage units (excluding shelves) | E124: 04 | F124: =VLOOKUP(E124,'Understanding the coding'!$H$11:$I$43,2,FALSE) -> > 50% biosourced materials or non-synthetic textiles | G124: 046 | H124: =VLOOKUP(G124,'Understanding the coding'!$K$11:$L$96,2,FALSE) -> Between 1,500 kg and < 1,600 kg | J124: 01017040460 | K124: =CONCATENATE(Tableau13[[#This Row],[Category label]],", ",Tableau13[[#This Row],[Label Type]],", ",Tableau13[[#This Row],[Material label]]," ,",Tableau13[[#This Row],[Caracteristic label]]) -> Living_room_lounge_dining_room_furniture, Storage units (excluding shelves), > 50% biosourced materials or non-synthetic textiles ,Between 1,500 kg and < 1,600 kg | L124: 139.17 | M124: 226 | N124: 167
A125: 01 | B125: =VLOOKUP(A125,'Understanding the coding'!$B$11:$C$23,2,FALSE) -> Living_room_lounge_dining_room_furniture | C125: 017 | D125: =VLOOKUP(C125,'Understanding the coding'!$E$11:$F$56,2,FALSE) -> Storage units (excluding shelves) | E125: 04 | F125: =VLOOKUP(E125,'Understanding the coding'!$H$11:$I$43,2,FALSE) -> > 50% biosourced materials or non-synthetic textiles | G125: 047 | H125: =VLOOKUP(G125,'Understanding the coding'!$K$11:$L$96,2,FALSE) -> Between 1,600 kg and < 1,700 kg | J125: 01017040470 | K125: =CONCATENATE(Tableau13[[#This Row],[Category label]],", ",Tableau13[[#This Row],[Label Type]],", ",Tableau13[[#This Row],[Material label]]," ,",Tableau13[[#This Row],[Caracteristic label]]) -> Living_room_lounge_dining_room_furniture, Storage units (excluding shelves), > 50% biosourced materials or non-synthetic textiles ,Between 1,600 kg and < 1,700 kg | L125: 147.92 | M125: 229 | N125: 177.5
A126: 01 | B126: =VLOOKUP(A126,'Understanding the coding'!$B$11:$C$23,2,FALSE) -> Living_room_lounge_dining_room_furniture | C126: 017 | D126: =VLOOKUP(C126,'Understanding the coding'!$E$11:$F$56,2,FALSE) -> Storage units (excluding shelves) | E126: 04 | F126: =VLOOKUP(E126,'Understanding the coding'!$H$11:$I$43,2,FALSE) -> > 50% biosourced materials or non-synthetic textiles | G126: 048 | H126: =VLOOKUP(G126,'Understanding the coding'!$K$11:$L$96,2,FALSE) -> Between 1,700 kg and < 1,800 kg | J126: 01017040480 | K126: =CONCATENATE(Tableau13[[#This Row],[Category label]],", ",Tableau13[[#This Row],[Label Type]],", ",Tableau13[[#This Row],[Material label]]," ,",Tableau13[[#This Row],[Caracteristic label]]) -> Living_room_lounge_dining_room_furniture, Storage units (excluding shelves), > 50% biosourced materials or non-synthetic textiles ,Between 1,700 kg and < 1,800 kg | L126: 156.67 | M126: 232 | N126: 188
A127: 01 | B127: =VLOOKUP(A127,'Understanding the coding'!$B$11:$C$23,2,FALSE) -> Living_room_lounge_dining_room_furniture | C127: 017 | D127: =VLOOKUP(C127,'Understanding the coding'!$E$11:$F$56,2,FALSE) -> Storage units (excluding shelves) | E127: 04 | F127: =VLOOKUP(E127,'Understanding the coding'!$H$11:$I$43,2,FALSE) -> > 50% biosourced materials or non-synthetic textiles | G127: 049 | H127: =VLOOKUP(G127,'Understanding the coding'!$K$11:$L$96,2,FALSE) -> Between 1,800 kg and < 1,900 kg | J127: 01017040490 | K127: =CONCATENATE(Tableau13[[#This Row],[Category label]],", ",Tableau13[[#This Row],[Label Type]],", ",Tableau13[[#This Row],[Material label]]," ,",Tableau13[[#This Row],[Caracteristic label]]) -> Living_room_lounge_dining_room_furniture, Storage units (excluding shelves), > 50% biosourced materials or non-synthetic textiles ,Between 1,800 kg and < 1,900 kg | L127: 165.42 | M127: 235 | N127: 198.5
A128: 01 | B128: =VLOOKUP(A128,'Understanding the coding'!$B$11:$C$23,2,FALSE) -> Living_room_lounge_dining_room_furniture | C128: 017 | D128: =VLOOKUP(C128,'Understanding the coding'!$E$11:$F$56,2,FALSE) -> Storage units (excluding shelves) | E128: 04 | F128: =VLOOKUP(E128,'Understanding the coding'!$H$11:$I$43,2,FALSE) -> > 50% biosourced materials or non-synthetic textiles | G128: 050 | H128: =VLOOKUP(G128,'Understanding the coding'!$K$11:$L$96,2,FALSE) -> Between 1,900 kg and < 2,000 kg | J128: 01017040500 | K128: =CONCATENATE(Tableau13[[#This Row],[Category label]],", ",Tableau13[[#This Row],[Label Type]],", ",Tableau13[[#This Row],[Material label]]," ,",Tableau13[[#This Row],[Caracteristic label]]) -> Living_room_lounge_dining_room_furniture, Storage units (excluding shelves), > 50% biosourced materials or non-synthetic textiles ,Between 1,900 kg and < 2,000 kg | L128: 174.17 | M128: 236 | N128: 209
A129: 01 | B129: =VLOOKUP(A129,'Understanding the coding'!$B$11:$C$23,2,FALSE) -> Living_room_lounge_dining_room_furniture | C129: 017 | D129: =VLOOKUP(C129,'Understanding the coding'!$E$11:$F$56,2,FALSE) -> Storage units (excluding shelves) | E129: 04 | F129: =VLOOKUP(E129,'Understanding the coding'!$H$11:$I$43,2,FALSE) -> > 50% biosourced materials or non-synthetic textiles | G129: 051 | H129: =VLOOKUP(G129,'Understanding the coding'!$K$11:$L$96,2,FALSE) -> Over 2,000 kg | J129: 01017040510 | K129: =CONCATENATE(Tableau13[[#This Row],[Category label]],", ",Tableau13[[#This Row],[Label Type]],", ",Tableau13[[#This Row],[Material label]]," ,",Tableau13[[#This Row],[Caracteristic label]]) -> Living_room_lounge_dining_room_furniture, Storage units (excluding shelves), > 50% biosourced materials or non-synthetic textiles ,Over 2,000 kg | L129: 182.92 | M129: 238 | N129: 219.5
A130: =MID(J130,1,2) -> 01 | B130: =VLOOKUP(A130,'Understanding the coding'!$B$11:$C$23,2,FALSE) -> Living_room_lounge_dining_room_furniture | C130: =MID(J130,3,3) -> 017 | D130: =VLOOKUP(C130,'Understanding the coding'!$E$11:$F$56,2,FALSE) -> Storage units (excluding shelves) | E130: =MID(J130,6,2) -> 05 | F130: =VLOOKUP(E130,'Understanding the coding'!$H$11:$I$43,2,FALSE) -> Plastics | G130: =MID(J130,8,3) -> 020 | H130: =VLOOKUP(G130,'Understanding the coding'!$K$11:$L$96,2,FALSE) -> Must not exceed 0.5 kg | J130: 01017050200 | K130: =CONCATENATE(Tableau13[[#This Row],[Category label]],", ",Tableau13[[#This Row],[Label Type]],", ",Tableau13[[#This Row],[Material label]]," ,",Tableau13[[#This Row],[Caracteristic label]]) -> Living_room_lounge_dining_room_furniture, Storage units (excluding shelves), Plastics ,Must not exceed 0.5 kg | L130: 0.03 | M130: 092 | N130: 0.04
A131: 01 | B131: =VLOOKUP(A131,'Understanding the coding'!$B$11:$C$23,2,FALSE) -> Living_room_lounge_dining_room_furniture | C131: 017 | D131: =VLOOKUP(C131,'Understanding the coding'!$E$11:$F$56,2,FALSE) -> Storage units (excluding shelves) | E131: 05 | F131: =VLOOKUP(E131,'Understanding the coding'!$H$11:$I$43,2,FALSE) -> Plastics | G131: 021 | H131: =VLOOKUP(G131,'Understanding the coding'!$K$11:$L$96,2,FALSE) -> Between 0.5 kg and < 1 kg | J131: 01017050210 | K131: =CONCATENATE(Tableau13[[#This Row],[Category label]],", ",Tableau13[[#This Row],[Label Type]],", ",Tableau13[[#This Row],[Material label]]," ,",Tableau13[[#This Row],[Caracteristic label]]) -> Living_room_lounge_dining_room_furniture, Storage units (excluding shelves), Plastics ,Between 0.5 kg and < 1 kg | L131: 0.1 | M131: 094 | N131: 0.12
A132: 01 | B132: =VLOOKUP(A132,'Understanding the coding'!$B$11:$C$23,2,FALSE) -> Living_room_lounge_dining_room_furniture | C132: 017 | D132: =VLOOKUP(C132,'Understanding the coding'!$E$11:$F$56,2,FALSE) -> Storage units (excluding shelves) | E132: 05 | F132: =VLOOKUP(E132,'Understanding the coding'!$H$11:$I$43,2,FALSE) -> Plastics | G132: 022 | H132: =VLOOKUP(G132,'Understanding the coding'!$K$11:$L$96,2,FALSE) -> Between 1 kg and < 2 kg | J132: 01017050220 | K132: =CONCATENATE(Tableau13[[#This Row],[Category label]],", ",Tableau13[[#This Row],[Label Type]],", ",Tableau13[[#This Row],[Material label]]," ,",Tableau13[[#This Row],[Caracteristic label]]) -> Living_room_lounge_dining_room_furniture, Storage units (excluding shelves), Plastics ,Between 1 kg and < 2 kg | L132: 0.17 | M132: 005 | N132: 0.2
A133: 01 | B133: =VLOOKUP(A133,'Understanding the coding'!$B$11:$C$23,2,FALSE) -> Living_room_lounge_dining_room_furniture | C133: 017 | D133: =VLOOKUP(C133,'Understanding the coding'!$E$11:$F$56,2,FALSE) -> Storage units (excluding shelves) | E133: 05 | F133: =VLOOKUP(E133,'Understanding the coding'!$H$11:$I$43,2,FALSE) -> Plastics | G133: 023 | H133: =VLOOKUP(G133,'Understanding the coding'!$K$11:$L$96,2,FALSE) -> Between 2 kg and < 5 kg | J133: 01017050230 | K133: =CONCATENATE(Tableau13[[#This Row],[Category label]],", ",Tableau13[[#This Row],[Label Type]],", ",Tableau13[[#This Row],[Material label]]," ,",Tableau13[[#This Row],[Caracteristic label]]) -> Living_room_lounge_dining_room_furniture, Storage units (excluding shelves), Plastics ,Between 2 kg and < 5 kg | L133: 0.33 | M133: 006 | N133: 0.4
A134: 01 | B134: =VLOOKUP(A134,'Understanding the coding'!$B$11:$C$23,2,FALSE) -> Living_room_lounge_dining_room_furniture | C134: 017 | D134: =VLOOKUP(C134,'Understanding the coding'!$E$11:$F$56,2,FALSE) -> Storage units (excluding shelves) | E134: 05 | F134: =VLOOKUP(E134,'Understanding the coding'!$H$11:$I$43,2,FALSE) -> Plastics | G134: 024 | H134: =VLOOKUP(G134,'Understanding the coding'!$K$11:$L$96,2,FALSE) -> Between 5 kg and < 10 kg | J134: 01017050240 | K134: =CONCATENATE(Tableau13[[#This Row],[Category label]],", ",Tableau13[[#This Row],[Label Type]],", ",Tableau13[[#This Row],[Material label]]," ,",Tableau13[[#This Row],[Caracteristic label]]) -> Living_room_lounge_dining_room_furniture, Storage units (excluding shelves), Plastics ,Between 5 kg and < 10 kg | L134: 0.83 | M134: 008 | N134: 1
A135: 01 | B135: =VLOOKUP(A135,'Understanding the coding'!$B$11:$C$23,2,FALSE) -> Living_room_lounge_dining_room_furniture | C135: 017 | D135: =VLOOKUP(C135,'Understanding the coding'!$E$11:$F$56,2,FALSE) -> Storage units (excluding shelves) | E135: 05 | F135: =VLOOKUP(E135,'Understanding the coding'!$H$11:$I$43,2,FALSE) -> Plastics | G135: 025 | H135: =VLOOKUP(G135,'Understanding the coding'!$K$11:$L$96,2,FALSE) -> Between 10 kg and < 20 kg | J135: 01017050250 | K135: =CONCATENATE(Tableau13[[#This Row],[Category label]],", ",Tableau13[[#This Row],[Label Type]],", ",Tableau13[[#This Row],[Material label]]," ,",Tableau13[[#This Row],[Caracteristic label]]) -> Living_room_lounge_dining_room_furniture, Storage units (excluding shelves), Plastics ,Between 10 kg and < 20 kg | L135: 1.83 | M135: 117 | N135: 2.2
A136: 01 | B136: =VLOOKUP(A136,'Understanding the coding'!$B$11:$C$23,2,FALSE) -> Living_room_lounge_dining_room_furniture | C136: 017 | D136: =VLOOKUP(C136,'Understanding the coding'!$E$11:$F$56,2,FALSE) -> Storage units (excluding shelves) | E136: 05 | F136: =VLOOKUP(E136,'Understanding the coding'!$H$11:$I$43,2,FALSE) -> Plastics | G136: 026 | H136: =VLOOKUP(G136,'Understanding the coding'!$K$11:$L$96,2,FALSE) -> Between 20 kg and < 30 kg | J136: 01017050260 | K136: =CONCATENATE(Tableau13[[#This Row],[Category label]],", ",Tableau13[[#This Row],[Label Type]],", ",Tableau13[[#This Row],[Material label]]," ,",Tableau13[[#This Row],[Caracteristic label]]) -> Living_room_lounge_dining_room_furniture, Storage units (excluding shelves), Plastics ,Between 20 kg and < 30 kg | L136: 2.92 | M136: 013 | N136: 3.5
A137: 01 | B137: =VLOOKUP(A137,'Understanding the coding'!$B$11:$C$23,2,FALSE) -> Living_room_lounge_dining_room_furniture | C137: 017 | D137: =VLOOKUP(C137,'Understanding the coding'!$E$11:$F$56,2,FALSE) -> Storage units (excluding shelves) | E137: 05 | F137: =VLOOKUP(E137,'Understanding the coding'!$H$11:$I$43,2,FALSE) -> Plastics | G137: 027 | H137: =VLOOKUP(G137,'Understanding the coding'!$K$11:$L$96,2,FALSE) -> Between 30 kg and < 40 kg | J137: 01017050270 | K137: =CONCATENATE(Tableau13[[#This Row],[Category label]],", ",Tableau13[[#This Row],[Label Type]],", ",Tableau13[[#This Row],[Material label]]," ,",Tableau13[[#This Row],[Caracteristic label]]) -> Living_room_lounge_dining_room_furniture, Storage units (excluding shelves), Plastics ,Between 30 kg and < 40 kg | L137: 3.92 | M137: 125 | N137: 4.7
A138: 01 | B138: =VLOOKUP(A138,'Understanding the coding'!$B$11:$C$23,2,FALSE) -> Living_room_lounge_dining_room_furniture | C138: 017 | D138: =VLOOKUP(C138,'Understanding the coding'!$E$11:$F$56,2,FALSE) -> Storage units (excluding shelves) | E138: 05 | F138: =VLOOKUP(E138,'Understanding the coding'!$H$11:$I$43,2,FALSE) -> Plastics | G138: 028 | H138: =VLOOKUP(G138,'Understanding the coding'!$K$11:$L$96,2,FALSE) -> Between 40 kg and < 60 kg | J138: 01017050280 | K138: =CONCATENATE(Tableau13[[#This Row],[Category label]],", ",Tableau13[[#This Row],[Label Type]],", ",Tableau13[[#This Row],[Material label]]," ,",Tableau13[[#This Row],[Caracteristic label]]) -> Living_room_lounge_dining_room_furniture, Storage units (excluding shelves), Plastics ,Between 40 kg and < 60 kg | L138: 5.58 | M138: 133 | N138: 6.7
A139: 01 | B139: =VLOOKUP(A139,'Understanding the coding'!$B$11:$C$23,2,FALSE) -> Living_room_lounge_dining_room_furniture | C139: 017 | D139: =VLOOKUP(C139,'Understanding the coding'!$E$11:$F$56,2,FALSE) -> Storage units (excluding shelves) | E139: 05 | F139: =VLOOKUP(E139,'Understanding the coding'!$H$11:$I$43,2,FALSE) -> Plastics | G139: 029 | H139: =VLOOKUP(G139,'Understanding the coding'!$K$11:$L$96,2,FALSE) -> Between 60 kg and < 100 kg | J139: 01017050290 | K139: =CONCATENATE(Tableau13[[#This Row],[Category label]],", ",Tableau13[[#This Row],[Label Type]],", ",Tableau13[[#This Row],[Material label]]," ,",Tableau13[[#This Row],[Caracteristic label]]) -> Living_room_lounge_dining_room_furniture, Storage units (excluding shelves), Plastics ,Between 60 kg and < 100 kg | L139: 8.83 | M139: 137 | N139: 10.6
A140: 01 | B140: =VLOOKUP(A140,'Understanding the coding'!$B$11:$C$23,2,FALSE) -> Living_room_lounge_dining_room_furniture | C140: 017 | D140: =VLOOKUP(C140,'Understanding the coding'!$E$11:$F$56,2,FALSE) -> Storage units (excluding shelves) | E140: 05 | F140: =VLOOKUP(E140,'Understanding the coding'!$H$11:$I$43,2,FALSE) -> Plastics | G140: 030 | H140: =VLOOKUP(G140,'Understanding the coding'!$K$11:$L$96,2,FALSE) -> Between 100 kg and < 150 kg | J140: 01017050300 | K140: =CONCATENATE(Tableau13[[#This Row],[Category label]],", ",Tableau13[[#This Row],[Label Type]],", ",Tableau13[[#This Row],[Material label]]," ,",Tableau13[[#This Row],[Caracteristic label]]) -> Living_room_lounge_dining_room_furniture, Storage units (excluding shelves), Plastics ,Between 100 kg and < 150 kg | L140: 15 | M140: 023 | N140: 18
A141: 01 | B141: =VLOOKUP(A141,'Understanding the coding'!$B$11:$C$23,2,FALSE) -> Living_room_lounge_dining_room_furniture | C141: 017 | D141: =VLOOKUP(C141,'Understanding the coding'!$E$11:$F$56,2,FALSE) -> Storage units (excluding shelves) | E141: 05 | F141: =VLOOKUP(E141,'Understanding the coding'!$H$11:$I$43,2,FALSE) -> Plastics | G141: 031 | H141: =VLOOKUP(G141,'Understanding the coding'!$K$11:$L$96,2,FALSE) -> Between 150 kg and < 200 kg | J141: 01017050310 | K141: =CONCATENATE(Tableau13[[#This Row],[Category label]],", ",Tableau13[[#This Row],[Label Type]],", ",Tableau13[[#This Row],[Material label]]," ,",Tableau13[[#This Row],[Caracteristic label]]) -> Living_room_lounge_dining_room_furniture, Storage units (excluding shelves), Plastics ,Between 150 kg and < 200 kg | L141: 20 | M141: 148 | N141: 24
A142: 01 | B142: =VLOOKUP(A142,'Understanding the coding'!$B$11:$C$23,2,FALSE) -> Living_room_lounge_dining_room_furniture | C142: 017 | D142: =VLOOKUP(C142,'Understanding the coding'!$E$11:$F$56,2,FALSE) -> Storage units (excluding shelves) | E142: 05 | F142: =VLOOKUP(E142,'Understanding the coding'!$H$11:$I$43,2,FALSE) -> Plastics | G142: 032 | H142: =VLOOKUP(G142,'Understanding the coding'!$K$11:$L$96,2,FALSE) -> Between 200 kg and < 250 kg | J142: 01017050320 | K142: =CONCATENATE(Tableau13[[#This Row],[Category label]],", ",Tableau13[[#This Row],[Label Type]],", ",Tableau13[[#This Row],[Material label]]," ,",Tableau13[[#This Row],[Caracteristic label]]) -> Living_room_lounge_dining_room_furniture, Storage units (excluding shelves), Plastics ,Between 200 kg and < 250 kg | L142: 25 | M142: 151 | N142: 30
A143: 01 | B143: =VLOOKUP(A143,'Understanding the coding'!$B$11:$C$23,2,FALSE) -> Living_room_lounge_dining_room_furniture | C143: 017 | D143: =VLOOKUP(C143,'Understanding the coding'!$E$11:$F$56,2,FALSE) -> Storage units (excluding shelves) | E143: 05 | F143: =VLOOKUP(E143,'Understanding the coding'!$H$11:$I$43,2,FALSE) -> Plastics | G143: 033 | H143: =VLOOKUP(G143,'Understanding the coding'!$K$11:$L$96,2,FALSE) -> Between 250 kg and < 300 kg | J143: 01017050330 | K143: =CONCATENATE(Tableau13[[#This Row],[Category label]],", ",Tableau13[[#This Row],[Label Type]],", ",Tableau13[[#This Row],[Material label]]," ,",Tableau13[[#This Row],[Caracteristic label]]) -> Living_room_lounge_dining_room_furniture, Storage units (excluding shelves), Plastics ,Between 250 kg and < 300 kg | L143: 31.67 | M143: 027 | N143: 38
A144: 01 | B144: =VLOOKUP(A144,'Understanding the coding'!$B$11:$C$23,2,FALSE) -> Living_room_lounge_dining_room_furniture | C144: 017 | D144: =VLOOKUP(C144,'Understanding the coding'!$E$11:$F$56,2,FALSE) -> Storage units (excluding shelves) | E144: 05 | F144: =VLOOKUP(E144,'Understanding the coding'!$H$11:$I$43,2,FALSE) -> Plastics | G144: 034 | H144: =VLOOKUP(G144,'Understanding the coding'!$K$11:$L$96,2,FALSE) -> Between 300 kg and < 400 kg | J144: 01017050340 | K144: =CONCATENATE(Tableau13[[#This Row],[Category label]],", ",Tableau13[[#This Row],[Label Type]],", ",Tableau13[[#This Row],[Material label]]," ,",Tableau13[[#This Row],[Caracteristic label]]) -> Living_room_lounge_dining_room_furniture, Storage units (excluding shelves), Plastics ,Between 300 kg and < 400 kg | L144: 39.17 | M144: 163 | N144: 47
A145: 01 | B145: =VLOOKUP(A145,'Understanding the coding'!$B$11:$C$23,2,FALSE) -> Living_room_lounge_dining_room_furniture | C145: 017 | D145: =VLOOKUP(C145,'Understanding the coding'!$E$11:$F$56,2,FALSE) -> Storage units (excluding shelves) | E145: 05 | F145: =VLOOKUP(E145,'Understanding the coding'!$H$11:$I$43,2,FALSE) -> Plastics | G145: 035 | H145: =VLOOKUP(G145,'Understanding the coding'!$K$11:$L$96,2,FALSE) -> Between 400 kg and < 500 kg | J145: 01017050350 | K145: =CONCATENATE(Tableau13[[#This Row],[Category label]],", ",Tableau13[[#This Row],[Label Type]],", ",Tableau13[[#This Row],[Material label]]," ,",Tableau13[[#This Row],[Caracteristic label]]) -> Living_room_lounge_dining_room_furniture, Storage units (excluding shelves), Plastics ,Between 400 kg and < 500 kg | L145: 50.42 | M145: 174 | N145: 60.5
A146: 01 | B146: =VLOOKUP(A146,'Understanding the coding'!$B$11:$C$23,2,FALSE) -> Living_room_lounge_dining_room_furniture | C146: 017 | D146: =VLOOKUP(C146,'Understanding the coding'!$E$11:$F$56,2,FALSE) -> Storage units (excluding shelves) | E146: 05 | F146: =VLOOKUP(E146,'Understanding the coding'!$H$11:$I$43,2,FALSE) -> Plastics | G146: 036 | H146: =VLOOKUP(G146,'Understanding the coding'!$K$11:$L$96,2,FALSE) -> Between 500 kg and < 600 kg | J146: 01017050360 | K146: =CONCATENATE(Tableau13[[#This Row],[Category label]],", ",Tableau13[[#This Row],[Label Type]],", ",Tableau13[[#This Row],[Material label]]," ,",Tableau13[[#This Row],[Caracteristic label]]) -> Living_room_lounge_dining_room_furniture, Storage units (excluding shelves), Plastics ,Between 500 kg and < 600 kg | L146: 61.67 | M146: 080 | N146: 74
A147: 01 | B147: =VLOOKUP(A147,'Understanding the coding'!$B$11:$C$23,2,FALSE) -> Living_room_lounge_dining_room_furniture | C147: 017 | D147: =VLOOKUP(C147,'Understanding the coding'!$E$11:$F$56,2,FALSE) -> Storage units (excluding shelves) | E147: 05 | F147: =VLOOKUP(E147,'Understanding the coding'!$H$11:$I$43,2,FALSE) -> Plastics | G147: 037 | H147: =VLOOKUP(G147,'Understanding the coding'!$K$11:$L$96,2,FALSE) -> Between 600 kg and < 700 kg | J147: 01017050370 | K147: =CONCATENATE(Tableau13[[#This Row],[Category label]],", ",Tableau13[[#This Row],[Label Type]],", ",Tableau13[[#This Row],[Material label]]," ,",Tableau13[[#This Row],[Caracteristic label]]) -> Living_room_lounge_dining_room_furniture, Storage units (excluding shelves), Plastics ,Between 600 kg and < 700 kg | L147: 72.92 | M147: 190 | N147: 87.5
A148: 01 | B148: =VLOOKUP(A148,'Understanding the coding'!$B$11:$C$23,2,FALSE) -> Living_room_lounge_dining_room_furniture | C148: 017 | D148: =VLOOKUP(C148,'Understanding the coding'!$E$11:$F$56,2,FALSE) -> Storage units (excluding shelves) | E148: 05 | F148: =VLOOKUP(E148,'Understanding the coding'!$H$11:$I$43,2,FALSE) -> Plastics | G148: 038 | H148: =VLOOKUP(G148,'Understanding the coding'!$K$11:$L$96,2,FALSE) -> Between 700 kg and < 800 kg | J148: 01017050380 | K148: =CONCATENATE(Tableau13[[#This Row],[Category label]],", ",Tableau13[[#This Row],[Label Type]],", ",Tableau13[[#This Row],[Material label]]," ,",Tableau13[[#This Row],[Caracteristic label]]) -> Living_room_lounge_dining_room_furniture, Storage units (excluding shelves), Plastics ,Between 700 kg and < 800 kg | L148: 84.17 | M148: 198 | N148: 101
A149: 01 | B149: =VLOOKUP(A149,'Understanding the coding'!$B$11:$C$23,2,FALSE) -> Living_room_lounge_dining_room_furniture | C149: 017 | D149: =VLOOKUP(C149,'Understanding the coding'!$E$11:$F$56,2,FALSE) -> Storage units (excluding shelves) | E149: 05 | F149: =VLOOKUP(E149,'Understanding the coding'!$H$11:$I$43,2,FALSE) -> Plastics | G149: 039 | H149: =VLOOKUP(G149,'Understanding the coding'!$K$11:$L$96,2,FALSE) -> Between 800 kg and < 900 kg | J149: 01017050390 | K149: =CONCATENATE(Tableau13[[#This Row],[Category label]],", ",Tableau13[[#This Row],[Label Type]],", ",Tableau13[[#This Row],[Material label]]," ,",Tableau13[[#This Row],[Caracteristic label]]) -> Living_room_lounge_dining_room_furniture, Storage units (excluding shelves), Plastics ,Between 800 kg and < 900 kg | L149: 95.42 | M149: 206 | N149: 114.5
A150: 01 | B150: =VLOOKUP(A150,'Understanding the coding'!$B$11:$C$23,2,FALSE) -> Living_room_lounge_dining_room_furniture | C150: 017 | D150: =VLOOKUP(C150,'Understanding the coding'!$E$11:$F$56,2,FALSE) -> Storage units (excluding shelves) | E150: 05 | F150: =VLOOKUP(E150,'Understanding the coding'!$H$11:$I$43,2,FALSE) -> Plastics | G150: 040 | H150: =VLOOKUP(G150,'Understanding the coding'!$K$11:$L$96,2,FALSE) -> Between 900 kg and < 1,000 kg | J150: 01017050400 | K150: =CONCATENATE(Tableau13[[#This Row],[Category label]],", ",Tableau13[[#This Row],[Label Type]],", ",Tableau13[[#This Row],[Material label]]," ,",Tableau13[[#This Row],[Caracteristic label]]) -> Living_room_lounge_dining_room_furniture, Storage units (excluding shelves), Plastics ,Between 900 kg and < 1,000 kg | L150: 106.67 | M150: 088 | N150: 128
A151: 01 | B151: =VLOOKUP(A151,'Understanding the coding'!$B$11:$C$23,2,FALSE) -> Living_room_lounge_dining_room_furniture | C151: 017 | D151: =VLOOKUP(C151,'Understanding the coding'!$E$11:$F$56,2,FALSE) -> Storage units (excluding shelves) | E151: 05 | F151: =VLOOKUP(E151,'Understanding the coding'!$H$11:$I$43,2,FALSE) -> Plastics | G151: 041 | H151: =VLOOKUP(G151,'Understanding the coding'!$K$11:$L$96,2,FALSE) -> Between 1,000 kg and < 1,100 kg | J151: 01017050410 | K151: =CONCATENATE(Tableau13[[#This Row],[Category label]],", ",Tableau13[[#This Row],[Label Type]],", ",Tableau13[[#This Row],[Material label]]," ,",Tableau13[[#This Row],[Caracteristic label]]) -> Living_room_lounge_dining_room_furniture, Storage units (excluding shelves), Plastics ,Between 1,000 kg and < 1,100 kg | L151: 117.92 | M151: 217 | N151: 141.5
A152: 01 | B152: =VLOOKUP(A152,'Understanding the coding'!$B$11:$C$23,2,FALSE) -> Living_room_lounge_dining_room_furniture | C152: 017 | D152: =VLOOKUP(C152,'Understanding the coding'!$E$11:$F$56,2,FALSE) -> Storage units (excluding shelves) | E152: 05 | F152: =VLOOKUP(E152,'Understanding the coding'!$H$11:$I$43,2,FALSE) -> Plastics | G152: 042 | H152: =VLOOKUP(G152,'Understanding the coding'!$K$11:$L$96,2,FALSE) -> Between 1,100 kg and < 1,200 kg | J152: 01017050420 | K152: =CONCATENATE(Tableau13[[#This Row],[Category label]],", ",Tableau13[[#This Row],[Label Type]],", ",Tableau13[[#This Row],[Material label]]," ,",Tableau13[[#This Row],[Caracteristic label]]) -> Living_room_lounge_dining_room_furniture, Storage units (excluding shelves), Plastics ,Between 1,100 kg and < 1,200 kg | L152: 129.17 | M152: 222 | N152: 155
A153: 01 | B153: =VLOOKUP(A153,'Understanding the coding'!$B$11:$C$23,2,FALSE) -> Living_room_lounge_dining_room_furniture | C153: 017 | D153: =VLOOKUP(C153,'Understanding the coding'!$E$11:$F$56,2,FALSE) -> Storage units (excluding shelves) | E153: 05 | F153: =VLOOKUP(E153,'Understanding the coding'!$H$11:$I$43,2,FALSE) -> Plastics | G153: 043 | H153: =VLOOKUP(G153,'Understanding the coding'!$K$11:$L$96,2,FALSE) -> Between 1,200 kg and < 1,300 kg | J153: 01017050430 | K153: =CONCATENATE(Tableau13[[#This Row],[Category label]],", ",Tableau13[[#This Row],[Label Type]],", ",Tableau13[[#This Row],[Material label]]," ,",Tableau13[[#This Row],[Caracteristic label]]) -> Living_room_lounge_dining_room_furniture, Storage units (excluding shelves), Plastics ,Between 1,200 kg and < 1,300 kg | L153: 140.42 | M153: 227 | N153: 168.5
A154: 01 | B154: =VLOOKUP(A154,'Understanding the coding'!$B$11:$C$23,2,FALSE) -> Living_room_lounge_dining_room_furniture | C154: 017 | D154: =VLOOKUP(C154,'Understanding the coding'!$E$11:$F$56,2,FALSE) -> Storage units (excluding shelves) | E154: 05 | F154: =VLOOKUP(E154,'Understanding the coding'!$H$11:$I$43,2,FALSE) -> Plastics | G154: 044 | H154: =VLOOKUP(G154,'Understanding the coding'!$K$11:$L$96,2,FALSE) -> Between 1,300 kg and < 1,400 kg | J154: 01017050440 | K154: =CONCATENATE(Tableau13[[#This Row],[Category label]],", ",Tableau13[[#This Row],[Label Type]],", ",Tableau13[[#This Row],[Material label]]," ,",Tableau13[[#This Row],[Caracteristic label]]) -> Living_room_lounge_dining_room_furniture, Storage units (excluding shelves), Plastics ,Between 1,300 kg and < 1,400 kg | L154: 151.67 | M154: 230 | N154: 182
A155: 01 | B155: =VLOOKUP(A155,'Understanding the coding'!$B$11:$C$23,2,FALSE) -> Living_room_lounge_dining_room_furniture | C155: 017 | D155: =VLOOKUP(C155,'Understanding the coding'!$E$11:$F$56,2,FALSE) -> Storage units (excluding shelves) | E155: 05 | F155: =VLOOKUP(E155,'Understanding the coding'!$H$11:$I$43,2,FALSE) -> Plastics | G155: 045 | H155: =VLOOKUP(G155,'Understanding the coding'!$K$11:$L$96,2,FALSE) -> Between 1,400 kg and < 1,500 kg | J155: 01017050450 | K155: =CONCATENATE(Tableau13[[#This Row],[Category label]],", ",Tableau13[[#This Row],[Label Type]],", ",Tableau13[[#This Row],[Material label]]," ,",Tableau13[[#This Row],[Caracteristic label]]) -> Living_room_lounge_dining_room_furniture, Storage units (excluding shelves), Plastics ,Between 1,400 kg and < 1,500 kg | L155: 162.92 | M155: 233 | N155: 195.5
A156: 01 | B156: =VLOOKUP(A156,'Understanding the coding'!$B$11:$C$23,2,FALSE) -> Living_room_lounge_dining_room_furniture | C156: 017 | D156: =VLOOKUP(C156,'Understanding the coding'!$E$11:$F$56,2,FALSE) -> Storage units (excluding shelves) | E156: 05 | F156: =VLOOKUP(E156,'Understanding the coding'!$H$11:$I$43,2,FALSE) -> Plastics | G156: 046 | H156: =VLOOKUP(G156,'Understanding the coding'!$K$11:$L$96,2,FALSE) -> Between 1,500 kg and < 1,600 kg | J156: 01017050460 | K156: =CONCATENATE(Tableau13[[#This Row],[Category label]],", ",Tableau13[[#This Row],[Label Type]],", ",Tableau13[[#This Row],[Material label]]," ,",Tableau13[[#This Row],[Caracteristic label]]) -> Living_room_lounge_dining_room_furniture, Storage units (excluding shelves), Plastics ,Between 1,500 kg and < 1,600 kg | L156: 174.17 | M156: 236 | N156: 209
A157: 01 | B157: =VLOOKUP(A157,'Understanding the coding'!$B$11:$C$23,2,FALSE) -> Living_room_lounge_dining_room_furniture | C157: 017 | D157: =VLOOKUP(C157,'Understanding the coding'!$E$11:$F$56,2,FALSE) -> Storage units (excluding shelves) | E157: 05 | F157: =VLOOKUP(E157,'Understanding the coding'!$H$11:$I$43,2,FALSE) -> Plastics | G157: 047 | H157: =VLOOKUP(G157,'Understanding the coding'!$K$11:$L$96,2,FALSE) -> Between 1,600 kg and < 1,700 kg | J157: 01017050470 | K157: =CONCATENATE(Tableau13[[#This Row],[Category label]],", ",Tableau13[[#This Row],[Label Type]],", ",Tableau13[[#This Row],[Material label]]," ,",Tableau13[[#This Row],[Caracteristic label]]) -> Living_room_lounge_dining_room_furniture, Storage units (excluding shelves), Plastics ,Between 1,600 kg and < 1,700 kg | L157: 185.42 | M157: 240 | N157: 222.5
A158: 01 | B158: =VLOOKUP(A158,'Understanding the coding'!$B$11:$C$23,2,FALSE) -> Living_room_lounge_dining_room_furniture | C158: 017 | D158: =VLOOKUP(C158,'Understanding the coding'!$E$11:$F$56,2,FALSE) -> Storage units (excluding shelves) | E158: 05 | F158: =VLOOKUP(E158,'Understanding the coding'!$H$11:$I$43,2,FALSE) -> Plastics | G158: 048 | H158: =VLOOKUP(G158,'Understanding the coding'!$K$11:$L$96,2,FALSE) -> Between 1,700 kg and < 1,800 kg | J158: 01017050480 | K158: =CONCATENATE(Tableau13[[#This Row],[Category label]],", ",Tableau13[[#This Row],[Label Type]],", ",Tableau13[[#This Row],[Material label]]," ,",Tableau13[[#This Row],[Caracteristic label]]) -> Living_room_lounge_dining_room_furniture, Storage units (excluding shelves), Plastics ,Between 1,700 kg and < 1,800 kg | L158: 196.67 | M158: 242 | N158: 236
A159: 01 | B159: =VLOOKUP(A159,'Understanding the coding'!$B$11:$C$23,2,FALSE) -> Living_room_lounge_dining_room_furniture | C159: 017 | D159: =VLOOKUP(C159,'Understanding the coding'!$E$11:$F$56,2,FALSE) -> Storage units (excluding shelves) | E159: 05 | F159: =VLOOKUP(E159,'Understanding the coding'!$H$11:$I$43,2,FALSE) -> Plastics | G159: 049 | H159: =VLOOKUP(G159,'Understanding the coding'!$K$11:$L$96,2,FALSE) -> Between 1,800 kg and < 1,900 kg | J159: 01017050490 | K159: =CONCATENATE(Tableau13[[#This Row],[Category label]],", ",Tableau13[[#This Row],[Label Type]],", ",Tableau13[[#This Row],[Material label]]," ,",Tableau13[[#This Row],[Caracteristic label]]) -> Living_room_lounge_dining_room_furniture, Storage units (excluding shelves), Plastics ,Between 1,800 kg and < 1,900 kg | L159: 207.92 | M159: 244 | N159: 249.5
A160: 01 | B160: =VLOOKUP(A160,'Understanding the coding'!$B$11:$C$23,2,FALSE) -> Living_room_lounge_dining_room_furniture | C160: 017 | D160: =VLOOKUP(C160,'Understanding the coding'!$E$11:$F$56,2,FALSE) -> Storage units (excluding shelves) | E160: 05 | F160: =VLOOKUP(E160,'Understanding the coding'!$H$11:$I$43,2,FALSE) -> Plastics | G160: 050 | H160: =VLOOKUP(G160,'Understanding the coding'!$K$11:$L$96,2,FALSE) -> Between 1,900 kg and < 2,000 kg | J160: 01017050500 | K160: =CONCATENATE(Tableau13[[#This Row],[Category label]],", ",Tableau13[[#This Row],[Label Type]],", ",Tableau13[[#This Row],[Material label]]," ,",Tableau13[[#This Row],[Caracteristic label]]) -> Living_room_lounge_dining_room_furniture, Storage units (excluding shelves), Plastics ,Between 1,900 kg and < 2,000 kg | L160: 219.17 | M160: 245 | N160: 263
A161: 01 | B161: =VLOOKUP(A161,'Understanding the coding'!$B$11:$C$23,2,FALSE) -> Living_room_lounge_dining_room_furniture | C161: 017 | D161: =VLOOKUP(C161,'Understanding the coding'!$E$11:$F$56,2,FALSE) -> Storage units (excluding shelves) | E161: 05 | F161: =VLOOKUP(E161,'Understanding the coding'!$H$11:$I$43,2,FALSE) -> Plastics | G161: 051 | H161: =VLOOKUP(G161,'Understanding the coding'!$K$11:$L$96,2,FALSE) -> Over 2,000 kg | J161: 01017050510 | K161: =CONCATENATE(Tableau13[[#This Row],[Category label]],", ",Tableau13[[#This Row],[Label Type]],", ",Tableau13[[#This Row],[Material label]]," ,",Tableau13[[#This Row],[Caracteristic label]]) -> Living_room_lounge_dining_room_furniture, Storage units (excluding shelves), Plastics ,Over 2,000 kg | L161: 230.42 | M161: 246 | N161: 276.5
A162: 01 | B162: =VLOOKUP(A162,'Understanding the coding'!$B$11:$C$23,2,FALSE) -> Living_room_lounge_dining_room_furniture | C162: 017 | D162: =VLOOKUP(C162,'Understanding the coding'!$E$11:$F$56,2,FALSE) -> Storage units (excluding shelves) | E162: 06 | F162: =VLOOKUP(E162,'Understanding the coding'!$H$11:$I$43,2,FALSE) -> Textiles, leathers, furs | G162: 020 | H162: =VLOOKUP(G162,'Understanding the coding'!$K$11:$L$96,2,FALSE) -> Must not exceed 0.5 kg | J162: 01017060200 | K162: =CONCATENATE(Tableau13[[#This Row],[Category label]],", ",Tableau13[[#This Row],[Label Type]],", ",Tableau13[[#This Row],[Material label]]," ,",Tableau13[[#This Row],[Caracteristic label]]) -> Living_room_lounge_dining_room_furniture, Storage units (excluding shelves), Textiles, leathers, furs ,Must not exceed 0.5 kg | L162: 0.03 | M162: 092 | N162: 0.04
A163: 01 | B163: =VLOOKUP(A163,'Understanding the coding'!$B$11:$C$23,2,FALSE) -> Living_room_lounge_dining_room_furniture | C163: 017 | D163: =VLOOKUP(C163,'Understanding the coding'!$E$11:$F$56,2,FALSE) -> Storage units (excluding shelves) | E163: 06 | F163: =VLOOKUP(E163,'Understanding the coding'!$H$11:$I$43,2,FALSE) -> Textiles, leathers, furs | G163: 021 | H163: =VLOOKUP(G163,'Understanding the coding'!$K$11:$L$96,2,FALSE) -> Between 0.5 kg and < 1 kg | J163: 01017060210 | K163: =CONCATENATE(Tableau13[[#This Row],[Category label]],", ",Tableau13[[#This Row],[Label Type]],", ",Tableau13[[#This Row],[Material label]]," ,",Tableau13[[#This Row],[Caracteristic label]]) -> Living_room_lounge_dining_room_furniture, Storage units (excluding shelves), Textiles, leathers, furs ,Between 0.5 kg and < 1 kg | L163: 0.1 | M163: 094 | N163: 0.12
A164: 01 | B164: =VLOOKUP(A164,'Understanding the coding'!$B$11:$C$23,2,FALSE) -> Living_room_lounge_dining_room_furniture | C164: 017 | D164: =VLOOKUP(C164,'Understanding the coding'!$E$11:$F$56,2,FALSE) -> Storage units (excluding shelves) | E164: 06 | F164: =VLOOKUP(E164,'Understanding the coding'!$H$11:$I$43,2,FALSE) -> Textiles, leathers, furs | G164: 022 | H164: =VLOOKUP(G164,'Understanding the coding'!$K$11:$L$96,2,FALSE) -> Between 1 kg and < 2 kg | J164: 01017060220 | K164: =CONCATENATE(Tableau13[[#This Row],[Category label]],", ",Tableau13[[#This Row],[Label Type]],", ",Tableau13[[#This Row],[Material label]]," ,",Tableau13[[#This Row],[Caracteristic label]]) -> Living_room_lounge_dining_room_furniture, Storage units (excluding shelves), Textiles, leathers, furs ,Between 1 kg and < 2 kg | L164: 0.17 | M164: 005 | N164: 0.2
A165: 01 | B165: =VLOOKUP(A165,'Understanding the coding'!$B$11:$C$23,2,FALSE) -> Living_room_lounge_dining_room_furniture | C165: 017 | D165: =VLOOKUP(C165,'Understanding the coding'!$E$11:$F$56,2,FALSE) -> Storage units (excluding shelves) | E165: 06 | F165: =VLOOKUP(E165,'Understanding the coding'!$H$11:$I$43,2,FALSE) -> Textiles, leathers, furs | G165: 023 | H165: =VLOOKUP(G165,'Understanding the coding'!$K$11:$L$96,2,FALSE) -> Between 2 kg and < 5 kg | J165: 01017060230 | K165: =CONCATENATE(Tableau13[[#This Row],[Category label]],", ",Tableau13[[#This Row],[Label Type]],", ",Tableau13[[#This Row],[Material label]]," ,",Tableau13[[#This Row],[Caracteristic label]]) -> Living_room_lounge_dining_room_furniture, Storage units (excluding shelves), Textiles, leathers, furs ,Between 2 kg and < 5 kg | L165: 0.33 | M165: 006 | N165: 0.4
A166: 01 | B166: =VLOOKUP(A166,'Understanding the coding'!$B$11:$C$23,2,FALSE) -> Living_room_lounge_dining_room_furniture | C166: 017 | D166: =VLOOKUP(C166,'Understanding the coding'!$E$11:$F$56,2,FALSE) -> Storage units (excluding shelves) | E166: 06 | F166: =VLOOKUP(E166,'Understanding the coding'!$H$11:$I$43,2,FALSE) -> Textiles, leathers, furs | G166: 024 | H166: =VLOOKUP(G166,'Understanding the coding'!$K$11:$L$96,2,FALSE) -> Between 5 kg and < 10 kg | J166: 01017060240 | K166: =CONCATENATE(Tableau13[[#This Row],[Category label]],", ",Tableau13[[#This Row],[Label Type]],", ",Tableau13[[#This Row],[Material label]]," ,",Tableau13[[#This Row],[Caracteristic label]]) -> Living_room_lounge_dining_room_furniture, Storage units (excluding shelves), Textiles, leathers, furs ,Between 5 kg and < 10 kg | L166: 0.83 | M166: 008 | N166: 1
A167: 01 | B167: =VLOOKUP(A167,'Understanding the coding'!$B$11:$C$23,2,FALSE) -> Living_room_lounge_dining_room_furniture | C167: 017 | D167: =VLOOKUP(C167,'Understanding the coding'!$E$11:$F$56,2,FALSE) -> Storage units (excluding shelves) | E167: 06 | F167: =VLOOKUP(E167,'Understanding the coding'!$H$11:$I$43,2,FALSE) -> Textiles, leathers, furs | G167: 025 | H167: =VLOOKUP(G167,'Understanding the coding'!$K$11:$L$96,2,FALSE) -> Between 10 kg and < 20 kg | J167: 01017060250 | K167: =CONCATENATE(Tableau13[[#This Row],[Category label]],", ",Tableau13[[#This Row],[Label Type]],", ",Tableau13[[#This Row],[Material label]]," ,",Tableau13[[#This Row],[Caracteristic label]]) -> Living_room_lounge_dining_room_furniture, Storage units (excluding shelves), Textiles, leathers, furs ,Between 10 kg and < 20 kg | L167: 1.83 | M167: 117 | N167: 2.2
A168: 01 | B168: =VLOOKUP(A168,'Understanding the coding'!$B$11:$C$23,2,FALSE) -> Living_room_lounge_dining_room_furniture | C168: 017 | D168: =VLOOKUP(C168,'Understanding the coding'!$E$11:$F$56,2,FALSE) -> Storage units (excluding shelves) | E168: 06 | F168: =VLOOKUP(E168,'Understanding the coding'!$H$11:$I$43,2,FALSE) -> Textiles, leathers, furs | G168: 026 | H168: =VLOOKUP(G168,'Understanding the coding'!$K$11:$L$96,2,FALSE) -> Between 20 kg and < 30 kg | J168: 01017060260 | K168: =CONCATENATE(Tableau13[[#This Row],[Category label]],", ",Tableau13[[#This Row],[Label Type]],", ",Tableau13[[#This Row],[Material label]]," ,",Tableau13[[#This Row],[Caracteristic label]]) -> Living_room_lounge_dining_room_furniture, Storage units (excluding shelves), Textiles, leathers, furs ,Between 20 kg and < 30 kg | L168: 2.92 | M168: 013 | N168: 3.5
A169: 01 | B169: =VLOOKUP(A169,'Understanding the coding'!$B$11:$C$23,2,FALSE) -> Living_room_lounge_dining_room_furniture | C169: 017 | D169: =VLOOKUP(C169,'Understanding the coding'!$E$11:$F$56,2,FALSE) -> Storage units (excluding shelves) | E169: 06 | F169: =VLOOKUP(E169,'Understanding the coding'!$H$11:$I$43,2,FALSE) -> Textiles, leathers, furs | G169: 027 | H169: =VLOOKUP(G169,'Understanding the coding'!$K$11:$L$96,2,FALSE) -> Between 30 kg and < 40 kg | J169: 01017060270 | K169: =CONCATENATE(Tableau13[[#This Row],[Category label]],", ",Tableau13[[#This Row],[Label Type]],", ",Tableau13[[#This Row],[Material label]]," ,",Tableau13[[#This Row],[Caracteristic label]]) -> Living_room_lounge_dining_room_furniture, Storage units (excluding shelves), Textiles, leathers, furs ,Between 30 kg and < 40 kg | L169: 3.92 | M169: 125 | N169: 4.7
A170: 01 | B170: =VLOOKUP(A170,'Understanding the coding'!$B$11:$C$23,2,FALSE) -> Living_room_lounge_dining_room_furniture | C170: 017 | D170: =VLOOKUP(C170,'Understanding the coding'!$E$11:$F$56,2,FALSE) -> Storage units (excluding shelves) | E170: 06 | F170: =VLOOKUP(E170,'Understanding the coding'!$H$11:$I$43,2,FALSE) -> Textiles, leathers, furs | G170: 028 | H170: =VLOOKUP(G170,'Understanding the coding'!$K$11:$L$96,2,FALSE) -> Between 40 kg and < 60 kg | J170: 01017060280 | K170: =CONCATENATE(Tableau13[[#This Row],[Category label]],", ",Tableau13[[#This Row],[Label Type]],", ",Tableau13[[#This Row],[Material label]]," ,",Tableau13[[#This Row],[Caracteristic label]]) -> Living_room_lounge_dining_room_furniture, Storage units (excluding shelves), Textiles, leathers, furs ,Between 40 kg and < 60 kg | L170: 5.58 | M170: 133 | N170: 6.7
A171: 01 | B171: =VLOOKUP(A171,'Understanding the coding'!$B$11:$C$23,2,FALSE) -> Living_room_lounge_dining_room_furniture | C171: 017 | D171: =VLOOKUP(C171,'Understanding the coding'!$E$11:$F$56,2,FALSE) -> Storage units (excluding shelves) | E171: 06 | F171: =VLOOKUP(E171,'Understanding the coding'!$H$11:$I$43,2,FALSE) -> Textiles, leathers, furs | G171: 029 | H171: =VLOOKUP(G171,'Understanding the coding'!$K$11:$L$96,2,FALSE) -> Between 60 kg and < 100 kg | J171: 01017060290 | K171: =CONCATENATE(Tableau13[[#This Row],[Category label]],", ",Tableau13[[#This Row],[Label Type]],", ",Tableau13[[#This Row],[Material label]]," ,",Tableau13[[#This Row],[Caracteristic label]]) -> Living_room_lounge_dining_room_furniture, Storage units (excluding shelves), Textiles, leathers, furs ,Between 60 kg and < 100 kg | L171: 8.83 | M171: 137 | N171: 10.6
A172: 01 | B172: =VLOOKUP(A172,'Understanding the coding'!$B$11:$C$23,2,FALSE) -> Living_room_lounge_dining_room_furniture | C172: 017 | D172: =VLOOKUP(C172,'Understanding the coding'!$E$11:$F$56,2,FALSE) -> Storage units (excluding shelves) | E172: 06 | F172: =VLOOKUP(E172,'Understanding the coding'!$H$11:$I$43,2,FALSE) -> Textiles, leathers, furs | G172: 030 | H172: =VLOOKUP(G172,'Understanding the coding'!$K$11:$L$96,2,FALSE) -> Between 100 kg and < 150 kg | J172: 01017060300 | K172: =CONCATENATE(Tableau13[[#This Row],[Category label]],", ",Tableau13[[#This Row],[Label Type]],", ",Tableau13[[#This Row],[Material label]]," ,",Tableau13[[#This Row],[Caracteristic label]]) -> Living_room_lounge_dining_room_furniture, Storage units (excluding shelves), Textiles, leathers, furs ,Between 100 kg and < 150 kg | L172: 15 | M172: 023 | N172: 18
A173: 01 | B173: =VLOOKUP(A173,'Understanding the coding'!$B$11:$C$23,2,FALSE) -> Living_room_lounge_dining_room_furniture | C173: 017 | D173: =VLOOKUP(C173,'Understanding the coding'!$E$11:$F$56,2,FALSE) -> Storage units (excluding shelves) | E173: 06 | F173: =VLOOKUP(E173,'Understanding the coding'!$H$11:$I$43,2,FALSE) -> Textiles, leathers, furs | G173: 031 | H173: =VLOOKUP(G173,'Understanding the coding'!$K$11:$L$96,2,FALSE) -> Between 150 kg and < 200 kg | J173: 01017060310 | K173: =CONCATENATE(Tableau13[[#This Row],[Category label]],", ",Tableau13[[#This Row],[Label Type]],", ",Tableau13[[#This Row],[Material label]]," ,",Tableau13[[#This Row],[Caracteristic label]]) -> Living_room_lounge_dining_room_furniture, Storage units (excluding shelves), Textiles, leathers, furs ,Between 150 kg and < 200 kg | L173: 20 | M173: 148 | N173: 24
A174: 01 | B174: =VLOOKUP(A174,'Understanding the coding'!$B$11:$C$23,2,FALSE) -> Living_room_lounge_dining_room_furniture | C174: 017 | D174: =VLOOKUP(C174,'Understanding the coding'!$E$11:$F$56,2,FALSE) -> Storage units (excluding shelves) | E174: 06 | F174: =VLOOKUP(E174,'Understanding the coding'!$H$11:$I$43,2,FALSE) -> Textiles, leathers, furs | G174: 032 | H174: =VLOOKUP(G174,'Understanding the coding'!$K$11:$L$96,2,FALSE) -> Between 200 kg and < 250 kg | J174: 01017060320 | K174: =CONCATENATE(Tableau13[[#This Row],[Category label]],", ",Tableau13[[#This Row],[Label Type]],", ",Tableau13[[#This Row],[Material label]]," ,",Tableau13[[#This Row],[Caracteristic label]]) -> Living_room_lounge_dining_room_furniture, Storage units (excluding shelves), Textiles, leathers, furs ,Between 200 kg and < 250 kg | L174: 25 | M174: 151 | N174: 30
A175: 01 | B175: =VLOOKUP(A175,'Understanding the coding'!$B$11:$C$23,2,FALSE) -> Living_room_lounge_dining_room_furniture | C175: 017 | D175: =VLOOKUP(C175,'Understanding the coding'!$E$11:$F$56,2,FALSE) -> Storage units (excluding shelves) | E175: 06 | F175: =VLOOKUP(E175,'Understanding the coding'!$H$11:$I$43,2,FALSE) -> Textiles, leathers, furs | G175: 033 | H175: =VLOOKUP(G175,'Understanding the coding'!$K$11:$L$96,2,FALSE) -> Between 250 kg and < 300 kg | J175: 01017060330 | K175: =CONCATENATE(Tableau13[[#This Row],[Category label]],", ",Tableau13[[#This Row],[Label Type]],", ",Tableau13[[#This Row],[Material label]]," ,",Tableau13[[#This Row],[Caracteristic label]]) -> Living_room_lounge_dining_room_furniture, Storage units (excluding shelves), Textiles, leathers, furs ,Between 250 kg and < 300 kg | L175: 31.67 | M175: 027 | N175: 38
A176: 01 | B176: =VLOOKUP(A176,'Understanding the coding'!$B$11:$C$23,2,FALSE) -> Living_room_lounge_dining_room_furniture | C176: 017 | D176: =VLOOKUP(C176,'Understanding the coding'!$E$11:$F$56,2,FALSE) -> Storage units (excluding shelves) | E176: 06 | F176: =VLOOKUP(E176,'Understanding the coding'!$H$11:$I$43,2,FALSE) -> Textiles, leathers, furs | G176: 034 | H176: =VLOOKUP(G176,'Understanding the coding'!$K$11:$L$96,2,FALSE) -> Between 300 kg and < 400 kg | J176: 01017060340 | K176: =CONCATENATE(Tableau13[[#This Row],[Category label]],", ",Tableau13[[#This Row],[Label Type]],", ",Tableau13[[#This Row],[Material label]]," ,",Tableau13[[#This Row],[Caracteristic label]]) -> Living_room_lounge_dining_room_furniture, Storage units (excluding shelves), Textiles, leathers, furs ,Between 300 kg and < 400 kg | L176: 39.17 | M176: 163 | N176: 47
A177: 01 | B177: =VLOOKUP(A177,'Understanding the coding'!$B$11:$C$23,2,FALSE) -> Living_room_lounge_dining_room_furniture | C177: 017 | D177: =VLOOKUP(C177,'Understanding the coding'!$E$11:$F$56,2,FALSE) -> Storage units (excluding shelves) | E177: 06 | F177: =VLOOKUP(E177,'Understanding the coding'!$H$11:$I$43,2,FALSE) -> Textiles, leathers, furs | G177: 035 | H177: =VLOOKUP(G177,'Understanding the coding'!$K$11:$L$96,2,FALSE) -> Between 400 kg and < 500 kg | J177: 01017060350 | K177: =CONCATENATE(Tableau13[[#This Row],[Category label]],", ",Tableau13[[#This Row],[Label Type]],", ",Tableau13[[#This Row],[Material label]]," ,",Tableau13[[#This Row],[Caracteristic label]]) -> Living_room_lounge_dining_room_furniture, Storage units (excluding shelves), Textiles, leathers, furs ,Between 400 kg and < 500 kg | L177: 50.42 | M177: 174 | N177: 60.5
A178: 01 | B178: =VLOOKUP(A178,'Understanding the coding'!$B$11:$C$23,2,FALSE) -> Living_room_lounge_dining_room_furniture | C178: 017 | D178: =VLOOKUP(C178,'Understanding the coding'!$E$11:$F$56,2,FALSE) -> Storage units (excluding shelves) | E178: 06 | F178: =VLOOKUP(E178,'Understanding the coding'!$H$11:$I$43,2,FALSE) -> Textiles, leathers, furs | G178: 036 | H178: =VLOOKUP(G178,'Understanding the coding'!$K$11:$L$96,2,FALSE) -> Between 500 kg and < 600 kg | J178: 01017060360 | K178: =CONCATENATE(Tableau13[[#This Row],[Category label]],", ",Tableau13[[#This Row],[Label Type]],", ",Tableau13[[#This Row],[Material label]]," ,",Tableau13[[#This Row],[Caracteristic label]]) -> Living_room_lounge_dining_room_furniture, Storage units (excluding shelves), Textiles, leathers, furs ,Between 500 kg and < 600 kg | L178: 61.67 | M178: 080 | N178: 74
A179: 01 | B179: =VLOOKUP(A179,'Understanding the coding'!$B$11:$C$23,2,FALSE) -> Living_room_lounge_dining_room_furniture | C179: 017 | D179: =VLOOKUP(C179,'Understanding the coding'!$E$11:$F$56,2,FALSE) -> Storage units (excluding shelves) | E179: 06 | F179: =VLOOKUP(E179,'Understanding the coding'!$H$11:$I$43,2,FALSE) -> Textiles, leathers, furs | G179: 037 | H179: =VLOOKUP(G179,'Understanding the coding'!$K$11:$L$96,2,FALSE) -> Between 600 kg and < 700 kg | J179: 01017060370 | K179: =CONCATENATE(Tableau13[[#This Row],[Category label]],", ",Tableau13[[#This Row],[Label Type]],", ",Tableau13[[#This Row],[Material label]]," ,",Tableau13[[#This Row],[Caracteristic label]]) -> Living_room_lounge_dining_room_furniture, Storage units (excluding shelves), Textiles, leathers, furs ,Between 600 kg and < 700 kg | L179: 72.92 | M179: 190 | N179: 87.5
A180: 01 | B180: =VLOOKUP(A180,'Understanding the coding'!$B$11:$C$23,2,FALSE) -> Living_room_lounge_dining_room_furniture | C180: 017 | D180: =VLOOKUP(C180,'Understanding the coding'!$E$11:$F$56,2,FALSE) -> Storage units (excluding shelves) | E180: 06 | F180: =VLOOKUP(E180,'Understanding the coding'!$H$11:$I$43,2,FALSE) -> Textiles, leathers, furs | G180: 038 | H180: =VLOOKUP(G180,'Understanding the coding'!$K$11:$L$96,2,FALSE) -> Between 700 kg and < 800 kg | J180: 01017060380 | K180: =CONCATENATE(Tableau13[[#This Row],[Category label]],", ",Tableau13[[#This Row],[Label Type]],", ",Tableau13[[#This Row],[Material label]]," ,",Tableau13[[#This Row],[Caracteristic label]]) -> Living_room_lounge_dining_room_furniture, Storage units (excluding shelves), Textiles, leathers, furs ,Between 700 kg and < 800 kg | L180: 84.17 | M180: 198 | N180: 101
A181: 01 | B181: =VLOOKUP(A181,'Understanding the coding'!$B$11:$C$23,2,FALSE) -> Living_room_lounge_dining_room_furniture | C181: 017 | D181: =VLOOKUP(C181,'Understanding the coding'!$E$11:$F$56,2,FALSE) -> Storage units (excluding shelves) | E181: 06 | F181: =VLOOKUP(E181,'Understanding the coding'!$H$11:$I$43,2,FALSE) -> Textiles, leathers, furs | G181: 039 | H181: =VLOOKUP(G181,'Understanding the coding'!$K$11:$L$96,2,FALSE) -> Between 800 kg and < 900 kg | J181: 01017060390 | K181: =CONCATENATE(Tableau13[[#This Row],[Category label]],", ",Tableau13[[#This Row],[Label Type]],", ",Tableau13[[#This Row],[Material label]]," ,",Tableau13[[#This Row],[Caracteristic label]]) -> Living_room_lounge_dining_room_furniture, Storage units (excluding shelves), Textiles, leathers, furs ,Between 800 kg and < 900 kg | L181: 95.42 | M181: 206 | N181: 114.5
A182: 01 | B182: =VLOOKUP(A182,'Understanding the coding'!$B$11:$C$23,2,FALSE) -> Living_room_lounge_dining_room_furniture | C182: 017 | D182: =VLOOKUP(C182,'Understanding the coding'!$E$11:$F$56,2,FALSE) -> Storage units (excluding shelves) | E182: 06 | F182: =VLOOKUP(E182,'Understanding the coding'!$H$11:$I$43,2,FALSE) -> Textiles, leathers, furs | G182: 040 | H182: =VLOOKUP(G182,'Understanding the coding'!$K$11:$L$96,2,FALSE) -> Between 900 kg and < 1,000 kg | J182: 01017060400 | K182: =CONCATENATE(Tableau13[[#This Row],[Category label]],", ",Tableau13[[#This Row],[Label Type]],", ",Tableau13[[#This Row],[Material label]]," ,",Tableau13[[#This Row],[Caracteristic label]]) -> Living_room_lounge_dining_room_furniture, Storage units (excluding shelves), Textiles, leathers, furs ,Between 900 kg and < 1,000 kg | L182: 106.67 | M182: 088 | N182: 128
A183: 01 | B183: =VLOOKUP(A183,'Understanding the coding'!$B$11:$C$23,2,FALSE) -> Living_room_lounge_dining_room_furniture | C183: 017 | D183: =VLOOKUP(C183,'Understanding the coding'!$E$11:$F$56,2,FALSE) -> Storage units (excluding shelves) | E183: 06 | F183: =VLOOKUP(E183,'Understanding the coding'!$H$11:$I$43,2,FALSE) -> Textiles, leathers, furs | G183: 041 | H183: =VLOOKUP(G183,'Understanding the coding'!$K$11:$L$96,2,FALSE) -> Between 1,000 kg and < 1,100 kg | J183: 01017060410 | K183: =CONCATENATE(Tableau13[[#This Row],[Category label]],", ",Tableau13[[#This Row],[Label Type]],", ",Tableau13[[#This Row],[Material label]]," ,",Tableau13[[#This Row],[Caracteristic label]]) -> Living_room_lounge_dining_room_furniture, Storage units (excluding shelves), Textiles, leathers, furs ,Between 1,000 kg and < 1,100 kg | L183: 117.92 | M183: 217 | N183: 141.5
A184: 01 | B184: =VLOOKUP(A184,'Understanding the coding'!$B$11:$C$23,2,FALSE) -> Living_room_lounge_dining_room_furniture | C184: 017 | D184: =VLOOKUP(C184,'Understanding the coding'!$E$11:$F$56,2,FALSE) -> Storage units (excluding shelves) | E184: 06 | F184: =VLOOKUP(E184,'Understanding the coding'!$H$11:$I$43,2,FALSE) -> Textiles, leathers, furs | G184: 042 | H184: =VLOOKUP(G184,'Understanding the coding'!$K$11:$L$96,2,FALSE) -> Between 1,100 kg and < 1,200 kg | J184: 01017060420 | K184: =CONCATENATE(Tableau13[[#This Row],[Category label]],", ",Tableau13[[#This Row],[Label Type]],", ",Tableau13[[#This Row],[Material label]]," ,",Tableau13[[#This Row],[Caracteristic label]]) -> Living_room_lounge_dining_room_furniture, Storage units (excluding shelves), Textiles, leathers, furs ,Between 1,100 kg and < 1,200 kg | L184: 129.17 | M184: 222 | N184: 155
A185: 01 | B185: =VLOOKUP(A185,'Understanding the coding'!$B$11:$C$23,2,FALSE) -> Living_room_lounge_dining_room_furniture | C185: 017 | D185: =VLOOKUP(C185,'Understanding the coding'!$E$11:$F$56,2,FALSE) -> Storage units (excluding shelves) | E185: 06 | F185: =VLOOKUP(E185,'Understanding the coding'!$H$11:$I$43,2,FALSE) -> Textiles, leathers, furs | G185: 043 | H185: =VLOOKUP(G185,'Understanding the coding'!$K$11:$L$96,2,FALSE) -> Between 1,200 kg and < 1,300 kg | J185: 01017060430 | K185: =CONCATENATE(Tableau13[[#This Row],[Category label]],", ",Tableau13[[#This Row],[Label Type]],", ",Tableau13[[#This Row],[Material label]]," ,",Tableau13[[#This Row],[Caracteristic label]]) -> Living_room_lounge_dining_room_furniture, Storage units (excluding shelves), Textiles, leathers, furs ,Between 1,200 kg and < 1,300 kg | L185: 140.42 | M185: 227 | N185: 168.5
A186: 01 | B186: =VLOOKUP(A186,'Understanding the coding'!$B$11:$C$23,2,FALSE) -> Living_room_lounge_dining_room_furniture | C186: 017 | D186: =VLOOKUP(C186,'Understanding the coding'!$E$11:$F$56,2,FALSE) -> Storage units (excluding shelves) | E186: 06 | F186: =VLOOKUP(E186,'Understanding the coding'!$H$11:$I$43,2,FALSE) -> Textiles, leathers, furs | G186: 044 | H186: =VLOOKUP(G186,'Understanding the coding'!$K$11:$L$96,2,FALSE) -> Between 1,300 kg and < 1,400 kg | J186: 01017060440 | K186: =CONCATENATE(Tableau13[[#This Row],[Category label]],", ",Tableau13[[#This Row],[Label Type]],", ",Tableau13[[#This Row],[Material label]]," ,",Tableau13[[#This Row],[Caracteristic label]]) -> Living_room_lounge_dining_room_furniture, Storage units (excluding shelves), Textiles, leathers, furs ,Between 1,300 kg and < 1,400 kg | L186: 151.67 | M186: 230 | N186: 182
A187: 01 | B187: =VLOOKUP(A187,'Understanding the coding'!$B$11:$C$23,2,FALSE) -> Living_room_lounge_dining_room_furniture | C187: 017 | D187: =VLOOKUP(C187,'Understanding the coding'!$E$11:$F$56,2,FALSE) -> Storage units (excluding shelves) | E187: 06 | F187: =VLOOKUP(E187,'Understanding the coding'!$H$11:$I$43,2,FALSE) -> Textiles, leathers, furs | G187: 045 | H187: =VLOOKUP(G187,'Understanding the coding'!$K$11:$L$96,2,FALSE) -> Between 1,400 kg and < 1,500 kg | J187: 01017060450 | K187: =CONCATENATE(Tableau13[[#This Row],[Category label]],", ",Tableau13[[#This Row],[Label Type]],", ",Tableau13[[#This Row],[Material label]]," ,",Tableau13[[#This Row],[Caracteristic label]]) -> Living_room_lounge_dining_room_furniture, Storage units (excluding shelves), Textiles, leathers, furs ,Between 1,400 kg and < 1,500 kg | L187: 162.92 | M187: 233 | N187: 195.5
A188: 01 | B188: =VLOOKUP(A188,'Understanding the coding'!$B$11:$C$23,2,FALSE) -> Living_room_lounge_dining_room_furniture | C188: 017 | D188: =VLOOKUP(C188,'Understanding the coding'!$E$11:$F$56,2,FALSE) -> Storage units (excluding shelves) | E188: 06 | F188: =VLOOKUP(E188,'Understanding the coding'!$H$11:$I$43,2,FALSE) -> Textiles, leathers, furs | G188: 046 | H188: =VLOOKUP(G188,'Understanding the coding'!$K$11:$L$96,2,FALSE) -> Between 1,500 kg and < 1,600 kg | J188: 01017060460 | K188: =CONCATENATE(Tableau13[[#This Row],[Category label]],", ",Tableau13[[#This Row],[Label Type]],", ",Tableau13[[#This Row],[Material label]]," ,",Tableau13[[#This Row],[Caracteristic label]]) -> Living_room_lounge_dining_room_furniture, Storage units (excluding shelves), Textiles, leathers, furs ,Between 1,500 kg and < 1,600 kg | L188: 174.17 | M188: 236 | N188: 209
A189: 01 | B189: =VLOOKUP(A189,'Understanding the coding'!$B$11:$C$23,2,FALSE) -> Living_room_lounge_dining_room_furniture | C189: 017 | D189: =VLOOKUP(C189,'Understanding the coding'!$E$11:$F$56,2,FALSE) -> Storage units (excluding shelves) | E189: 06 | F189: =VLOOKUP(E189,'Understanding the coding'!$H$11:$I$43,2,FALSE) -> Textiles, leathers, furs | G189: 047 | H189: =VLOOKUP(G189,'Understanding the coding'!$K$11:$L$96,2,FALSE) -> Between 1,600 kg and < 1,700 kg | J189: 01017060470 | K189: =CONCATENATE(Tableau13[[#This Row],[Category label]],", ",Tableau13[[#This Row],[Label Type]],", ",Tableau13[[#This Row],[Material label]]," ,",Tableau13[[#This Row],[Caracteristic label]]) -> Living_room_lounge_dining_room_furniture, Storage units (excluding shelves), Textiles, leathers, furs ,Between 1,600 kg and < 1,700 kg | L189: 185.42 | M189: 240 | N189: 222.5
A190: 01 | B190: =VLOOKUP(A190,'Understanding the coding'!$B$11:$C$23,2,FALSE) -> Living_room_lounge_dining_room_furniture | C190: 017 | D190: =VLOOKUP(C190,'Understanding the coding'!$E$11:$F$56,2,FALSE) -> Storage units (excluding shelves) | E190: 06 | F190: =VLOOKUP(E190,'Understanding the coding'!$H$11:$I$43,2,FALSE) -> Textiles, leathers, furs | G190: 048 | H190: =VLOOKUP(G190,'Understanding the coding'!$K$11:$L$96,2,FALSE) -> Between 1,700 kg and < 1,800 kg | J190: 01017060480 | K190: =CONCATENATE(Tableau13[[#This Row],[Category label]],", ",Tableau13[[#This Row],[Label Type]],", ",Tableau13[[#This Row],[Material label]]," ,",Tableau13[[#This Row],[Caracteristic label]]) -> Living_room_lounge_dining_room_furniture, Storage units (excluding shelves), Textiles, leathers, furs ,Between 1,700 kg and < 1,800 kg | L190: 196.67 | M190: 242 | N190: 236
A191: 01 | B191: =VLOOKUP(A191,'Understanding the coding'!$B$11:$C$23,2,FALSE) -> Living_room_lounge_dining_room_furniture | C191: 017 | D191: =VLOOKUP(C191,'Understanding the coding'!$E$11:$F$56,2,FALSE) -> Storage units (excluding shelves) | E191: 06 | F191: =VLOOKUP(E191,'Understanding the coding'!$H$11:$I$43,2,FALSE) -> Textiles, leathers, furs | G191: 049 | H191: =VLOOKUP(G191,'Understanding the coding'!$K$11:$L$96,2,FALSE) -> Between 1,800 kg and < 1,900 kg | J191: 01017060490 | K191: =CONCATENATE(Tableau13[[#This Row],[Category label]],", ",Tableau13[[#This Row],[Label Type]],", ",Tableau13[[#This Row],[Material label]]," ,",Tableau13[[#This Row],[Caracteristic label]]) -> Living_room_lounge_dining_room_furniture, Storage units (excluding shelves), Textiles, leathers, furs ,Between 1,800 kg and < 1,900 kg | L191: 207.92 | M191: 244 | N191: 249.5
A192: 01 | B192: =VLOOKUP(A192,'Understanding the coding'!$B$11:$C$23,2,FALSE) -> Living_room_lounge_dining_room_furniture | C192: 017 | D192: =VLOOKUP(C192,'Understanding the coding'!$E$11:$F$56,2,FALSE) -> Storage units (excluding shelves) | E192: 06 | F192: =VLOOKUP(E192,'Understanding the coding'!$H$11:$I$43,2,FALSE) -> Textiles, leathers, furs | G192: 050 | H192: =VLOOKUP(G192,'Understanding the coding'!$K$11:$L$96,2,FALSE) -> Between 1,900 kg and < 2,000 kg | J192: 01017060500 | K192: =CONCATENATE(Tableau13[[#This Row],[Category label]],", ",Tableau13[[#This Row],[Label Type]],", ",Tableau13[[#This Row],[Material label]]," ,",Tableau13[[#This Row],[Caracteristic label]]) -> Living_room_lounge_dining_room_furniture, Storage units (excluding shelves), Textiles, leathers, furs ,Between 1,900 kg and < 2,000 kg | L192: 219.17 | M192: 245 | N192: 263
A193: 01 | B193: =VLOOKUP(A193,'Understanding the coding'!$B$11:$C$23,2,FALSE) -> Living_room_lounge_dining_room_furniture | C193: 017 | D193: =VLOOKUP(C193,'Understanding the coding'!$E$11:$F$56,2,FALSE) -> Storage units (excluding shelves) | E193: 06 | F193: =VLOOKUP(E193,'Understanding the coding'!$H$11:$I$43,2,FALSE) -> Textiles, leathers, furs | G193: 051 | H193: =VLOOKUP(G193,'Understanding the coding'!$K$11:$L$96,2,FALSE) -> Over 2,000 kg | J193: 01017060510 | K193: =CONCATENATE(Tableau13[[#This Row],[Category label]],", ",Tableau13[[#This Row],[Label Type]],", ",Tableau13[[#This Row],[Material label]]," ,",Tableau13[[#This Row],[Caracteristic label]]) -> Living_room_lounge_dining_room_furniture, Storage units (excluding shelves), Textiles, leathers, furs ,Over 2,000 kg | L193: 230.42 | M193: 246 | N193: 276.5
A194: =MID(J194,1,2) -> 01 | B194: =VLOOKUP(A194,'Understanding the coding'!$B$11:$C$23,2,FALSE) -> Living_room_lounge_dining_room_furniture | C194: =MID(J194,3,3) -> 017 | D194: =VLOOKUP(C194,'Understanding the coding'!$E$11:$F$56,2,FALSE) -> Storage units (excluding shelves) | E194: =MID(J194,6,2) -> 07 | F194: =VLOOKUP(E194,'Understanding the coding'!$H$11:$I$43,2,FALSE) -> Glass and mirrors | G194: =MID(J194,8,3) -> 020 | H194: =VLOOKUP(G194,'Understanding the coding'!$K$11:$L$96,2,FALSE) -> Must not exceed 0.5 kg | J194: 01017070200 | K194: =CONCATENATE(Tableau13[[#This Row],[Category label]],", ",Tableau13[[#This Row],[Label Type]],", ",Tableau13[[#This Row],[Material label]]," ,",Tableau13[[#This Row],[Caracteristic label]]) -> Living_room_lounge_dining_room_furniture, Storage units (excluding shelves), Glass and mirrors ,Must not exceed 0.5 kg | L194: 0.03 | M194: 092 | N194: 0.04
A195: 01 | B195: =VLOOKUP(A195,'Understanding the coding'!$B$11:$C$23,2,FALSE) -> Living_room_lounge_dining_room_furniture | C195: 017 | D195: =VLOOKUP(C195,'Understanding the coding'!$E$11:$F$56,2,FALSE) -> Storage units (excluding shelves) | E195: 07 | F195: =VLOOKUP(E195,'Understanding the coding'!$H$11:$I$43,2,FALSE) -> Glass and mirrors | G195: 021 | H195: =VLOOKUP(G195,'Understanding the coding'!$K$11:$L$96,2,FALSE) -> Between 0.5 kg and < 1 kg | J195: 01017070210 | K195: =CONCATENATE(Tableau13[[#This Row],[Category label]],", ",Tableau13[[#This Row],[Label Type]],", ",Tableau13[[#This Row],[Material label]]," ,",Tableau13[[#This Row],[Caracteristic label]]) -> Living_room_lounge_dining_room_furniture, Storage units (excluding shelves), Glass and mirrors ,Between 0.5 kg and < 1 kg | L195: 0.1 | M195: 094 | N195: 0.12
A196: 01 | B196: =VLOOKUP(A196,'Understanding the coding'!$B$11:$C$23,2,FALSE) -> Living_room_lounge_dining_room_furniture | C196: 017 | D196: =VLOOKUP(C196,'Understanding the coding'!$E$11:$F$56,2,FALSE) -> Storage units (excluding shelves) | E196: 07 | F196: =VLOOKUP(E196,'Understanding the coding'!$H$11:$I$43,2,FALSE) -> Glass and mirrors | G196: 022 | H196: =VLOOKUP(G196,'Understanding the coding'!$K$11:$L$96,2,FALSE) -> Between 1 kg and < 2 kg | J196: 01017070220 | K196: =CONCATENATE(Tableau13[[#This Row],[Category label]],", ",Tableau13[[#This Row],[Label Type]],", ",Tableau13[[#This Row],[Material label]]," ,",Tableau13[[#This Row],[Caracteristic label]]) -> Living_room_lounge_dining_room_furniture, Storage units (excluding shelves), Glass and mirrors ,Between 1 kg and < 2 kg | L196: 0.17 | M196: 005 | N196: 0.2
A197: 01 | B197: =VLOOKUP(A197,'Understanding the coding'!$B$11:$C$23,2,FALSE) -> Living_room_lounge_dining_room_furniture | C197: 017 | D197: =VLOOKUP(C197,'Understanding the coding'!$E$11:$F$56,2,FALSE) -> Storage units (excluding shelves) | E197: 07 | F197: =VLOOKUP(E197,'Understanding the coding'!$H$11:$I$43,2,FALSE) -> Glass and mirrors | G197: 023 | H197: =VLOOKUP(G197,'Understanding the coding'!$K$11:$L$96,2,FALSE) -> Between 2 kg and < 5 kg | J197: 01017070230 | K197: =CONCATENATE(Tableau13[[#This Row],[Category label]],", ",Tableau13[[#This Row],[Label Type]],", ",Tableau13[[#This Row],[Material label]]," ,",Tableau13[[#This Row],[Caracteristic label]]) -> Living_room_lounge_dining_room_furniture, Storage units (excluding shelves), Glass and mirrors ,Between 2 kg and < 5 kg | L197: 0.33 | M197: 006 | N197: 0.4
A198: 01 | B198: =VLOOKUP(A198,'Understanding the coding'!$B$11:$C$23,2,FALSE) -> Living_room_lounge_dining_room_furniture | C198: 017 | D198: =VLOOKUP(C198,'Understanding the coding'!$E$11:$F$56,2,FALSE) -> Storage units (excluding shelves) | E198: 07 | F198: =VLOOKUP(E198,'Understanding the coding'!$H$11:$I$43,2,FALSE) -> Glass and mirrors | G198: 024 | H198: =VLOOKUP(G198,'Understanding the coding'!$K$11:$L$96,2,FALSE) -> Between 5 kg and < 10 kg | J198: 01017070240 | K198: =CONCATENATE(Tableau13[[#This Row],[Category label]],", ",Tableau13[[#This Row],[Label Type]],", ",Tableau13[[#This Row],[Material label]]," ,",Tableau13[[#This Row],[Caracteristic label]]) -> Living_room_lounge_dining_room_furniture, Storage units (excluding shelves), Glass and mirrors ,Between 5 kg and < 10 kg | L198: 0.83 | M198: 008 | N198: 1
A199: 01 | B199: =VLOOKUP(A199,'Understanding the coding'!$B$11:$C$23,2,FALSE) -> Living_room_lounge_dining_room_furniture | C199: 017 | D199: =VLOOKUP(C199,'Understanding the coding'!$E$11:$F$56,2,FALSE) -> Storage units (excluding shelves) | E199: 07 | F199: =VLOOKUP(E199,'Understanding the coding'!$H$11:$I$43,2,FALSE) -> Glass and mirrors | G199: 025 | H199: =VLOOKUP(G199,'Understanding the coding'!$K$11:$L$96,2,FALSE) -> Between 10 kg and < 20 kg | J199: 01017070250 | K199: =CONCATENATE(Tableau13[[#This Row],[Category label]],", ",Tableau13[[#This Row],[Label Type]],", ",Tableau13[[#This Row],[Material label]]," ,",Tableau13[[#This Row],[Caracteristic label]]) -> Living_room_lounge_dining_room_furniture, Storage units (excluding shelves), Glass and mirrors ,Between 10 kg and < 20 kg | L199: 1.83 | M199: 117 | N199: 2.2
A200: 01 | B200: =VLOOKUP(A200,'Understanding the coding'!$B$11:$C$23,2,FALSE) -> Living_room_lounge_dining_room_furniture | C200: 017 | D200: =VLOOKUP(C200,'Understanding the coding'!$E$11:$F$56,2,FALSE) -> Storage units (excluding shelves) | E200: 07 | F200: =VLOOKUP(E200,'Understanding the coding'!$H$11:$I$43,2,FALSE) -> Glass and mirrors | G200: 026 | H200: =VLOOKUP(G200,'Understanding the coding'!$K$11:$L$96,2,FALSE) -> Between 20 kg and < 30 kg | J200: 01017070260 | K200: =CONCATENATE(Tableau13[[#This Row],[Category label]],", ",Tableau13[[#This Row],[Label Type]],", ",Tableau13[[#This Row],[Material label]]," ,",Tableau13[[#This Row],[Caracteristic label]]) -> Living_room_lounge_dining_room_furniture, Storage units (excluding shelves), Glass and mirrors ,Between 20 kg and < 30 kg | L200: 2.92 | M200: 013 | N200: 3.5
... 4300 more rows

Sheet Générateur à la dimension (hidden)
A1: Générateur à la dimension des codes produits de tablettes, panneaux et tissus d'ameublement pour 2020
A2: sélectionner les éléments dans les cases marrons
A4: 1 - Choisissez une catégorie : | F4: Code:
D6: Meubles_d_appoint | F6: =IF(D6="","",VLOOKUP(D6,Masked_lists!$J$3:$K$14,2,FALSE)) -> 
A8: =2&" - Choisissez un type de produit : " -> 2 - Choisissez un type de produit :
D10: 038 - Tablette | F10: =IF(D10="","",LEFT(D10,3)) -> 038 | H10: ="_"&F10 -> _038 | I10: ="_"&H10 -> __038
A12: =3&" - Choisissez un matériau majoritaire en poids ou indiquez la présence de rembourrage : " -> 3 - Choisissez un matériau majoritaire en poids ou indiquez la présence de rembourrage :
D14: Bois massif certifié à plus de 75% | F14: =IF(D14="","",VLOOKUP(D14,Masked_lists!$F$3:$G$28,2,FALSE)) -> 
D15: =IF(AND(OR(F6="01",F6="02",F6="03",F6="05",F6="06",F6="07",F6="08",F6="10",F6="11"),OR(F14="20",F14="21",F14="22",F14="23",F14="24",F14="25")),"Attention ! La présence de PVC ou d'un matériau inerte type verre ou pierre dans un meuble n'ouvre pas droit à ce code !","") -> 
A16: =4&" - Choisissez la dimension du produit" -> 4 - Choisissez la dimension du produit
D18: De plus de 120cm de longueur, largeur inférieure à 25cm | F18: =IF(D18="","",VLOOKUP(D18,Masked_lists!$B$3:$C$85,2,FALSE)) -> 
A20: D'où le code produit:
D22: =IF(D18="","",CONCATENATE(F6,F10,F14,F18,0)) -> 
D23: =IFERROR(VLOOKUP('Product code generator'!$D$32,Tableau1[[Code produit]:[Code Eco part]],2,FALSE),"") -> 
A25: Le montant de l'éco-participation 2020 (€/article mis en marché): | F25: et son code éco-participation associé:
A27: vous pouvez le paramétrer | B27: Taux de TVA | D27: =IFERROR(VLOOKUP('Product code generator'!$D$32,Tableau1[[Code produit]:[Code Eco part]],3,FALSE),"") ->  | F27: =IFERROR(VLOOKUP('Product code generator'!$D$32,Tableau1[[Code produit]:[Code Eco part]],4,FALSE),"") -> 
B28: 0.2 | D28: =IF(D27="","",IF(B28=20%,VLOOKUP($D$22,Tableau1[[Code produit]:[Tarif TTC]],5,FALSE),D27*(1+$B$28))) -> 
A32: NB :
A33: penser à actionner le bouton "RESET" avant de faire une nouvelle génération. le montant TTC de l’éco-participation est donné à titre indicatif ; le barème applicable est le barème HT.

Sheet Tarifs (hidden)
A1: Code Catégorie | B1: Libellé Cat | C1: Code Type de produit | D1: Libellé Type | E1: Code Matériau | F1: Libellé Mat | G1: Code Caractéristique | H1: Libellé Carac | I1: Index tarif | J1: Code produit | K1: Libelé | L1: Tarif HT | M1: Code Eco part | N1: Tarif TTC
A2: =MID(J2,1,2) -> 01 | B2: =VLOOKUP(A2,'Understanding the coding'!$B$11:$C$23,2,FALSE) -> Living_room_lounge_dining_room_furniture | C2: =MID(J2,3,3) -> 017 | D2: =VLOOKUP(C2,'Understanding the coding'!$E$11:$F$56,2,FALSE) -> Storage units (excluding shelves) | E2: =MID(J2,6,2) -> 01 | F2: =VLOOKUP(E2,'Understanding the coding'!$H$11:$I$43,2,FALSE) -> > 50% wood, wood panels, and wood derivatives | G2: =MID(J2,8,3) -> 020 | H2: =VLOOKUP(G2,'Understanding the coding'!$K$11:$L$96,2,FALSE) -> Must not exceed 0.5 kg | J2: 01017010200 | K2: Meuble de salon/salle à manger, servant au rangement, en bois, inférieur strictement à 0,5 kg | L2: 0.03 | M2: 092 | N2: 0.04
A3: 01 | B3: =VLOOKUP(A3,'Understanding the coding'!$B$11:$C$23,2,FALSE) -> Living_room_lounge_dining_room_furniture | C3: 017 | D3: =VLOOKUP(C3,'Understanding the coding'!$E$11:$F$56,2,FALSE) -> Storage units (excluding shelves) | E3: 01 | F3: =VLOOKUP(E3,'Understanding the coding'!$H$11:$I$43,2,FALSE) -> > 50% wood, wood panels, and wood derivatives | G3: 021 | H3: =VLOOKUP(G3,'Understanding the coding'!$K$11:$L$96,2,FALSE) -> Between 0.5 kg and < 1 kg | J3: 01017010210 | K3: Meuble de salon/salle à manger, servant au rangement, en bois, compris entre 0,5 kg et 1 kg exclus | L3: 0.08 | M3: 003 | N3: 0.1
A4: 01 | B4: =VLOOKUP(A4,'Understanding the coding'!$B$11:$C$23,2,FALSE) -> Living_room_lounge_dining_room_furniture | C4: 017 | D4: =VLOOKUP(C4,'Understanding the coding'!$E$11:$F$56,2,FALSE) -> Storage units (excluding shelves) | E4: 01 | F4: =VLOOKUP(E4,'Understanding the coding'!$H$11:$I$43,2,FALSE) -> > 50% wood, wood panels, and wood derivatives | G4: 022 | H4: =VLOOKUP(G4,'Understanding the coding'!$K$11:$L$96,2,FALSE) -> Between 1 kg and < 2 kg | J4: 01017010220 | K4: Meuble de salon/salle à manger, servant au rangement, en bois, compris entre 1 kg et 2 kg exclus | L4: 0.14 | M4: 098 | N4: 0.17
A5: 01 | B5: =VLOOKUP(A5,'Understanding the coding'!$B$11:$C$23,2,FALSE) -> Living_room_lounge_dining_room_furniture | C5: 017 | D5: =VLOOKUP(C5,'Understanding the coding'!$E$11:$F$56,2,FALSE) -> Storage units (excluding shelves) | E5: 01 | F5: =VLOOKUP(E5,'Understanding the coding'!$H$11:$I$43,2,FALSE) -> > 50% wood, wood panels, and wood derivatives | G5: 023 | H5: =VLOOKUP(G5,'Understanding the coding'!$K$11:$L$96,2,FALSE) -> Between 2 kg and < 5 kg | J5: 01017010230 | K5: Meuble de salon/salle à manger, servant au rangement, en bois, compris entre 2 kg et 5 kg exclus | L5: 0.27 | M5: 103 | N5: 0.32
A6: 01 | B6: =VLOOKUP(A6,'Understanding the coding'!$B$11:$C$23,2,FALSE) -> Living_room_lounge_dining_room_furniture | C6: 017 | D6: =VLOOKUP(C6,'Understanding the coding'!$E$11:$F$56,2,FALSE) -> Storage units (excluding shelves) | E6: 01 | F6: =VLOOKUP(E6,'Understanding the coding'!$H$11:$I$43,2,FALSE) -> > 50% wood, wood panels, and wood derivatives | G6: 024 | H6: =VLOOKUP(G6,'Understanding the coding'!$K$11:$L$96,2,FALSE) -> Between 5 kg and < 10 kg | J6: 01017010240 | K6: Meuble de salon/salle à manger, servant au rangement, en bois, compris entre 5 kg et 10 kg exclus | L6: 0.68 | M6: 044 | N6: 0.82
A7: 01 | B7: =VLOOKUP(A7,'Understanding the coding'!$B$11:$C$23,2,FALSE) -> Living_room_lounge_dining_room_furniture | C7: 017 | D7: =VLOOKUP(C7,'Understanding the coding'!$E$11:$F$56,2,FALSE) -> Storage units (excluding shelves) | E7: 01 | F7: =VLOOKUP(E7,'Understanding the coding'!$H$11:$I$43,2,FALSE) -> > 50% wood, wood panels, and wood derivatives | G7: 025 | H7: =VLOOKUP(G7,'Understanding the coding'!$K$11:$L$96,2,FALSE) -> Between 10 kg and < 20 kg | J7: 01017010250 | K7: Meuble de salon/salle à manger, servant au rangement, en bois, compris entre 10 kg et 20 kg exclus | L7: 1.5 | M7: 059 | N7: 1.8
A8: 01 | B8: =VLOOKUP(A8,'Understanding the coding'!$B$11:$C$23,2,FALSE) -> Living_room_lounge_dining_room_furniture | C8: 017 | D8: =VLOOKUP(C8,'Understanding the coding'!$E$11:$F$56,2,FALSE) -> Storage units (excluding shelves) | E8: 01 | F8: =VLOOKUP(E8,'Understanding the coding'!$H$11:$I$43,2,FALSE) -> > 50% wood, wood panels, and wood derivatives | G8: 026 | H8: =VLOOKUP(G8,'Understanding the coding'!$K$11:$L$96,2,FALSE) -> Between 20 kg and < 30 kg | J8: 01017010260 | K8: Meuble de salon/salle à manger, servant au rangement, en bois, compris entre 20 kg et 30 kg exclus | L8: 2.33 | M8: 062 | N8: 2.8
A9: 01 | B9: =VLOOKUP(A9,'Understanding the coding'!$B$11:$C$23,2,FALSE) -> Living_room_lounge_dining_room_furniture | C9: 017 | D9: =VLOOKUP(C9,'Understanding the coding'!$E$11:$F$56,2,FALSE) -> Storage units (excluding shelves) | E9: 01 | F9: =VLOOKUP(E9,'Understanding the coding'!$H$11:$I$43,2,FALSE) -> > 50% wood, wood panels, and wood derivatives | G9: 027 | H9: =VLOOKUP(G9,'Understanding the coding'!$K$11:$L$96,2,FALSE) -> Between 30 kg and < 40 kg | J9: 01017010270 | K9: Meuble de salon/salle à manger, servant au rangement, en bois, compris entre 30 kg et 40 kg exclus | L9: 3.25 | M9: 122 | N9: 3.9
A10: 01 | B10: =VLOOKUP(A10,'Understanding the coding'!$B$11:$C$23,2,FALSE) -> Living_room_lounge_dining_room_furniture | C10: 017 | D10: =VLOOKUP(C10,'Understanding the coding'!$E$11:$F$56,2,FALSE) -> Storage units (excluding shelves) | E10: 01 | F10: =VLOOKUP(E10,'Understanding the coding'!$H$11:$I$43,2,FALSE) -> > 50% wood, wood panels, and wood derivatives | G10: 028 | H10: =VLOOKUP(G10,'Understanding the coding'!$K$11:$L$96,2,FALSE) -> Between 40 kg and < 60 kg | J10: 01017010280 | K10: Meuble de salon/salle à manger, servant au rangement, en bois, compris entre 40 kg et 60 kg exclus | L10: 4.42 | M10: 126 | N10: 5.3
A11: 01 | B11: =VLOOKUP(A11,'Understanding the coding'!$B$11:$C$23,2,FALSE) -> Living_room_lounge_dining_room_furniture | C11: 017 | D11: =VLOOKUP(C11,'Understanding the coding'!$E$11:$F$56,2,FALSE) -> Storage units (excluding shelves) | E11: 01 | F11: =VLOOKUP(E11,'Understanding the coding'!$H$11:$I$43,2,FALSE) -> > 50% wood, wood panels, and wood derivatives | G11: 029 | H11: =VLOOKUP(G11,'Understanding the coding'!$K$11:$L$96,2,FALSE) -> Between 60 kg and < 100 kg | J11: 01017010290 | K11: Meuble de salon/salle à manger, servant au rangement, en bois, compris entre 60 kg et 100 kg exclus | L11: 7.08 | M11: 067 | N11: 8.5
A12: 01 | B12: =VLOOKUP(A12,'Understanding the coding'!$B$11:$C$23,2,FALSE) -> Living_room_lounge_dining_room_furniture | C12: 017 | D12: =VLOOKUP(C12,'Understanding the coding'!$E$11:$F$56,2,FALSE) -> Storage units (excluding shelves) | E12: 01 | F12: =VLOOKUP(E12,'Understanding the coding'!$H$11:$I$43,2,FALSE) -> > 50% wood, wood panels, and wood derivatives | G12: 030 | H12: =VLOOKUP(G12,'Understanding the coding'!$K$11:$L$96,2,FALSE) -> Between 100 kg and < 150 kg | J12: 01017010300 | K12: Meuble de salon/salle à manger, servant au rangement, en bois, compris entre 100 kg et 150 kg exclus | L12: 12.5 | M12: 072 | N12: 15
A13: 01 | B13: =VLOOKUP(A13,'Understanding the coding'!$B$11:$C$23,2,FALSE) -> Living_room_lounge_dining_room_furniture | C13: 017 | D13: =VLOOKUP(C13,'Understanding the coding'!$E$11:$F$56,2,FALSE) -> Storage units (excluding shelves) | E13: 01 | F13: =VLOOKUP(E13,'Understanding the coding'!$H$11:$I$43,2,FALSE) -> > 50% wood, wood panels, and wood derivatives | G13: 031 | H13: =VLOOKUP(G13,'Understanding the coding'!$K$11:$L$96,2,FALSE) -> Between 150 kg and < 200 kg | J13: 01017010310 | K13: Meuble de salon/salle à manger, servant au rangement, en bois, compris entre 150 kg et 200 kg exclus | L13: 16.25 | M13: 145 | N13: 19.5
A14: 01 | B14: =VLOOKUP(A14,'Understanding the coding'!$B$11:$C$23,2,FALSE) -> Living_room_lounge_dining_room_furniture | C14: 017 | D14: =VLOOKUP(C14,'Understanding the coding'!$E$11:$F$56,2,FALSE) -> Storage units (excluding shelves) | E14: 01 | F14: =VLOOKUP(E14,'Understanding the coding'!$H$11:$I$43,2,FALSE) -> > 50% wood, wood panels, and wood derivatives | G14: 032 | H14: =VLOOKUP(G14,'Understanding the coding'!$K$11:$L$96,2,FALSE) -> Between 200 kg and < 250 kg | J14: 01017010320 | K14: Meuble de salon/salle à manger, servant au rangement, en bois, compris entre 200 kg et 250 kg exclus | L14: 20.83 | M14: 149 | N14: 25
A15: 01 | B15: =VLOOKUP(A15,'Understanding the coding'!$B$11:$C$23,2,FALSE) -> Living_room_lounge_dining_room_furniture | C15: 017 | D15: =VLOOKUP(C15,'Understanding the coding'!$E$11:$F$56,2,FALSE) -> Storage units (excluding shelves) | E15: 01 | F15: =VLOOKUP(E15,'Understanding the coding'!$H$11:$I$43,2,FALSE) -> > 50% wood, wood panels, and wood derivatives | G15: 033 | H15: =VLOOKUP(G15,'Understanding the coding'!$K$11:$L$96,2,FALSE) -> Between 250 kg and < 300 kg | J15: 01017010330 | K15: Meuble de salon/salle à manger, servant au rangement, en bois, compris entre 250 kg et 300 kg exclus | L15: 27.5 | M15: 026 | N15: 33
A16: 01 | B16: =VLOOKUP(A16,'Understanding the coding'!$B$11:$C$23,2,FALSE) -> Living_room_lounge_dining_room_furniture | C16: 017 | D16: =VLOOKUP(C16,'Understanding the coding'!$E$11:$F$56,2,FALSE) -> Storage units (excluding shelves) | E16: 01 | F16: =VLOOKUP(E16,'Understanding the coding'!$H$11:$I$43,2,FALSE) -> > 50% wood, wood panels, and wood derivatives | G16: 034 | H16: =VLOOKUP(G16,'Understanding the coding'!$K$11:$L$96,2,FALSE) -> Between 300 kg and < 400 kg | J16: 01017010340 | K16: Meuble de salon/salle à manger, servant au rangement, en bois, compris entre 300 kg et 400 kg exclus | L16: 34.17 | M16: 158 | N16: 41
A17: 01 | B17: =VLOOKUP(A17,'Understanding the coding'!$B$11:$C$23,2,FALSE) -> Living_room_lounge_dining_room_furniture | C17: 017 | D17: =VLOOKUP(C17,'Understanding the coding'!$E$11:$F$56,2,FALSE) -> Storage units (excluding shelves) | E17: 01 | F17: =VLOOKUP(E17,'Understanding the coding'!$H$11:$I$43,2,FALSE) -> > 50% wood, wood panels, and wood derivatives | G17: 035 | H17: =VLOOKUP(G17,'Understanding the coding'!$K$11:$L$96,2,FALSE) -> Between 400 kg and < 500 kg | J17: 01017010350 | K17: Meuble de salon/salle à manger, servant au rangement, en bois, compris entre 400 kg et 500 kg exclus | L17: 42.92 | M17: 166 | N17: 51.5
A18: 01 | B18: =VLOOKUP(A18,'Understanding the coding'!$B$11:$C$23,2,FALSE) -> Living_room_lounge_dining_room_furniture | C18: 017 | D18: =VLOOKUP(C18,'Understanding the coding'!$E$11:$F$56,2,FALSE) -> Storage units (excluding shelves) | E18: 01 | F18: =VLOOKUP(E18,'Understanding the coding'!$H$11:$I$43,2,FALSE) -> > 50% wood, wood panels, and wood derivatives | G18: 036 | H18: =VLOOKUP(G18,'Understanding the coding'!$K$11:$L$96,2,FALSE) -> Between 500 kg and < 600 kg | J18: 01017010360 | K18: Meuble de salon/salle à manger, servant au rangement, en bois, compris entre 500 kg et 600 kg exclus | L18: 51.67 | M18: 079 | N18: 62
A19: 01 | B19: =VLOOKUP(A19,'Understanding the coding'!$B$11:$C$23,2,FALSE) -> Living_room_lounge_dining_room_furniture | C19: 017 | D19: =VLOOKUP(C19,'Understanding the coding'!$E$11:$F$56,2,FALSE) -> Storage units (excluding shelves) | E19: 01 | F19: =VLOOKUP(E19,'Understanding the coding'!$H$11:$I$43,2,FALSE) -> > 50% wood, wood panels, and wood derivatives | G19: 037 | H19: =VLOOKUP(G19,'Understanding the coding'!$K$11:$L$96,2,FALSE) -> Between 600 kg and < 700 kg | J19: 01017010370 | K19: Meuble de salon/salle à manger, servant au rangement, en bois, compris entre 600 kg et 700 kg exclus | L19: 60.42 | M19: 181 | N19: 72.5
A20: 01 | B20: =VLOOKUP(A20,'Understanding the coding'!$B$11:$C$23,2,FALSE) -> Living_room_lounge_dining_room_furniture | C20: 017 | D20: =VLOOKUP(C20,'Understanding the coding'!$E$11:$F$56,2,FALSE) -> Storage units (excluding shelves) | E20: 01 | F20: =VLOOKUP(E20,'Understanding the coding'!$H$11:$I$43,2,FALSE) -> > 50% wood, wood panels, and wood derivatives | G20: 038 | H20: =VLOOKUP(G20,'Understanding the coding'!$K$11:$L$96,2,FALSE) -> Between 700 kg and < 800 kg | J20: 01017010380 | K20: Meuble de salon/salle à manger, servant au rangement, en bois, compris entre 700 kg et 800 kg exclus | L20: 69.17 | M20: 036 | N20: 83
A21: 01 | B21: =VLOOKUP(A21,'Understanding the coding'!$B$11:$C$23,2,FALSE) -> Living_room_lounge_dining_room_furniture | C21: 017 | D21: =VLOOKUP(C21,'Understanding the coding'!$E$11:$F$56,2,FALSE) -> Storage units (excluding shelves) | E21: 01 | F21: =VLOOKUP(E21,'Understanding the coding'!$H$11:$I$43,2,FALSE) -> > 50% wood, wood panels, and wood derivatives | G21: 039 | H21: =VLOOKUP(G21,'Understanding the coding'!$K$11:$L$96,2,FALSE) -> Between 800 kg and < 900 kg | J21: 01017010390 | K21: Meuble de salon/salle à manger, servant au rangement, en bois, compris entre 800 kg et 900 kg exclus | L21: 77.92 | M21: 194 | N21: 93.5
A22: 01 | B22: =VLOOKUP(A22,'Understanding the coding'!$B$11:$C$23,2,FALSE) -> Living_room_lounge_dining_room_furniture | C22: 017 | D22: =VLOOKUP(C22,'Understanding the coding'!$E$11:$F$56,2,FALSE) -> Storage units (excluding shelves) | E22: 01 | F22: =VLOOKUP(E22,'Understanding the coding'!$H$11:$I$43,2,FALSE) -> > 50% wood, wood panels, and wood derivatives | G22: 040 | H22: =VLOOKUP(G22,'Understanding the coding'!$K$11:$L$96,2,FALSE) -> Between 900 kg and < 1,000 kg | J22: 01017010400 | K22: Meuble de salon/salle à manger, servant au rangement, en bois, compris entre 900 kg et 1 000 kg exclus | L22: 86.67 | M22: 084 | N22: 104
A23: 01 | B23: =VLOOKUP(A23,'Understanding the coding'!$B$11:$C$23,2,FALSE) -> Living_room_lounge_dining_room_furniture | C23: 017 | D23: =VLOOKUP(C23,'Understanding the coding'!$E$11:$F$56,2,FALSE) -> Storage units (excluding shelves) | E23: 01 | F23: =VLOOKUP(E23,'Understanding the coding'!$H$11:$I$43,2,FALSE) -> > 50% wood, wood panels, and wood derivatives | G23: 041 | H23: =VLOOKUP(G23,'Understanding the coding'!$K$11:$L$96,2,FALSE) -> Between 1,000 kg and < 1,100 kg | J23: 01017010410 | K23: Meuble de salon/salle à manger, servant au rangement, en bois, compris entre 1 000 kg et 1 100 kg exclus | L23: 95.42 | M23: 206 | N23: 114.5
A24: 01 | B24: =VLOOKUP(A24,'Understanding the coding'!$B$11:$C$23,2,FALSE) -> Living_room_lounge_dining_room_furniture | C24: 017 | D24: =VLOOKUP(C24,'Understanding the coding'!$E$11:$F$56,2,FALSE) -> Storage units (excluding shelves) | E24: 01 | F24: =VLOOKUP(E24,'Understanding the coding'!$H$11:$I$43,2,FALSE) -> > 50% wood, wood panels, and wood derivatives | G24: 042 | H24: =VLOOKUP(G24,'Understanding the coding'!$K$11:$L$96,2,FALSE) -> Between 1,100 kg and < 1,200 kg | J24: 01017010420 | K24: Meuble de salon/salle à manger, servant au rangement, en bois, compris entre 1 100 kg et 1 200 kg exclus | L24: 104.17 | M24: 209 | N24: 125
A25: 01 | B25: =VLOOKUP(A25,'Understanding the coding'!$B$11:$C$23,2,FALSE) -> Living_room_lounge_dining_room_furniture | C25: 017 | D25: =VLOOKUP(C25,'Understanding the coding'!$E$11:$F$56,2,FALSE) -> Storage units (excluding shelves) | E25: 01 | F25: =VLOOKUP(E25,'Understanding the coding'!$H$11:$I$43,2,FALSE) -> > 50% wood, wood panels, and wood derivatives | G25: 043 | H25: =VLOOKUP(G25,'Understanding the coding'!$K$11:$L$96,2,FALSE) -> Between 1,200 kg and < 1,300 kg | J25: 01017010430 | K25: Meuble de salon/salle à manger, servant au rangement, en bois, compris entre 1 200 kg et 1 300 kg exclus | L25: 112.92 | M25: 215 | N25: 135.5
A26: 01 | B26: =VLOOKUP(A26,'Understanding the coding'!$B$11:$C$23,2,FALSE) -> Living_room_lounge_dining_room_furniture | C26: 017 | D26: =VLOOKUP(C26,'Understanding the coding'!$E$11:$F$56,2,FALSE) -> Storage units (excluding shelves) | E26: 01 | F26: =VLOOKUP(E26,'Understanding the coding'!$H$11:$I$43,2,FALSE) -> > 50% wood, wood panels, and wood derivatives | G26: 044 | H26: =VLOOKUP(G26,'Understanding the coding'!$K$11:$L$96,2,FALSE) -> Between 1,300 kg and < 1,400 kg | J26: 01017010440 | K26: Meuble de salon/salle à manger, servant au rangement, en bois, compris entre 1 300 kg et 1 400 kg exclus | L26: 121.67 | M26: 219 | N26: 146
A27: 01 | B27: =VLOOKUP(A27,'Understanding the coding'!$B$11:$C$23,2,FALSE) -> Living_room_lounge_dining_room_furniture | C27: 017 | D27: =VLOOKUP(C27,'Understanding the coding'!$E$11:$F$56,2,FALSE) -> Storage units (excluding shelves) | E27: 01 | F27: =VLOOKUP(E27,'Understanding the coding'!$H$11:$I$43,2,FALSE) -> > 50% wood, wood panels, and wood derivatives | G27: 045 | H27: =VLOOKUP(G27,'Understanding the coding'!$K$11:$L$96,2,FALSE) -> Between 1,400 kg and < 1,500 kg | J27: 01017010450 | K27: Meuble de salon/salle à manger, servant au rangement, en bois, compris entre 1 400 kg et 1 500 kg exclus | L27: 130.42 | M27: 223 | N27: 156.5
A28: 01 | B28: =VLOOKUP(A28,'Understanding the coding'!$B$11:$C$23,2,FALSE) -> Living_room_lounge_dining_room_furniture | C28: 017 | D28: =VLOOKUP(C28,'Understanding the coding'!$E$11:$F$56,2,FALSE) -> Storage units (excluding shelves) | E28: 01 | F28: =VLOOKUP(E28,'Understanding the coding'!$H$11:$I$43,2,FALSE) -> > 50% wood, wood panels, and wood derivatives | G28: 046 | H28: =VLOOKUP(G28,'Understanding the coding'!$K$11:$L$96,2,FALSE) -> Between 1,500 kg and < 1,600 kg | J28: 01017010460 | K28: Meuble de salon/salle à manger, servant au rangement, en bois, compris entre 1 500 kg et 1 600 kg exclus | L28: 139.17 | M28: 226 | N28: 167
A29: 01 | B29: =VLOOKUP(A29,'Understanding the coding'!$B$11:$C$23,2,FALSE) -> Living_room_lounge_dining_room_furniture | C29: 017 | D29: =VLOOKUP(C29,'Understanding the coding'!$E$11:$F$56,2,FALSE) -> Storage units (excluding shelves) | E29: 01 | F29: =VLOOKUP(E29,'Understanding the coding'!$H$11:$I$43,2,FALSE) -> > 50% wood, wood panels, and wood derivatives | G29: 047 | H29: =VLOOKUP(G29,'Understanding the coding'!$K$11:$L$96,2,FALSE) -> Between 1,600 kg and < 1,700 kg | J29: 01017010470 | K29: Meuble de salon/salle à manger, servant au rangement, en bois, compris entre 1 600 kg et 1 700 kg exclus | L29: 147.92 | M29: 229 | N29: 177.5
A30: 01 | B30: =VLOOKUP(A30,'Understanding the coding'!$B$11:$C$23,2,FALSE) -> Living_room_lounge_dining_room_furniture | C30: 017 | D30: =VLOOKUP(C30,'Understanding the coding'!$E$11:$F$56,2,FALSE) -> Storage units (excluding shelves) | E30: 01 | F30: =VLOOKUP(E30,'Understanding the coding'!$H$11:$I$43,2,FALSE) -> > 50% wood, wood panels, and wood derivatives | G30: 048 | H30: =VLOOKUP(G30,'Understanding the coding'!$K$11:$L$96,2,FALSE) -> Between 1,700 kg and < 1,800 kg | J30: 01017010480 | K30: Meuble de salon/salle à manger, servant au rangement, en bois, compris entre 1 700 kg et 1 800 kg exclus | L30: 156.67 | M30: 232 | N30: 188
A31: 01 | B31: =VLOOKUP(A31,'Understanding the coding'!$B$11:$C$23,2,FALSE) -> Living_room_lounge_dining_room_furniture | C31: 017 | D31: =VLOOKUP(C31,'Understanding the coding'!$E$11:$F$56,2,FALSE) -> Storage units (excluding shelves) | E31: 01 | F31: =VLOOKUP(E31,'Understanding the coding'!$H$11:$I$43,2,FALSE) -> > 50% wood, wood panels, and wood derivatives | G31: 049 | H31: =VLOOKUP(G31,'Understanding the coding'!$K$11:$L$96,2,FALSE) -> Between 1,800 kg and < 1,900 kg | J31: 01017010490 | K31: Meuble de salon/salle à manger, servant au rangement, en bois, compris entre 1 800 kg et 1 900 kg exclus | L31: 165.42 | M31: 235 | N31: 198.5
A32: 01 | B32: =VLOOKUP(A32,'Understanding the coding'!$B$11:$C$23,2,FALSE) -> Living_room_lounge_dining_room_furniture | C32: 017 | D32: =VLOOKUP(C32,'Understanding the coding'!$E$11:$F$56,2,FALSE) -> Storage units (excluding shelves) | E32: 01 | F32: =VLOOKUP(E32,'Understanding the coding'!$H$11:$I$43,2,FALSE) -> > 50% wood, wood panels, and wood derivatives | G32: 050 | H32: =VLOOKUP(G32,'Understanding the coding'!$K$11:$L$96,2,FALSE) -> Between 1,900 kg and < 2,000 kg | J32: 01017010500 | K32: Meuble de salon/salle à manger, servant au rangement, en bois, compris entre 1 900 kg et 2 000 kg exclus | L32: 174.17 | M32: 236 | N32: 209
A33: 01 | B33: =VLOOKUP(A33,'Understanding the coding'!$B$11:$C$23,2,FALSE) -> Living_room_lounge_dining_room_furniture | C33: 017 | D33: =VLOOKUP(C33,'Understanding the coding'!$E$11:$F$56,2,FALSE) -> Storage units (excluding shelves) | E33: 01 | F33: =VLOOKUP(E33,'Understanding the coding'!$H$11:$I$43,2,FALSE) -> > 50% wood, wood panels, and wood derivatives | G33: 051 | H33: =VLOOKUP(G33,'Understanding the coding'!$K$11:$L$96,2,FALSE) -> Over 2,000 kg | J33: 01017010510 | K33: Meuble de salon/salle à manger, servant au rangement, en bois, supérieur à 2 000 kg | L33: 182.92 | M33: 238 | N33: 219.5
A34: 01 | B34: =VLOOKUP(A34,'Understanding the coding'!$B$11:$C$23,2,FALSE) -> Living_room_lounge_dining_room_furniture | C34: 017 | D34: =VLOOKUP(C34,'Understanding the coding'!$E$11:$F$56,2,FALSE) -> Storage units (excluding shelves) | E34: 02 | F34: =VLOOKUP(E34,'Understanding the coding'!$H$11:$I$43,2,FALSE) -> > 50% metal | G34: 020 | H34: =VLOOKUP(G34,'Understanding the coding'!$K$11:$L$96,2,FALSE) -> Must not exceed 0.5 kg | J34: 01017020200 | K34: Meuble de salon/salle à manger, servant au rangement, en métal, inférieur strictement à 0,5 kg | L34: 0.03 | M34: 092 | N34: 0.04
A35: 01 | B35: =VLOOKUP(A35,'Understanding the coding'!$B$11:$C$23,2,FALSE) -> Living_room_lounge_dining_room_furniture | C35: 017 | D35: =VLOOKUP(C35,'Understanding the coding'!$E$11:$F$56,2,FALSE) -> Storage units (excluding shelves) | E35: 02 | F35: =VLOOKUP(E35,'Understanding the coding'!$H$11:$I$43,2,FALSE) -> > 50% metal | G35: 021 | H35: =VLOOKUP(G35,'Understanding the coding'!$K$11:$L$96,2,FALSE) -> Between 0.5 kg and < 1 kg | J35: 01017020210 | K35: Meuble de salon/salle à manger, servant au rangement, en métal, compris entre 0,5 kg et 1 kg exclus | L35: 0.08 | M35: 003 | N35: 0.1
A36: 01 | B36: =VLOOKUP(A36,'Understanding the coding'!$B$11:$C$23,2,FALSE) -> Living_room_lounge_dining_room_furniture | C36: 017 | D36: =VLOOKUP(C36,'Understanding the coding'!$E$11:$F$56,2,FALSE) -> Storage units (excluding shelves) | E36: 02 | F36: =VLOOKUP(E36,'Understanding the coding'!$H$11:$I$43,2,FALSE) -> > 50% metal | G36: 022 | H36: =VLOOKUP(G36,'Understanding the coding'!$K$11:$L$96,2,FALSE) -> Between 1 kg and < 2 kg | J36: 01017020220 | K36: Meuble de salon/salle à manger, servant au rangement, en métal, compris entre 1 kg et 2 kg exclus | L36: 0.14 | M36: 098 | N36: 0.17
A37: 01 | B37: =VLOOKUP(A37,'Understanding the coding'!$B$11:$C$23,2,FALSE) -> Living_room_lounge_dining_room_furniture | C37: 017 | D37: =VLOOKUP(C37,'Understanding the coding'!$E$11:$F$56,2,FALSE) -> Storage units (excluding shelves) | E37: 02 | F37: =VLOOKUP(E37,'Understanding the coding'!$H$11:$I$43,2,FALSE) -> > 50% metal | G37: 023 | H37: =VLOOKUP(G37,'Understanding the coding'!$K$11:$L$96,2,FALSE) -> Between 2 kg and < 5 kg | J37: 01017020230 | K37: Meuble de salon/salle à manger, servant au rangement, en métal, compris entre 2 kg et 5 kg exclus | L37: 0.27 | M37: 103 | N37: 0.32
A38: 01 | B38: =VLOOKUP(A38,'Understanding the coding'!$B$11:$C$23,2,FALSE) -> Living_room_lounge_dining_room_furniture | C38: 017 | D38: =VLOOKUP(C38,'Understanding the coding'!$E$11:$F$56,2,FALSE) -> Storage units (excluding shelves) | E38: 02 | F38: =VLOOKUP(E38,'Understanding the coding'!$H$11:$I$43,2,FALSE) -> > 50% metal | G38: 024 | H38: =VLOOKUP(G38,'Understanding the coding'!$K$11:$L$96,2,FALSE) -> Between 5 kg and < 10 kg | J38: 01017020240 | K38: Meuble de salon/salle à manger, servant au rangement, en métal, compris entre 5 kg et 10 kg exclus | L38: 0.68 | M38: 044 | N38: 0.82
A39: 01 | B39: =VLOOKUP(A39,'Understanding the coding'!$B$11:$C$23,2,FALSE) -> Living_room_lounge_dining_room_furniture | C39: 017 | D39: =VLOOKUP(C39,'Understanding the coding'!$E$11:$F$56,2,FALSE) -> Storage units (excluding shelves) | E39: 02 | F39: =VLOOKUP(E39,'Understanding the coding'!$H$11:$I$43,2,FALSE) -> > 50% metal | G39: 025 | H39: =VLOOKUP(G39,'Understanding the coding'!$K$11:$L$96,2,FALSE) -> Between 10 kg and < 20 kg | J39: 01017020250 | K39: Meuble de salon/salle à manger, servant au rangement, en métal, compris entre 10 kg et 20 kg exclus | L39: 1.5 | M39: 059 | N39: 1.8
A40: 01 | B40: =VLOOKUP(A40,'Understanding the coding'!$B$11:$C$23,2,FALSE) -> Living_room_lounge_dining_room_furniture | C40: 017 | D40: =VLOOKUP(C40,'Understanding the coding'!$E$11:$F$56,2,FALSE) -> Storage units (excluding shelves) | E40: 02 | F40: =VLOOKUP(E40,'Understanding the coding'!$H$11:$I$43,2,FALSE) -> > 50% metal | G40: 026 | H40: =VLOOKUP(G40,'Understanding the coding'!$K$11:$L$96,2,FALSE) -> Between 20 kg and < 30 kg | J40: 01017020260 | K40: Meuble de salon/salle à manger, servant au rangement, en métal, compris entre 20 kg et 30 kg exclus | L40: 2.33 | M40: 062 | N40: 2.8
A41: 01 | B41: =VLOOKUP(A41,'Understanding the coding'!$B$11:$C$23,2,FALSE) -> Living_room_lounge_dining_room_furniture | C41: 017 | D41: =VLOOKUP(C41,'Understanding the coding'!$E$11:$F$56,2,FALSE) -> Storage units (excluding shelves) | E41: 02 | F41: =VLOOKUP(E41,'Understanding the coding'!$H$11:$I$43,2,FALSE) -> > 50% metal | G41: 027 | H41: =VLOOKUP(G41,'Understanding the coding'!$K$11:$L$96,2,FALSE) -> Between 30 kg and < 40 kg | J41: 01017020270 | K41: Meuble de salon/salle à manger, servant au rangement, en métal, compris entre 30 kg et 40 kg exclus | L41: 3.25 | M41: 122 | N41: 3.9
A42: 01 | B42: =VLOOKUP(A42,'Understanding the coding'!$B$11:$C$23,2,FALSE) -> Living_room_lounge_dining_room_furniture | C42: 017 | D42: =VLOOKUP(C42,'Understanding the coding'!$E$11:$F$56,2,FALSE) -> Storage units (excluding shelves) | E42: 02 | F42: =VLOOKUP(E42,'Understanding the coding'!$H$11:$I$43,2,FALSE) -> > 50% metal | G42: 028 | H42: =VLOOKUP(G42,'Understanding the coding'!$K$11:$L$96,2,FALSE) -> Between 40 kg and < 60 kg | J42: 01017020280 | K42: Meuble de salon/salle à manger, servant au rangement, en métal, compris entre 40 kg et 60 kg exclus | L42: 4.42 | M42: 126 | N42: 5.3
A43: 01 | B43: =VLOOKUP(A43,'Understanding the coding'!$B$11:$C$23,2,FALSE) -> Living_room_lounge_dining_room_furniture | C43: 017 | D43: =VLOOKUP(C43,'Understanding the coding'!$E$11:$F$56,2,FALSE) -> Storage units (excluding shelves) | E43: 02 | F43: =VLOOKUP(E43,'Understanding the coding'!$H$11:$I$43,2,FALSE) -> > 50% metal | G43: 029 | H43: =VLOOKUP(G43,'Understanding the coding'!$K$11:$L$96,2,FALSE) -> Between 60 kg and < 100 kg | J43: 01017020290 | K43: Meuble de salon/salle à manger, servant au rangement, en métal, compris entre 60 kg et 100 kg exclus | L43: 7.08 | M43: 067 | N43: 8.5
A44: 01 | B44: =VLOOKUP(A44,'Understanding the coding'!$B$11:$C$23,2,FALSE) -> Living_room_lounge_dining_room_furniture | C44: 017 | D44: =VLOOKUP(C44,'Understanding the coding'!$E$11:$F$56,2,FALSE) -> Storage units (excluding shelves) | E44: 02 | F44: =VLOOKUP(E44,'Understanding the coding'!$H$11:$I$43,2,FALSE) -> > 50% metal | G44: 030 | H44: =VLOOKUP(G44,'Understanding the coding'!$K$11:$L$96,2,FALSE) -> Between 100 kg and < 150 kg | J44: 01017020300 | K44: Meuble de salon/salle à manger, servant au rangement, en métal, compris entre 100 kg et 150 kg exclus | L44: 12.5 | M44: 072 | N44: 15
A45: 01 | B45: =VLOOKUP(A45,'Understanding the coding'!$B$11:$C$23,2,FALSE) -> Living_room_lounge_dining_room_furniture | C45: 017 | D45: =VLOOKUP(C45,'Understanding the coding'!$E$11:$F$56,2,FALSE) -> Storage units (excluding shelves) | E45: 02 | F45: =VLOOKUP(E45,'Understanding the coding'!$H$11:$I$43,2,FALSE) -> > 50% metal | G45: 031 | H45: =VLOOKUP(G45,'Understanding the coding'!$K$11:$L$96,2,FALSE) -> Between 150 kg and < 200 kg | J45: 01017020310 | K45: Meuble de salon/salle à manger, servant au rangement, en métal, compris entre 150 kg et 200 kg exclus | L45: 16.25 | M45: 145 | N45: 19.5
A46: 01 | B46: =VLOOKUP(A46,'Understanding the coding'!$B$11:$C$23,2,FALSE) -> Living_room_lounge_dining_room_furniture | C46: 017 | D46: =VLOOKUP(C46,'Understanding the coding'!$E$11:$F$56,2,FALSE) -> Storage units (excluding shelves) | E46: 02 | F46: =VLOOKUP(E46,'Understanding the coding'!$H$11:$I$43,2,FALSE) -> > 50% metal | G46: 032 | H46: =VLOOKUP(G46,'Understanding the coding'!$K$11:$L$96,2,FALSE) -> Between 200 kg and < 250 kg | J46: 01017020320 | K46: Meuble de salon/salle à manger, servant au rangement, en métal, compris entre 200 kg et 250 kg exclus | L46: 20.83 | M46: 149 | N46: 25
A47: 01 | B47: =VLOOKUP(A47,'Understanding the coding'!$B$11:$C$23,2,FALSE) -> Living_room_lounge_dining_room_furniture | C47: 017 | D47: =VLOOKUP(C47,'Understanding the coding'!$E$11:$F$56,2,FALSE) -> Storage units (excluding shelves) | E47: 02 | F47: =VLOOKUP(E47,'Understanding the coding'!$H$11:$I$43,2,FALSE) -> > 50% metal | G47: 033 | H47: =VLOOKUP(G47,'Understanding the coding'!$K$11:$L$96,2,FALSE) -> Between 250 kg and < 300 kg | J47: 01017020330 | K47: Meuble de salon/salle à manger, servant au rangement, en métal, compris entre 250 kg et 300 kg exclus | L47: 27.5 | M47: 026 | N47: 33
A48: 01 | B48: =VLOOKUP(A48,'Understanding the coding'!$B$11:$C$23,2,FALSE) -> Living_room_lounge_dining_room_furniture | C48: 017 | D48: =VLOOKUP(C48,'Understanding the coding'!$E$11:$F$56,2,FALSE) -> Storage units (excluding shelves) | E48: 02 | F48: =VLOOKUP(E48,'Understanding the coding'!$H$11:$I$43,2,FALSE) -> > 50% metal | G48: 034 | H48: =VLOOKUP(G48,'Understanding the coding'!$K$11:$L$96,2,FALSE) -> Between 300 kg and < 400 kg | J48: 01017020340 | K48: Meuble de salon/salle à manger, servant au rangement, en métal, compris entre 300 kg et 400 kg exclus | L48: 34.17 | M48: 158 | N48: 41
A49: 01 | B49: =VLOOKUP(A49,'Understanding the coding'!$B$11:$C$23,2,FALSE) -> Living_room_lounge_dining_room_furniture | C49: 017 | D49: =VLOOKUP(C49,'Understanding the coding'!$E$11:$F$56,2,FALSE) -> Storage units (excluding shelves) | E49: 02 | F49: =VLOOKUP(E49,'Understanding the coding'!$H$11:$I$43,2,FALSE) -> > 50% metal | G49: 035 | H49: =VLOOKUP(G49,'Understanding the coding'!$K$11:$L$96,2,FALSE) -> Between 400 kg and < 500 kg | J49: 01017020350 | K49: Meuble de salon/salle à manger, servant au rangement, en métal, compris entre 400 kg et 500 kg exclus | L49: 42.92 | M49: 166 | N49: 51.5
A50: 01 | B50: =VLOOKUP(A50,'Understanding the coding'!$B$11:$C$23,2,FALSE) -> Living_room_lounge_dining_room_furniture | C50: 017 | D50: =VLOOKUP(C50,'Understanding the coding'!$E$11:$F$56,2,FALSE) -> Storage units (excluding shelves) | E50: 02 | F50: =VLOOKUP(E50,'Understanding the coding'!$H$11:$I$43,2,FALSE) -> > 50% metal | G50: 036 | H50: =VLOOKUP(G50,'Understanding the coding'!$K$11:$L$96,2,FALSE) -> Between 500 kg and < 600 kg | J50: 01017020360 | K50: Meuble de salon/salle à manger, servant au rangement, en métal, compris entre 500 kg et 600 kg exclus | L50: 51.67 | M50: 079 | N50: 62
A51: 01 | B51: =VLOOKUP(A51,'Understanding the coding'!$B$11:$C$23,2,FALSE) -> Living_room_lounge_dining_room_furniture | C51: 017 | D51: =VLOOKUP(C51,'Understanding the coding'!$E$11:$F$56,2,FALSE) -> Storage units (excluding shelves) | E51: 02 | F51: =VLOOKUP(E51,'Understanding the coding'!$H$11:$I$43,2,FALSE) -> > 50% metal | G51: 037 | H51: =VLOOKUP(G51,'Understanding the coding'!$K$11:$L$96,2,FALSE) -> Between 600 kg and < 700 kg | J51: 01017020370 | K51: Meuble de salon/salle à manger, servant au rangement, en métal, compris entre 600 kg et 700 kg exclus | L51: 60.42 | M51: 181 | N51: 72.5
A52: 01 | B52: =VLOOKUP(A52,'Understanding the coding'!$B$11:$C$23,2,FALSE) -> Living_room_lounge_dining_room_furniture | C52: 017 | D52: =VLOOKUP(C52,'Understanding the coding'!$E$11:$F$56,2,FALSE) -> Storage units (excluding shelves) | E52: 02 | F52: =VLOOKUP(E52,'Understanding the coding'!$H$11:$I$43,2,FALSE) -> > 50% metal | G52: 038 | H52: =VLOOKUP(G52,'Understanding the coding'!$K$11:$L$96,2,FALSE) -> Between 700 kg and < 800 kg | J52: 01017020380 | K52: Meuble de salon/salle à manger, servant au rangement, en métal, compris entre 700 kg et 800 kg exclus | L52: 69.17 | M52: 036 | N52: 83
A53: 01 | B53: =VLOOKUP(A53,'Understanding the coding'!$B$11:$C$23,2,FALSE) -> Living_room_lounge_dining_room_furniture | C53: 017 | D53: =VLOOKUP(C53,'Understanding the coding'!$E$11:$F$56,2,FALSE) -> Storage units (excluding shelves) | E53: 02 | F53: =VLOOKUP(E53,'Understanding the coding'!$H$11:$I$43,2,FALSE) -> > 50% metal | G53: 039 | H53: =VLOOKUP(G53,'Understanding the coding'!$K$11:$L$96,2,FALSE) -> Between 800 kg and < 900 kg | J53: 01017020390 | K53: Meuble de salon/salle à manger, servant au rangement, en métal, compris entre 800 kg et 900 kg exclus | L53: 77.92 | M53: 194 | N53: 93.5
A54: 01 | B54: =VLOOKUP(A54,'Understanding the coding'!$B$11:$C$23,2,FALSE) -> Living_room_lounge_dining_room_furniture | C54: 017 | D54: =VLOOKUP(C54,'Understanding the coding'!$E$11:$F$56,2,FALSE) -> Storage units (excluding shelves) | E54: 02 | F54: =VLOOKUP(E54,'Understanding the coding'!$H$11:$I$43,2,FALSE) -> > 50% metal | G54: 040 | H54: =VLOOKUP(G54,'Understanding the coding'!$K$11:$L$96,2,FALSE) -> Between 900 kg and < 1,000 kg | J54: 01017020400 | K54: Meuble de salon/salle à manger, servant au rangement, en métal, compris entre 900 kg et 1 000 kg exclus | L54: 86.67 | M54: 084 | N54: 104
A55: 01 | B55: =VLOOKUP(A55,'Understanding the coding'!$B$11:$C$23,2,FALSE) -> Living_room_lounge_dining_room_furniture | C55: 017 | D55: =VLOOKUP(C55,'Understanding the coding'!$E$11:$F$56,2,FALSE) -> Storage units (excluding shelves) | E55: 02 | F55: =VLOOKUP(E55,'Understanding the coding'!$H$11:$I$43,2,FALSE) -> > 50% metal | G55: 041 | H55: =VLOOKUP(G55,'Understanding the coding'!$K$11:$L$96,2,FALSE) -> Between 1,000 kg and < 1,100 kg | J55: 01017020410 | K55: Meuble de salon/salle à manger, servant au rangement, en métal, compris entre 1 000 kg et 1 100 kg exclus | L55: 95.42 | M55: 206 | N55: 114.5
A56: 01 | B56: =VLOOKUP(A56,'Understanding the coding'!$B$11:$C$23,2,FALSE) -> Living_room_lounge_dining_room_furniture | C56: 017 | D56: =VLOOKUP(C56,'Understanding the coding'!$E$11:$F$56,2,FALSE) -> Storage units (excluding shelves) | E56: 02 | F56: =VLOOKUP(E56,'Understanding the coding'!$H$11:$I$43,2,FALSE) -> > 50% metal | G56: 042 | H56: =VLOOKUP(G56,'Understanding the coding'!$K$11:$L$96,2,FALSE) -> Between 1,100 kg and < 1,200 kg | J56: 01017020420 | K56: Meuble de salon/salle à manger, servant au rangement, en métal, compris entre 1 100 kg et 1 200 kg exclus | L56: 104.17 | M56: 209 | N56: 125
A57: 01 | B57: =VLOOKUP(A57,'Understanding the coding'!$B$11:$C$23,2,FALSE) -> Living_room_lounge_dining_room_furniture | C57: 017 | D57: =VLOOKUP(C57,'Understanding the coding'!$E$11:$F$56,2,FALSE) -> Storage units (excluding shelves) | E57: 02 | F57: =VLOOKUP(E57,'Understanding the coding'!$H$11:$I$43,2,FALSE) -> > 50% metal | G57: 043 | H57: =VLOOKUP(G57,'Understanding the coding'!$K$11:$L$96,2,FALSE) -> Between 1,200 kg and < 1,300 kg | J57: 01017020430 | K57: Meuble de salon/salle à manger, servant au rangement, en métal, compris entre 1 200 kg et 1 300 kg exclus | L57: 112.92 | M57: 215 | N57: 135.5
A58: 01 | B58: =VLOOKUP(A58,'Understanding the coding'!$B$11:$C$23,2,FALSE) -> Living_room_lounge_dining_room_furniture | C58: 017 | D58: =VLOOKUP(C58,'Understanding the coding'!$E$11:$F$56,2,FALSE) -> Storage units (excluding shelves) | E58: 02 | F58: =VLOOKUP(E58,'Understanding the coding'!$H$11:$I$43,2,FALSE) -> > 50% metal | G58: 044 | H58: =VLOOKUP(G58,'Understanding the coding'!$K$11:$L$96,2,FALSE) -> Between 1,300 kg and < 1,400 kg | J58: 01017020440 | K58: Meuble de salon/salle à manger, servant au rangement, en métal, compris entre 1 300 kg et 1 400 kg exclus | L58: 121.67 | M58: 219 | N58: 146
A59: 01 | B59: =VLOOKUP(A59,'Understanding the coding'!$B$11:$C$23,2,FALSE) -> Living_room_lounge_dining_room_furniture | C59: 017 | D59: =VLOOKUP(C59,'Understanding the coding'!$E$11:$F$56,2,FALSE) -> Storage units (excluding shelves) | E59: 02 | F59: =VLOOKUP(E59,'Understanding the coding'!$H$11:$I$43,2,FALSE) -> > 50% metal | G59: 045 | H59: =VLOOKUP(G59,'Understanding the coding'!$K$11:$L$96,2,FALSE) -> Between 1,400 kg and < 1,500 kg | J59: 01017020450 | K59: Meuble de salon/salle à manger, servant au rangement, en métal, compris entre 1 400 kg et 1 500 kg exclus | L59: 130.42 | M59: 223 | N59: 156.5
A60: 01 | B60: =VLOOKUP(A60,'Understanding the coding'!$B$11:$C$23,2,FALSE) -> Living_room_lounge_dining_room_furniture | C60: 017 | D60: =VLOOKUP(C60,'Understanding the coding'!$E$11:$F$56,2,FALSE) -> Storage units (excluding shelves) | E60: 02 | F60: =VLOOKUP(E60,'Understanding the coding'!$H$11:$I$43,2,FALSE) -> > 50% metal | G60: 046 | H60: =VLOOKUP(G60,'Understanding the coding'!$K$11:$L$96,2,FALSE) -> Between 1,500 kg and < 1,600 kg | J60: 01017020460 | K60: Meuble de salon/salle à manger, servant au rangement, en métal, compris entre 1 500 kg et 1 600 kg exclus | L60: 139.17 | M60: 226 | N60: 167
A61: 01 | B61: =VLOOKUP(A61,'Understanding the coding'!$B$11:$C$23,2,FALSE) -> Living_room_lounge_dining_room_furniture | C61: 017 | D61: =VLOOKUP(C61,'Understanding the coding'!$E$11:$F$56,2,FALSE) -> Storage units (excluding shelves) | E61: 02 | F61: =VLOOKUP(E61,'Understanding the coding'!$H$11:$I$43,2,FALSE) -> > 50% metal | G61: 047 | H61: =VLOOKUP(G61,'Understanding the coding'!$K$11:$L$96,2,FALSE) -> Between 1,600 kg and < 1,700 kg | J61: 01017020470 | K61: Meuble de salon/salle à manger, servant au rangement, en métal, compris entre 1 600 kg et 1 700 kg exclus | L61: 147.92 | M61: 229 | N61: 177.5
A62: 01 | B62: =VLOOKUP(A62,'Understanding the coding'!$B$11:$C$23,2,FALSE) -> Living_room_lounge_dining_room_furniture | C62: 017 | D62: =VLOOKUP(C62,'Understanding the coding'!$E$11:$F$56,2,FALSE) -> Storage units (excluding shelves) | E62: 02 | F62: =VLOOKUP(E62,'Understanding the coding'!$H$11:$I$43,2,FALSE) -> > 50% metal | G62: 048 | H62: =VLOOKUP(G62,'Understanding the coding'!$K$11:$L$96,2,FALSE) -> Between 1,700 kg and < 1,800 kg | J62: 01017020480 | K62: Meuble de salon/salle à manger, servant au rangement, en métal, compris entre 1 700 kg et 1 800 kg exclus | L62: 156.67 | M62: 232 | N62: 188
A63: 01 | B63: =VLOOKUP(A63,'Understanding the coding'!$B$11:$C$23,2,FALSE) -> Living_room_lounge_dining_room_furniture | C63: 017 | D63: =VLOOKUP(C63,'Understanding the coding'!$E$11:$F$56,2,FALSE) -> Storage units (excluding shelves) | E63: 02 | F63: =VLOOKUP(E63,'Understanding the coding'!$H$11:$I$43,2,FALSE) -> > 50% metal | G63: 049 | H63: =VLOOKUP(G63,'Understanding the coding'!$K$11:$L$96,2,FALSE) -> Between 1,800 kg and < 1,900 kg | J63: 01017020490 | K63: Meuble de salon/salle à manger, servant au rangement, en métal, compris entre 1 800 kg et 1 900 kg exclus | L63: 165.42 | M63: 235 | N63: 198.5
A64: 01 | B64: =VLOOKUP(A64,'Understanding the coding'!$B$11:$C$23,2,FALSE) -> Living_room_lounge_dining_room_furniture | C64: 017 | D64: =VLOOKUP(C64,'Understanding the coding'!$E$11:$F$56,2,FALSE) -> Storage units (excluding shelves) | E64: 02 | F64: =VLOOKUP(E64,'Understanding the coding'!$H$11:$I$43,2,FALSE) -> > 50% metal | G64: 050 | H64: =VLOOKUP(G64,'Understanding the coding'!$K$11:$L$96,2,FALSE) -> Between 1,900 kg and < 2,000 kg | J64: 01017020500 | K64: Meuble de salon/salle à manger, servant au rangement, en métal, compris entre 1 900 kg et 2 000 kg exclus | L64: 174.17 | M64: 236 | N64: 209
A65: 01 | B65: =VLOOKUP(A65,'Understanding the coding'!$B$11:$C$23,2,FALSE) -> Living_room_lounge_dining_room_furniture | C65: 017 | D65: =VLOOKUP(C65,'Understanding the coding'!$E$11:$F$56,2,FALSE) -> Storage units (excluding shelves) | E65: 02 | F65: =VLOOKUP(E65,'Understanding the coding'!$H$11:$I$43,2,FALSE) -> > 50% metal | G65: 051 | H65: =VLOOKUP(G65,'Understanding the coding'!$K$11:$L$96,2,FALSE) -> Over 2,000 kg | J65: 01017020510 | K65: Meuble de salon/salle à manger, servant au rangement, en métal, supérieur à 2 000 kg | L65: 182.92 | M65: 238 | N65: 219.5
A66: =MID(J66,1,2) -> 01 | B66: =VLOOKUP(A66,'Understanding the coding'!$B$11:$C$23,2,FALSE) -> Living_room_lounge_dining_room_furniture | C66: =MID(J66,3,3) -> 017 | D66: =VLOOKUP(C66,'Understanding the coding'!$E$11:$F$56,2,FALSE) -> Storage units (excluding shelves) | E66: =MID(J66,6,2) -> 03 | F66: =VLOOKUP(E66,'Understanding the coding'!$H$11:$I$43,2,FALSE) -> Bamboo/rattan | G66: =MID(J66,8,3) -> 020 | H66: =VLOOKUP(G66,'Understanding the coding'!$K$11:$L$96,2,FALSE) -> Must not exceed 0.5 kg | J66: 01017030200 | K66: Meuble de salon/salle à manger, servant au rangement, en bambou / rotin, inférieur strictement à 0,5 kg | L66: 0.03 | M66: 092 | N66: 0.04
A67: 01 | B67: =VLOOKUP(A67,'Understanding the coding'!$B$11:$C$23,2,FALSE) -> Living_room_lounge_dining_room_furniture | C67: 017 | D67: =VLOOKUP(C67,'Understanding the coding'!$E$11:$F$56,2,FALSE) -> Storage units (excluding shelves) | E67: 03 | F67: =VLOOKUP(E67,'Understanding the coding'!$H$11:$I$43,2,FALSE) -> Bamboo/rattan | G67: 021 | H67: =VLOOKUP(G67,'Understanding the coding'!$K$11:$L$96,2,FALSE) -> Between 0.5 kg and < 1 kg | J67: 01017030210 | K67: Meuble de salon/salle à manger, servant au rangement, en bambou / rotin, compris entre 0,5 kg et 1 kg exclus | L67: 0.08 | M67: 003 | N67: 0.1
A68: 01 | B68: =VLOOKUP(A68,'Understanding the coding'!$B$11:$C$23,2,FALSE) -> Living_room_lounge_dining_room_furniture | C68: 017 | D68: =VLOOKUP(C68,'Understanding the coding'!$E$11:$F$56,2,FALSE) -> Storage units (excluding shelves) | E68: 03 | F68: =VLOOKUP(E68,'Understanding the coding'!$H$11:$I$43,2,FALSE) -> Bamboo/rattan | G68: 022 | H68: =VLOOKUP(G68,'Understanding the coding'!$K$11:$L$96,2,FALSE) -> Between 1 kg and < 2 kg | J68: 01017030220 | K68: Meuble de salon/salle à manger, servant au rangement, en bambou / rotin, compris entre 1 kg et 2 kg exclus | L68: 0.14 | M68: 098 | N68: 0.17
A69: 01 | B69: =VLOOKUP(A69,'Understanding the coding'!$B$11:$C$23,2,FALSE) -> Living_room_lounge_dining_room_furniture | C69: 017 | D69: =VLOOKUP(C69,'Understanding the coding'!$E$11:$F$56,2,FALSE) -> Storage units (excluding shelves) | E69: 03 | F69: =VLOOKUP(E69,'Understanding the coding'!$H$11:$I$43,2,FALSE) -> Bamboo/rattan | G69: 023 | H69: =VLOOKUP(G69,'Understanding the coding'!$K$11:$L$96,2,FALSE) -> Between 2 kg and < 5 kg | J69: 01017030230 | K69: Meuble de salon/salle à manger, servant au rangement, en bambou / rotin, compris entre 2 kg et 5 kg exclus | L69: 0.27 | M69: 103 | N69: 0.32
A70: 01 | B70: =VLOOKUP(A70,'Understanding the coding'!$B$11:$C$23,2,FALSE) -> Living_room_lounge_dining_room_furniture | C70: 017 | D70: =VLOOKUP(C70,'Understanding the coding'!$E$11:$F$56,2,FALSE) -> Storage units (excluding shelves) | E70: 03 | F70: =VLOOKUP(E70,'Understanding the coding'!$H$11:$I$43,2,FALSE) -> Bamboo/rattan | G70: 024 | H70: =VLOOKUP(G70,'Understanding the coding'!$K$11:$L$96,2,FALSE) -> Between 5 kg and < 10 kg | J70: 01017030240 | K70: Meuble de salon/salle à manger, servant au rangement, en bambou / rotin, compris entre 5 kg et 10 kg exclus | L70: 0.68 | M70: 044 | N70: 0.82
A71: 01 | B71: =VLOOKUP(A71,'Understanding the coding'!$B$11:$C$23,2,FALSE) -> Living_room_lounge_dining_room_furniture | C71: 017 | D71: =VLOOKUP(C71,'Understanding the coding'!$E$11:$F$56,2,FALSE) -> Storage units (excluding shelves) | E71: 03 | F71: =VLOOKUP(E71,'Understanding the coding'!$H$11:$I$43,2,FALSE) -> Bamboo/rattan | G71: 025 | H71: =VLOOKUP(G71,'Understanding the coding'!$K$11:$L$96,2,FALSE) -> Between 10 kg and < 20 kg | J71: 01017030250 | K71: Meuble de salon/salle à manger, servant au rangement, en bambou / rotin, compris entre 10 kg et 20 kg exclus | L71: 1.5 | M71: 059 | N71: 1.8
A72: 01 | B72: =VLOOKUP(A72,'Understanding the coding'!$B$11:$C$23,2,FALSE) -> Living_room_lounge_dining_room_furniture | C72: 017 | D72: =VLOOKUP(C72,'Understanding the coding'!$E$11:$F$56,2,FALSE) -> Storage units (excluding shelves) | E72: 03 | F72: =VLOOKUP(E72,'Understanding the coding'!$H$11:$I$43,2,FALSE) -> Bamboo/rattan | G72: 026 | H72: =VLOOKUP(G72,'Understanding the coding'!$K$11:$L$96,2,FALSE) -> Between 20 kg and < 30 kg | J72: 01017030260 | K72: Meuble de salon/salle à manger, servant au rangement, en bambou / rotin, compris entre 20 kg et 30 kg exclus | L72: 2.33 | M72: 062 | N72: 2.8
A73: 01 | B73: =VLOOKUP(A73,'Understanding the coding'!$B$11:$C$23,2,FALSE) -> Living_room_lounge_dining_room_furniture | C73: 017 | D73: =VLOOKUP(C73,'Understanding the coding'!$E$11:$F$56,2,FALSE) -> Storage units (excluding shelves) | E73: 03 | F73: =VLOOKUP(E73,'Understanding the coding'!$H$11:$I$43,2,FALSE) -> Bamboo/rattan | G73: 027 | H73: =VLOOKUP(G73,'Understanding the coding'!$K$11:$L$96,2,FALSE) -> Between 30 kg and < 40 kg | J73: 01017030270 | K73: Meuble de salon/salle à manger, servant au rangement, en bambou / rotin, compris entre 30 kg et 40 kg exclus | L73: 3.25 | M73: 122 | N73: 3.9
A74: 01 | B74: =VLOOKUP(A74,'Understanding the coding'!$B$11:$C$23,2,FALSE) -> Living_room_lounge_dining_room_furniture | C74: 017 | D74: =VLOOKUP(C74,'Understanding the coding'!$E$11:$F$56,2,FALSE) -> Storage units (excluding shelves) | E74: 03 | F74: =VLOOKUP(E74,'Understanding the coding'!$H$11:$I$43,2,FALSE) -> Bamboo/rattan | G74: 028 | H74: =VLOOKUP(G74,'Understanding the coding'!$K$11:$L$96,2,FALSE) -> Between 40 kg and < 60 kg | J74: 01017030280 | K74: Meuble de salon/salle à manger, servant au rangement, en bambou / rotin, compris entre 40 kg et 60 kg exclus | L74: 4.42 | M74: 126 | N74: 5.3
A75: 01 | B75: =VLOOKUP(A75,'Understanding the coding'!$B$11:$C$23,2,FALSE) -> Living_room_lounge_dining_room_furniture | C75: 017 | D75: =VLOOKUP(C75,'Understanding the coding'!$E$11:$F$56,2,FALSE) -> Storage units (excluding shelves) | E75: 03 | F75: =VLOOKUP(E75,'Understanding the coding'!$H$11:$I$43,2,FALSE) -> Bamboo/rattan | G75: 029 | H75: =VLOOKUP(G75,'Understanding the coding'!$K$11:$L$96,2,FALSE) -> Between 60 kg and < 100 kg | J75: 01017030290 | K75: Meuble de salon/salle à manger, servant au rangement, en bambou / rotin, compris entre 60 kg et 100 kg exclus | L75: 7.08 | M75: 067 | N75: 8.5
A76: 01 | B76: =VLOOKUP(A76,'Understanding the coding'!$B$11:$C$23,2,FALSE) -> Living_room_lounge_dining_room_furniture | C76: 017 | D76: =VLOOKUP(C76,'Understanding the coding'!$E$11:$F$56,2,FALSE) -> Storage units (excluding shelves) | E76: 03 | F76: =VLOOKUP(E76,'Understanding the coding'!$H$11:$I$43,2,FALSE) -> Bamboo/rattan | G76: 030 | H76: =VLOOKUP(G76,'Understanding the coding'!$K$11:$L$96,2,FALSE) -> Between 100 kg and < 150 kg | J76: 01017030300 | K76: Meuble de salon/salle à manger, servant au rangement, en bambou / rotin, compris entre 100 kg et 150 kg exclus | L76: 12.5 | M76: 072 | N76: 15
A77: 01 | B77: =VLOOKUP(A77,'Understanding the coding'!$B$11:$C$23,2,FALSE) -> Living_room_lounge_dining_room_furniture | C77: 017 | D77: =VLOOKUP(C77,'Understanding the coding'!$E$11:$F$56,2,FALSE) -> Storage units (excluding shelves) | E77: 03 | F77: =VLOOKUP(E77,'Understanding the coding'!$H$11:$I$43,2,FALSE) -> Bamboo/rattan | G77: 031 | H77: =VLOOKUP(G77,'Understanding the coding'!$K$11:$L$96,2,FALSE) -> Between 150 kg and < 200 kg | J77: 01017030310 | K77: Meuble de salon/salle à manger, servant au rangement, en bambou / rotin, compris entre 150 kg et 200 kg exclus | L77: 16.25 | M77: 145 | N77: 19.5
A78: 01 | B78: =VLOOKUP(A78,'Understanding the coding'!$B$11:$C$23,2,FALSE) -> Living_room_lounge_dining_room_furniture | C78: 017 | D78: =VLOOKUP(C78,'Understanding the coding'!$E$11:$F$56,2,FALSE) -> Storage units (excluding shelves) | E78: 03 | F78: =VLOOKUP(E78,'Understanding the coding'!$H$11:$I$43,2,FALSE) -> Bamboo/rattan | G78: 032 | H78: =VLOOKUP(G78,'Understanding the coding'!$K$11:$L$96,2,FALSE) -> Between 200 kg and < 250 kg | J78: 01017030320 | K78: Meuble de salon/salle à manger, servant au rangement, en bambou / rotin, compris entre 200 kg et 250 kg exclus | L78: 20.83 | M78: 149 | N78: 25
A79: 01 | B79: =VLOOKUP(A79,'Understanding the coding'!$B$11:$C$23,2,FALSE) -> Living_room_lounge_dining_room_furniture | C79: 017 | D79: =VLOOKUP(C79,'Understanding the coding'!$E$11:$F$56,2,FALSE) -> Storage units (excluding shelves) | E79: 03 | F79: =VLOOKUP(E79,'Understanding the coding'!$H$11:$I$43,2,FALSE) -> Bamboo/rattan | G79: 033 | H79: =VLOOKUP(G79,'Understanding the coding'!$K$11:$L$96,2,FALSE) -> Between 250 kg and < 300 kg | J79: 01017030330 | K79: Meuble de salon/salle à manger, servant au rangement, en bambou / rotin, compris entre 250 kg et 300 kg exclus | L79: 27.5 | M79: 026 | N79: 33
A80: 01 | B80: =VLOOKUP(A80,'Understanding the coding'!$B$11:$C$23,2,FALSE) -> Living_room_lounge_dining_room_furniture | C80: 017 | D80: =VLOOKUP(C80,'Understanding the coding'!$E$11:$F$56,2,FALSE) -> Storage units (excluding shelves) | E80: 03 | F80: =VLOOKUP(E80,'Understanding the coding'!$H$11:$I$43,2,FALSE) -> Bamboo/rattan | G80: 034 | H80: =VLOOKUP(G80,'Understanding the coding'!$K$11:$L$96,2,FALSE) -> Between 300 kg and < 400 kg | J80: 01017030340 | K80: Meuble de salon/salle à manger, servant au rangement, en bambou / rotin, compris entre 300 kg et 400 kg exclus | L80: 34.17 | M80: 158 | N80: 41
A81: 01 | B81: =VLOOKUP(A81,'Understanding the coding'!$B$11:$C$23,2,FALSE) -> Living_room_lounge_dining_room_furniture | C81: 017 | D81: =VLOOKUP(C81,'Understanding the coding'!$E$11:$F$56,2,FALSE) -> Storage units (excluding shelves) | E81: 03 | F81: =VLOOKUP(E81,'Understanding the coding'!$H$11:$I$43,2,FALSE) -> Bamboo/rattan | G81: 035 | H81: =VLOOKUP(G81,'Understanding the coding'!$K$11:$L$96,2,FALSE) -> Between 400 kg and < 500 kg | J81: 01017030350 | K81: Meuble de salon/salle à manger, servant au rangement, en bambou / rotin, compris entre 400 kg et 500 kg exclus | L81: 42.92 | M81: 166 | N81: 51.5
A82: 01 | B82: =VLOOKUP(A82,'Understanding the coding'!$B$11:$C$23,2,FALSE) -> Living_room_lounge_dining_room_furniture | C82: 017 | D82: =VLOOKUP(C82,'Understanding the coding'!$E$11:$F$56,2,FALSE) -> Storage units (excluding shelves) | E82: 03 | F82: =VLOOKUP(E82,'Understanding the coding'!$H$11:$I$43,2,FALSE) -> Bamboo/rattan | G82: 036 | H82: =VLOOKUP(G82,'Understanding the coding'!$K$11:$L$96,2,FALSE) -> Between 500 kg and < 600 kg | J82: 01017030360 | K82: Meuble de salon/salle à manger, servant au rangement, en bambou / rotin, compris entre 500 kg et 600 kg exclus | L82: 51.67 | M82: 079 | N82: 62
A83: 01 | B83: =VLOOKUP(A83,'Understanding the coding'!$B$11:$C$23,2,FALSE) -> Living_room_lounge_dining_room_furniture | C83: 017 | D83: =VLOOKUP(C83,'Understanding the coding'!$E$11:$F$56,2,FALSE) -> Storage units (excluding shelves) | E83: 03 | F83: =VLOOKUP(E83,'Understanding the coding'!$H$11:$I$43,2,FALSE) -> Bamboo/rattan | G83: 037 | H83: =VLOOKUP(G83,'Understanding the coding'!$K$11:$L$96,2,FALSE) -> Between 600 kg and < 700 kg | J83: 01017030370 | K83: Meuble de salon/salle à manger, servant au rangement, en bambou / rotin, compris entre 600 kg et 700 kg exclus | L83: 60.42 | M83: 181 | N83: 72.5
A84: 01 | B84: =VLOOKUP(A84,'Understanding the coding'!$B$11:$C$23,2,FALSE) -> Living_room_lounge_dining_room_furniture | C84: 017 | D84: =VLOOKUP(C84,'Understanding the coding'!$E$11:$F$56,2,FALSE) -> Storage units (excluding shelves) | E84: 03 | F84: =VLOOKUP(E84,'Understanding the coding'!$H$11:$I$43,2,FALSE) -> Bamboo/rattan | G84: 038 | H84: =VLOOKUP(G84,'Understanding the coding'!$K$11:$L$96,2,FALSE) -> Between 700 kg and < 800 kg | J84: 01017030380 | K84: Meuble de salon/salle à manger, servant au rangement, en bambou / rotin, compris entre 700 kg et 800 kg exclus | L84: 69.17 | M84: 036 | N84: 83
A85: 01 | B85: =VLOOKUP(A85,'Understanding the coding'!$B$11:$C$23,2,FALSE) -> Living_room_lounge_dining_room_furniture | C85: 017 | D85: =VLOOKUP(C85,'Understanding the coding'!$E$11:$F$56,2,FALSE) -> Storage units (excluding shelves) | E85: 03 | F85: =VLOOKUP(E85,'Understanding the coding'!$H$11:$I$43,2,FALSE) -> Bamboo/rattan | G85: 039 | H85: =VLOOKUP(G85,'Understanding the coding'!$K$11:$L$96,2,FALSE) -> Between 800 kg and < 900 kg | J85: 01017030390 | K85: Meuble de salon/salle à manger, servant au rangement, en bambou / rotin, compris entre 800 kg et 900 kg exclus | L85: 77.92 | M85: 194 | N85: 93.5
A86: 01 | B86: =VLOOKUP(A86,'Understanding the coding'!$B$11:$C$23,2,FALSE) -> Living_room_lounge_dining_room_furniture | C86: 017 | D86: =VLOOKUP(C86,'Understanding the coding'!$E$11:$F$56,2,FALSE) -> Storage units (excluding shelves) | E86: 03 | F86: =VLOOKUP(E86,'Understanding the coding'!$H$11:$I$43,2,FALSE) -> Bamboo/rattan | G86: 040 | H86: =VLOOKUP(G86,'Understanding the coding'!$K$11:$L$96,2,FALSE) -> Between 900 kg and < 1,000 kg | J86: 01017030400 | K86: Meuble de salon/salle à manger, servant au rangement, en bambou / rotin, compris entre 900 kg et 1 000 kg exclus | L86: 86.67 | M86: 084 | N86: 104
A87: 01 | B87: =VLOOKUP(A87,'Understanding the coding'!$B$11:$C$23,2,FALSE) -> Living_room_lounge_dining_room_furniture | C87: 017 | D87: =VLOOKUP(C87,'Understanding the coding'!$E$11:$F$56,2,FALSE) -> Storage units (excluding shelves) | E87: 03 | F87: =VLOOKUP(E87,'Understanding the coding'!$H$11:$I$43,2,FALSE) -> Bamboo/rattan | G87: 041 | H87: =VLOOKUP(G87,'Understanding the coding'!$K$11:$L$96,2,FALSE) -> Between 1,000 kg and < 1,100 kg | J87: 01017030410 | K87: Meuble de salon/salle à manger, servant au rangement, en bambou / rotin, compris entre 1 000 kg et 1 100 kg exclus | L87: 95.42 | M87: 206 | N87: 114.5
A88: 01 | B88: =VLOOKUP(A88,'Understanding the coding'!$B$11:$C$23,2,FALSE) -> Living_room_lounge_dining_room_furniture | C88: 017 | D88: =VLOOKUP(C88,'Understanding the coding'!$E$11:$F$56,2,FALSE) -> Storage units (excluding shelves) | E88: 03 | F88: =VLOOKUP(E88,'Understanding the coding'!$H$11:$I$43,2,FALSE) -> Bamboo/rattan | G88: 042 | H88: =VLOOKUP(G88,'Understanding the coding'!$K$11:$L$96,2,FALSE) -> Between 1,100 kg and < 1,200 kg | J88: 01017030420 | K88: Meuble de salon/salle à manger, servant au rangement, en bambou / rotin, compris entre 1 100 kg et 1 200 kg exclus | L88: 104.17 | M88: 209 | N88: 125
A89: 01 | B89: =VLOOKUP(A89,'Understanding the coding'!$B$11:$C$23,2,FALSE) -> Living_room_lounge_dining_room_furniture | C89: 017 | D89: =VLOOKUP(C89,'Understanding the coding'!$E$11:$F$56,2,FALSE) -> Storage units (excluding shelves) | E89: 03 | F89: =VLOOKUP(E89,'Understanding the coding'!$H$11:$I$43,2,FALSE) -> Bamboo/rattan | G89: 043 | H89: =VLOOKUP(G89,'Understanding the coding'!$K$11:$L$96,2,FALSE) -> Between 1,200 kg and < 1,300 kg | J89: 01017030430 | K89: Meuble de salon/salle à manger, servant au rangement, en bambou / rotin, compris entre 1 200 kg et 1 300 kg exclus | L89: 112.92 | M89: 215 | N89: 135.5
A90: 01 | B90: =VLOOKUP(A90,'Understanding the coding'!$B$11:$C$23,2,FALSE) -> Living_room_lounge_dining_room_furniture | C90: 017 | D90: =VLOOKUP(C90,'Understanding the coding'!$E$11:$F$56,2,FALSE) -> Storage units (excluding shelves) | E90: 03 | F90: =VLOOKUP(E90,'Understanding the coding'!$H$11:$I$43,2,FALSE) -> Bamboo/rattan | G90: 044 | H90: =VLOOKUP(G90,'Understanding the coding'!$K$11:$L$96,2,FALSE) -> Between 1,300 kg and < 1,400 kg | J90: 01017030440 | K90: Meuble de salon/salle à manger, servant au rangement, en bambou / rotin, compris entre 1 300 kg et 1 400 kg exclus | L90: 121.67 | M90: 219 | N90: 146
